Workbook

Sheet Menu Główne

Sheet Cennik SAP
A1: ZDJĘCIE | B1: SAP | C1: TYP | D1: OPIS | E1: CENA REUP PLN | F1: Grupa rabatowa | G1: Klasyfikacja logistyczna kod ABC | H1: Informacje do zamówienia | I1: Dodatkowe uwagi | J1: Okres gwarancji (lat) | K1: Cena REUP przedłużenia gw. | L1: Kraj pochodzenia | M1: Kod taryfy celnej | N1: Waga netto (kg)
A3: Centrala AVENAR 2000
B4: F.01U.383.886 | C4: FPA-2000-SWM | D4: Centrala z kontrolerem w wersji standard, montaż ścienny. W skład zestawu wchodzi: 1x FPE-2000-SPC, 1x BCM-000-B, 1x LSN 0300 A, 1x PRS-0002-C, 1x PRD-0004 A, 1x UPS 2416A, 3x FDP 0001 A, 1x HCP 0006 A, 1x FPO-5000-PSB-CH. | E4: =VLOOKUP(B4,'Fire EN 54'!$D$5:$H$508,5,0) -> 8848.00 | F4: 5A | G4: A | J4: =VLOOKUP(B4,'Fire EN 54'!$D$5:$I$508,6,0) -> 5 | K4: - | L4: PT | M4: =VLOOKUP(B4,'Fire EN 54 FX 4,704'!$D$5:$L$500,9,0) -> 8537109199 | N4: =VLOOKUP(B4,'Fire EN 54 FX 4,704'!$D$5:$O$500,12,0) -> 19.70
B5: F.01U.383.887 | C5: FPA-2000-SFM | D5: Centrala z kontrolerem w wersji standard, montaż na ramie. W skład zestawu wchodzi: 1x FPE-2000-SPC, 1x BCM-000-B, 1x LSN 0300 A, 1x PRS-0002-C, 1x PRD-0004 A, 1x UPS 2416A, 3x FDP 0001 A, 1x CPH 0006 A, 1x FBH 0000 A | E5: =VLOOKUP(B5,'Fire EN 54'!$D$5:$H$508,5,0) -> 9513.00 | F5: 5A | G5: A | J5: =VLOOKUP(B5,'Fire EN 54'!$D$5:$I$508,6,0) -> 5 | K5: - | L5: PT | M5: =VLOOKUP(B5,'Fire EN 54 FX 4,704'!$D$5:$L$500,9,0) -> 8537109199 | N5: =VLOOKUP(B5,'Fire EN 54 FX 4,704'!$D$5:$O$500,12,0) -> 22.80
B6: F.01U.383.888 | C6: FPA-2000-PWM | D6: Centrala z kontrolerem w wersji premium montaż ścienny W skład zestawu wchodzi: 1x FPE-2000-PPC, 1x BCM-000-B, 1x LSN 0300 A, 1x PRS-0002-C, 1x PRD-0004 A, 1x UPS 2416A, 3x FDP 0001 A, 1x HCP 0006 A, 1x FPO-5000-PSB-CH | E6: =VLOOKUP(B6,'Fire EN 54'!$D$5:$H$508,5,0) -> 11608.00 | F6: 5A | G6: A | J6: =VLOOKUP(B6,'Fire EN 54'!$D$5:$I$508,6,0) -> 5 | K6: - | L6: PT | M6: =VLOOKUP(B6,'Fire EN 54 FX 4,704'!$D$5:$L$500,9,0) -> 8537109199 | N6: =VLOOKUP(B6,'Fire EN 54 FX 4,704'!$D$5:$O$500,12,0) -> 19.70
B7: F.01U.383.893 | C7: FPA-2000-PFM | D7: Centrala z kontrolerem w wersji premium, montaż na ramie W skład zestawu wchodzi: 1x FPE-2000-PPC, 1x BCM-000-B, 1x LSN 0300 A, 1x PRS-0002-C, 1x PRD-0004 A, 1x UPS 2416A, 3x FDP 0001 A, 1x CPH 0006 A, 1x FBH 0000 A | E7: =VLOOKUP(B7,'Fire EN 54'!$D$5:$H$508,5,0) -> 12244.00 | F7: 5A | G7: A | J7: =VLOOKUP(B7,'Fire EN 54'!$D$5:$I$508,6,0) -> 5 | K7: - | L7: PT | M7: =VLOOKUP(B7,'Fire EN 54 FX 4,704'!$D$5:$L$500,9,0) -> 8537109199 | N7: =VLOOKUP(B7,'Fire EN 54 FX 4,704'!$D$5:$O$500,12,0) -> 22.80
A8: Centrala AVENAR 8000
A9: Kontroler główny centrali, licencje
B10: F.01U.327.090 | C10: FPE-8000-SPC | D10: Kontroler centrali, licencja standard | E10: =VLOOKUP(B10,'Fire EN 54'!$D$5:$H$508,5,0) -> 4026.00 | F10: 5A | G10: A | J10: =VLOOKUP(B10,'Fire EN 54'!$D$5:$I$508,6,0) -> 5 | K10: - | L10: PT | M10: =VLOOKUP(B10,'Fire EN 54 FX 4,704'!$D$5:$L$500,9,0) -> 8537109199 | N10: =VLOOKUP(B10,'Fire EN 54 FX 4,704'!$D$5:$O$500,12,0) -> 3.19
B11: F.01U.352.441 | C11: FPE-8000-PPC | D11: Kontroler centrali, licencja premium | E11: =VLOOKUP(B11,'Fire EN 54'!$D$5:$H$508,5,0) -> 6915.00 | F11: 5A | G11: A | J11: =VLOOKUP(B11,'Fire EN 54'!$D$5:$I$508,6,0) -> 5 | K11: - | L11: PT | M11: =VLOOKUP(B11,'Fire EN 54 FX 4,704'!$D$5:$L$500,9,0) -> 8537109199 | N11: =VLOOKUP(B11,'Fire EN 54 FX 4,704'!$D$5:$O$500,12,0) -> 3.19
A12: Nexospace FSE
B13: F.01U.433.333 | C13: FPO-GATE | D13: Bezpieczna brama sieciowa do NEXOSPACE FSE | E13: =VLOOKUP(B13,'Fire EN 54'!$D$5:$H$508,5,0) -> 4498.00 | F13: 5A | G13: N/a | J13: =VLOOKUP(B13,'Fire EN 54'!$D$5:$I$508,6,0) -> 1 | K13: - | L13: DE | M13: =VLOOKUP(B13,'Fire EN 54 FX 4,704'!$D$5:$L$500,9,0) -> 8517620000 | N13: =VLOOKUP(B13,'Fire EN 54 FX 4,704'!$D$5:$O$500,12,0) -> 1.13
B14: F.01U.435.428 | C14: FSL-BASIC-S | D14: NEXOSPACE FSE Licencja podstawowa S (1 rok) | E14: =VLOOKUP(B14,'Fire EN 54'!$D$5:$H$508,5,0) -> 1497.00 | F14: 5A | G14: N/a | H14: Roczna licencja na łączność <254 punktów | I14: Punkt = ROP lub detektor adresowalny | J14: =VLOOKUP(B14,'Fire EN 54'!D9:I512,6,0) -> n.a. | K14: - | L14: DE | M14: =VLOOKUP(B14,'Fire EN 54 FX 4,704'!$D$5:$L$500,9,0) -> 4911990000 | N14: =VLOOKUP(B14,'Fire EN 54 FX 4,704'!$D$5:$O$500,12,0) -> 0.00
B15: F.01U.435.594 | C15: FSL-BASIC-M | D15: NEXOSPACE FSE Licencja podstawowa M (1 rok) | E15: =VLOOKUP(B15,'Fire EN 54'!$D$5:$H$508,5,0) -> 4510.00 | F15: 5A | G15: N/a | H15: Roczna licencja na łączność 254 - 2000 punktów | I15: Punkt = ROP lub detektor adresowalny | J15: =VLOOKUP(B15,'Fire EN 54'!D10:I513,6,0) -> n.a. | K15: - | L15: DE | M15: =VLOOKUP(B15,'Fire EN 54 FX 4,704'!$D$5:$L$500,9,0) -> 4911990000 | N15: =VLOOKUP(B15,'Fire EN 54 FX 4,704'!$D$5:$O$500,12,0) -> 0.00
B16: F.01U.435.590 | C16: FSL-BASIC-L | D16: NEXOSPACE FSE Licencja podstawowa L (1 rok) | E16: =VLOOKUP(B16,'Fire EN 54'!$D$5:$H$508,5,0) -> 7495.00 | F16: 5A | G16: N/a | H16: Roczna licencja na łączność > 2000 punktów | I16: Punkt = ROP lub detektor adresowalny | J16: =VLOOKUP(B16,'Fire EN 54'!D11:I514,6,0) -> n.a. | K16: - | L16: DE | M16: =VLOOKUP(B16,'Fire EN 54 FX 4,704'!$D$5:$L$500,9,0) -> 4911990000 | N16: =VLOOKUP(B16,'Fire EN 54 FX 4,704'!$D$5:$O$500,12,0) -> 0.00
A17: BACNet Server License
B18: F.01U.428.678 | C18: FSM8000-BNSL | D18: Licencja serwera BACnet na 5 lat | E18: =VLOOKUP(B18,'Fire EN 54'!$D$5:$H$508,5,0) -> 9596.00 | F18: 5A | G18: C | J18: =VLOOKUP(B18,'Fire EN 54'!$D$5:$I$508,6,0) -> n.a. | L18: DE | M18: =VLOOKUP(B18,'Fire EN 54 FX 4,704'!$D$5:$L$500,9,0) -> n.a. | N18: =VLOOKUP(B18,'Fire EN 54 FX 4,704'!$D$5:$O$500,12,0) -> n.a.
B19: F.01U.428.679 | C19: FSM8000-BNSTL | D19: Licencja próbna serwera BACnet na 30 dni | E19: =VLOOKUP(B19,'Fire EN 54'!$D$5:$H$508,5,0) -> 216.00 | F19: 5A | G19: C | J19: =VLOOKUP(B19,'Fire EN 54'!$D$5:$I$508,6,0) -> n.a. | L19: DE | M19: =VLOOKUP(B19,'Fire EN 54 FX 4,704'!$D$5:$L$500,9,0) -> n.a. | N19: =VLOOKUP(B19,'Fire EN 54 FX 4,704'!$D$5:$O$500,12,0) -> n.a.
A20: Moduły funkcjonalne central
B21: F.01U.081.384 | C21: BCM-0000-B | D21: Moduł kontroli baterii | E21: =VLOOKUP(B21,'Fire EN 54'!$D$5:$H$508,5,0) -> 1036.00 | F21: 5A | G21: 1 | J21: =VLOOKUP(B21,'Fire EN 54'!$D$5:$I$508,6,0) -> 5 | K21: - | L21: CN | M21: =VLOOKUP(B21,'Fire EN 54 FX 4,704'!$D$5:$L$500,9,0) -> 8537109199 | N21: =VLOOKUP(B21,'Fire EN 54 FX 4,704'!$D$5:$O$500,12,0) -> 0.342
B22: 4.998.137.262 | C22: ANI 0016 A | D22: Moduł wskaźników diodowych | E22: =VLOOKUP(B22,'Fire EN 54'!$D$5:$H$508,5,0) -> 622.00 | F22: 5A | G22: A | J22: =VLOOKUP(B22,'Fire EN 54'!$D$5:$I$508,6,0) -> 5 | K22: - | L22: CN | M22: =VLOOKUP(B22,'Fire EN 54 FX 4,704'!$D$5:$L$500,9,0) -> 8537109199 | N22: =VLOOKUP(B22,'Fire EN 54 FX 4,704'!$D$5:$O$500,12,0) -> 0.26
B23: 4.998.137.265 | C23: RML 0008 A | D23: Moduł 8 wyjść przekaźnikowych niskonapięciowych | E23: =VLOOKUP(B23,'Fire EN 54'!$D$5:$H$508,5,0) -> 829.00 | F23: 5A | G23: 1 | J23: =VLOOKUP(B23,'Fire EN 54'!$D$5:$I$508,6,0) -> 5 | K23: - | L23: CN | M23: =VLOOKUP(B23,'Fire EN 54 FX 4,704'!$D$5:$L$500,9,0) -> 8537109199 | N23: =VLOOKUP(B23,'Fire EN 54 FX 4,704'!$D$5:$O$500,12,0) -> 0.306
B24: 4.998.137.266 | C24: IOS 0020 A | D24: Moduł komunikacyjny (20mA i RS232) | E24: =VLOOKUP(B24,'Fire EN 54'!$D$5:$H$508,5,0) -> 2255.00 | F24: 5A | G24: 1 | J24: =VLOOKUP(B24,'Fire EN 54'!$D$5:$I$508,6,0) -> 5 | K24: - | L24: CN | M24: =VLOOKUP(B24,'Fire EN 54 FX 4,704'!$D$5:$L$500,9,0) -> 8537109199 | N24: =VLOOKUP(B24,'Fire EN 54 FX 4,704'!$D$5:$O$500,12,0) -> 0.594
B25: 4.998.137.267 | C25: IOS 0232 A | D25: Moduł komunikacyjny (2xRS232) | E25: =VLOOKUP(B25,'Fire EN 54'!$D$5:$H$508,5,0) -> 1243.00 | F25: 5A | G25: A | J25: =VLOOKUP(B25,'Fire EN 54'!$D$5:$I$508,6,0) -> 5 | K25: - | L25: CN | M25: =VLOOKUP(B25,'Fire EN 54 FX 4,704'!$D$5:$L$500,9,0) -> 8537109199 | N25: =VLOOKUP(B25,'Fire EN 54 FX 4,704'!$D$5:$O$500,12,0) -> 0.233
B26: 4.998.137.269 | C26: IOP 0008 A | D26: Moduł 8 wejść i 8 wyjść OC | E26: =VLOOKUP(B26,'Fire EN 54'!$D$5:$H$508,5,0) -> 1138.00 | F26: 5A | G26: 1 | J26: =VLOOKUP(B26,'Fire EN 54'!$D$5:$I$508,6,0) -> 5 | K26: - | L26: CN | M26: =VLOOKUP(B26,'Fire EN 54 FX 4,704'!$D$5:$L$500,9,0) -> 8537109199 | N26: =VLOOKUP(B26,'Fire EN 54 FX 4,704'!$D$5:$O$500,12,0) -> 0.299
B27: 4.998.137.270 | C27: CZM 0004 A | D27: Moduł 4 stref konwencjonalnych | E27: =VLOOKUP(B27,'Fire EN 54'!$D$5:$H$508,5,0) -> 2247.00 | F27: 5A | G27: 1 | J27: =VLOOKUP(B27,'Fire EN 54'!$D$5:$I$508,6,0) -> 5 | K27: - | L27: CN | M27: =VLOOKUP(B27,'Fire EN 54 FX 4,704'!$D$5:$L$500,9,0) -> 8537109199 | N27: =VLOOKUP(B27,'Fire EN 54 FX 4,704'!$D$5:$O$500,12,0) -> 0.333
B28: 4.998.137.274 | C28: RMH 0002 A | D28: Moduł 2 wyjść przekaźnikowych wysokonapięciowych | E28: =VLOOKUP(B28,'Fire EN 54'!$D$5:$H$508,5,0) -> 1897.00 | F28: 5A | G28: D | H28: Planowane zakończenie produkcji 31.03.2026. | I28: EOL 31.06.2026 | J28: =VLOOKUP(B28,'Fire EN 54'!$D$5:$I$508,6,0) -> 5 | K28: - | L28: CN | M28: =VLOOKUP(B28,'Fire EN 54 FX 4,704'!$D$5:$L$500,9,0) -> 8537109199 | N28: =VLOOKUP(B28,'Fire EN 54 FX 4,704'!$D$5:$O$500,12,0) -> 0.31
B29: 4.998.137.275 | C29: NZM 0002 A | D29: Moduł 2 linii sygnalizatorów | E29: =VLOOKUP(B29,'Fire EN 54'!$D$5:$H$508,5,0) -> 1658.00 | F29: 5A | G29: 1 | J29: =VLOOKUP(B29,'Fire EN 54'!$D$5:$I$508,6,0) -> 5 | K29: - | L29: CN | M29: =VLOOKUP(B29,'Fire EN 54 FX 4,704'!$D$5:$L$500,9,0) -> 8537109199 | N29: =VLOOKUP(B29,'Fire EN 54 FX 4,704'!$D$5:$O$500,12,0) -> 0.306
B30: F.01U.028.289 | C30: FPE-5000-UGM | D30: Moduł komunikacyjny | E30: =VLOOKUP(B30,'Fire EN 54'!$D$5:$H$508,5,0) -> 2188.00 | F30: 5A | G30: A | J30: =VLOOKUP(B30,'Fire EN 54'!$D$5:$I$508,6,0) -> 5 | K30: - | L30: CN | M30: =VLOOKUP(B30,'Fire EN 54 FX 4,704'!$D$5:$L$500,9,0) -> 8537109199 | N30: =VLOOKUP(B30,'Fire EN 54 FX 4,704'!$D$5:$O$500,12,0) -> 0.27
B31: 4.998.137.277 | C31: LSN 0300 A | D31: Moduł pętli LSN o obciążalności 300mA | E31: =VLOOKUP(B31,'Fire EN 54'!$D$5:$H$508,5,0) -> 2422.00 | F31: 5A | G31: 1 | J31: =VLOOKUP(B31,'Fire EN 54'!$D$5:$I$508,6,0) -> 5 | K31: - | L31: CN | M31: =VLOOKUP(B31,'Fire EN 54 FX 4,704'!$D$5:$L$500,9,0) -> 8538909999 | N31: =VLOOKUP(B31,'Fire EN 54 FX 4,704'!$D$5:$O$500,12,0) -> 0.306
B32: 4.998.137.278 | C32: LSN 1500 A | D32: Moduł pętli LSN o obciążalności 1500mA | E32: =VLOOKUP(B32,'Fire EN 54'!$D$5:$H$508,5,0) -> 4814.00 | F32: 5A | G32: A | J32: =VLOOKUP(B32,'Fire EN 54'!$D$5:$I$508,6,0) -> 5 | K32: - | L32: CN | M32: =VLOOKUP(B32,'Fire EN 54 FX 4,704'!$D$5:$L$500,9,0) -> 8538909999 | N32: =VLOOKUP(B32,'Fire EN 54 FX 4,704'!$D$5:$O$500,12,0) -> 0.68
A33: Szyny przyłączeniowe central
B34: F.01U.284.903 | C34: PRS-0002-C | D34: Szyna przyłączeniowa krótka | E34: =VLOOKUP(B34,'Fire EN 54'!$D$5:$H$508,5,0) -> 281.00 | F34: 5A | G34: A | J34: =VLOOKUP(B34,'Fire EN 54'!$D$5:$I$508,6,0) -> 5 | K34: =VLOOKUP(C34,#REF!,5,0) ->  | L34: CN | M34: =VLOOKUP(B34,'Fire EN 54 FX 4,704'!$D$5:$L$500,9,0) -> 8536901000 | N34: =VLOOKUP(B34,'Fire EN 54 FX 4,704'!$D$5:$O$500,12,0) -> 0.45
B35: 4.998.137.280 | C35: PRD 0004 A | D35: Szyna przyłączeniowa długa | E35: =VLOOKUP(B35,'Fire EN 54'!$D$5:$H$508,5,0) -> 705.00 | F35: 5A | G35: 1 | J35: =VLOOKUP(B35,'Fire EN 54'!$D$5:$I$508,6,0) -> 5 | K35: - | L35: CN | M35: =VLOOKUP(B35,'Fire EN 54 FX 4,704'!$D$5:$L$500,9,0) -> 8536901000 | N35: =VLOOKUP(B35,'Fire EN 54 FX 4,704'!$D$5:$O$500,12,0) -> 0.72
A36: Obudowy do instalacji na ramach montażowych central
B37: 4.998.137.290 | C37: CPH 0006 A | D37: Obudowa podstawowa na 6 modułów, 2 baterie 12V/40Ah, 1 uchwyt pojedynczy zasilacza PSB 1001 A (cena obejmuje uchwyt zasilacza pojedynczy PSB 1001 A) | E37: =VLOOKUP(B37,'Fire EN 54'!$D$5:$H$508,5,0) -> 2467.00 | F37: 5A | G37: 1 | J37: =VLOOKUP(B37,'Fire EN 54'!$D$5:$I$508,6,0) -> 5 | K37: - | L37: CN | M37: =VLOOKUP(B37,'Fire EN 54 FX 4,704'!$D$5:$L$500,9,0) -> 8538909999 | N37: =VLOOKUP(B37,'Fire EN 54 FX 4,704'!$D$5:$O$500,12,0) -> 12.34
B38: 4.998.137.291 | C38: MPH 0010 A | D38: Obudowa podstawowa na 10 modułów | E38: =VLOOKUP(B38,'Fire EN 54'!$D$5:$H$508,5,0) -> 3108.00 | F38: 5A | G38: 1 | J38: =VLOOKUP(B38,'Fire EN 54'!$D$5:$I$508,6,0) -> 5 | K38: - | L38: CN | M38: =VLOOKUP(B38,'Fire EN 54 FX 4,704'!$D$5:$L$500,9,0) -> 8538909999 | N38: =VLOOKUP(B38,'Fire EN 54 FX 4,704'!$D$5:$O$500,12,0) -> 13.85
B39: 4.998.137.292 | C39: EPH 0012 A | D39: Obudowa rozbudów na 12 modułów | E39: =VLOOKUP(B39,'Fire EN 54'!$D$5:$H$508,5,0) -> 5281.00 | F39: 5A | G39: 1 | J39: =VLOOKUP(B39,'Fire EN 54'!$D$5:$I$508,6,0) -> 5 | K39: - | L39: CN | M39: =VLOOKUP(B39,'Fire EN 54 FX 4,704'!$D$5:$L$500,9,0) -> 8538909999 | N39: =VLOOKUP(B39,'Fire EN 54 FX 4,704'!$D$5:$O$500,12,0) -> 14.55
B40: 4.998.137.293 | C40: PSF 0002 A | D40: Obudowa zasilania mała do instalacji dwóch baterii 12V/40Ah oraz jednego uchwytu zasilacza pojedynczego PSB 1001 A (cena obejmuje uchwyt zasilacza pojedynczy PSB 1001 A) | E40: =VLOOKUP(B40,'Fire EN 54'!$D$5:$H$508,5,0) -> 1667.00 | F40: 5A | G40: 1 | J40: =VLOOKUP(B40,'Fire EN 54'!$D$5:$I$508,6,0) -> 5 | K40: - | L40: CN | M40: =VLOOKUP(B40,'Fire EN 54 FX 4,704'!$D$5:$L$500,9,0) -> 8538909999 | N40: =VLOOKUP(B40,'Fire EN 54 FX 4,704'!$D$5:$O$500,12,0) -> 7.723
B41: 4.998.137.294 | C41: PMF 0004 A | D41: Obudowa zasilania średnia do instalacji czterech baterii 12V/40Ah oraz jednego uchwytu zasilacza pojedynczego PSB 1001 A (cena obejmuje uchwyt zasilacza pojedynczy PSB 1001 A) | E41: =VLOOKUP(B41,'Fire EN 54'!$D$5:$H$508,5,0) -> 1927.00 | F41: 5A | G41: 1 | J41: =VLOOKUP(B41,'Fire EN 54'!$D$5:$I$508,6,0) -> 5 | K41: - | L41: CN | M41: =VLOOKUP(B41,'Fire EN 54 FX 4,704'!$D$5:$L$500,9,0) -> 8538909999 | N41: =VLOOKUP(B41,'Fire EN 54 FX 4,704'!$D$5:$O$500,12,0) -> 12.132
B42: 4.998.147.119 | C42: USF 0000 A | D42: Obudowa mała uniwersalna | E42: =VLOOKUP(B42,'Fire EN 54'!$D$5:$H$508,5,0) -> 1603.00 | F42: 5A | G42: A | J42: =VLOOKUP(B42,'Fire EN 54'!$D$5:$I$508,6,0) -> 5 | K42: - | L42: CN | M42: =VLOOKUP(B42,'Fire EN 54 FX 4,704'!$D$5:$L$500,9,0) -> 8538909999 | N42: =VLOOKUP(B42,'Fire EN 54 FX 4,704'!$D$5:$O$500,12,0) -> 7.489
B43: F.01U.266.845 | C43: FPM-5000-KMC | D43: Zestaw montażowy dla media konwertera | E43: =VLOOKUP(B43,'Fire EN 54'!$D$5:$H$508,5,0) -> 2084.00 | F43: 5A | G43: A | J43: =VLOOKUP(B43,'Fire EN 54'!$D$5:$I$508,6,0) -> 5 | K43: - | L43: DE | M43: =VLOOKUP(B43,'Fire EN 54 FX 4,704'!$D$5:$L$500,9,0) -> 85189000 | N43: =VLOOKUP(B43,'Fire EN 54 FX 4,704'!$D$5:$O$500,12,0) -> 0.86
B44: 4.998.137.296 | C44: FBH 0000 A | D44: Rama montażowa duża | E44: =VLOOKUP(B44,'Fire EN 54'!$D$5:$H$508,5,0) -> 839.00 | F44: 5A | G44: 1 | J44: =VLOOKUP(B44,'Fire EN 54'!$D$5:$I$508,6,0) -> 5 | K44: - | L44: CN | M44: =VLOOKUP(B44,'Fire EN 54 FX 4,704'!$D$5:$L$500,9,0) -> 3926909790 | N44: =VLOOKUP(B44,'Fire EN 54 FX 4,704'!$D$5:$O$500,12,0) -> 4.822
B45: 4.998.137.297 | C45: FMH 0000 A | D45: Rama montażowa średnia | E45: =VLOOKUP(B45,'Fire EN 54'!$D$5:$H$508,5,0) -> 617.00 | F45: 5A | G45: 1 | J45: =VLOOKUP(B45,'Fire EN 54'!$D$5:$I$508,6,0) -> 5 | K45: - | L45: CN | M45: =VLOOKUP(B45,'Fire EN 54 FX 4,704'!$D$5:$L$500,9,0) -> 3926909790 | N45: =VLOOKUP(B45,'Fire EN 54 FX 4,704'!$D$5:$O$500,12,0) -> 4.137
B46: 4.998.137.298 | C46: FSH 0000 A | D46: Rama montażowa mała | E46: =VLOOKUP(B46,'Fire EN 54'!$D$5:$H$508,5,0) -> 493.00 | F46: 5A | G46: A | J46: =VLOOKUP(B46,'Fire EN 54'!$D$5:$I$508,6,0) -> 5 | K46: - | L46: CN | M46: =VLOOKUP(B46,'Fire EN 54 FX 4,704'!$D$5:$L$500,9,0) -> 3926909790 | N46: =VLOOKUP(B46,'Fire EN 54 FX 4,704'!$D$5:$O$500,12,0) -> 2.362
B47: 4.998.139.498 | C47: FRB 0019 A | D47: 19" Zestaw umożliwiający instalację w szafach rack 19" obudów: CPH 0006 A, MPH 0010 A, EPH 0012 A | E47: =VLOOKUP(B47,'Fire EN 54'!$D$5:$H$508,5,0) -> 663.00 | F47: 5A | G47: A | J47: =VLOOKUP(B47,'Fire EN 54'!$D$5:$I$508,6,0) -> 5 | K47: - | L47: CN | M47: =VLOOKUP(B47,'Fire EN 54 FX 4,704'!$D$5:$L$500,9,0) -> 7326909890 | N47: =VLOOKUP(B47,'Fire EN 54 FX 4,704'!$D$5:$O$500,12,0) -> 4.813
B48: 4.998.139.499 | C48: FRM 0019 A | D48: 19" Zestaw umożliwiający instalację w szafach rack 19" obudowy PMF 0004 A | E48: =VLOOKUP(B48,'Fire EN 54'!$D$5:$H$508,5,0) -> 518.00 | F48: 5A | G48: A | J48: =VLOOKUP(B48,'Fire EN 54'!$D$5:$I$508,6,0) -> 5 | K48: - | L48: CN | M48: =VLOOKUP(B48,'Fire EN 54 FX 4,704'!$D$5:$L$500,9,0) -> 7326909890 | N48: =VLOOKUP(B48,'Fire EN 54 FX 4,704'!$D$5:$O$500,12,0) -> 4.778
B49: 4.998.139.500 | C49: FRS 0019 A | D49: 19" Zestaw umożliwiający instalację w szafach rack 19" obudów PSF 0002A i USF 0000 A | E49: =VLOOKUP(B49,'Fire EN 54'!$D$5:$H$508,5,0) -> 456.00 | F49: 5A | G49: A | J49: =VLOOKUP(B49,'Fire EN 54'!$D$5:$I$508,6,0) -> 5 | K49: - | L49: CN | M49: =VLOOKUP(B49,'Fire EN 54 FX 4,704'!$D$5:$L$500,9,0) -> 3926909790 | N49: =VLOOKUP(B49,'Fire EN 54 FX 4,704'!$D$5:$O$500,12,0) -> 3.14
B50: F.01U.500.374 | C50: FDP 0001 A | D50: Zaślepka pustych slotów modułów | E50: =VLOOKUP(B50,'Fire EN 54'!$D$5:$H$508,5,0) -> 83.00 | F50: 5A | G50: 1 | J50: =VLOOKUP(B50,'Fire EN 54'!$D$5:$I$508,6,0) -> 5 | K50: - | L50: CN | M50: =VLOOKUP(B50,'Fire EN 54 FX 4,704'!$D$5:$L$500,9,0) -> 3926909790 | N50: =VLOOKUP(B50,'Fire EN 54 FX 4,704'!$D$5:$O$500,12,0) -> 0.1
B51: F.01U.513.251 | C51: FPO-5000-EB | D51: Szyna uziemiająca | E51: =VLOOKUP(B51,'Fire EN 54'!$D$5:$H$508,5,0) -> 414.00 | F51: 5A | G51: A | J51: =VLOOKUP(B51,'Fire EN 54'!$D$5:$I$508,6,0) -> 5 | K51: - | L51: CN | M51: =VLOOKUP(B51,'Fire EN 54 FX 4,704'!$D$5:$L$500,9,0) -> 7326909890 | N51: =VLOOKUP(B51,'Fire EN 54 FX 4,704'!$D$5:$O$500,12,0) -> 0.111
A52: Obudowy do monatażu naściennego central
B53: 4.998.137.285 | C53: HCP 0006 A | D53: Obudowa podstawowa 6 modułów, 2 baterie 12V/28Ah oraz uchwyt dwóch zasilaczy CPB 1002 A (zamawiany dodatkowo) | E53: =VLOOKUP(B53,'Fire EN 54'!$D$5:$H$508,5,0) -> 2072.00 | F53: 5A | G53: 1 | J53: =VLOOKUP(B53,'Fire EN 54'!$D$5:$I$508,6,0) -> 5 | K53: - | L53: CN | M53: =VLOOKUP(B53,'Fire EN 54 FX 4,704'!$D$5:$L$500,9,0) -> 8529904900 | N53: =VLOOKUP(B53,'Fire EN 54 FX 4,704'!$D$5:$O$500,12,0) -> 13.581
B54: 4.998.137.286 | C54: HBC 0010 A | D54: Obudowa podstawowa na 10 modułów, 2 baterie 12V/28Ah oraz uchwyt dwóch zasilaczy CPB 1002 A (zamawiany dodatkowo) | E54: =VLOOKUP(B54,'Fire EN 54'!$D$5:$H$508,5,0) -> 3108.00 | F54: 5A | G54: 1 | J54: =VLOOKUP(B54,'Fire EN 54'!$D$5:$I$508,6,0) -> 5 | K54: - | L54: CN | M54: =VLOOKUP(B54,'Fire EN 54 FX 4,704'!$D$5:$L$500,9,0) -> 8529904900 | N54: =VLOOKUP(B54,'Fire EN 54 FX 4,704'!$D$5:$O$500,12,0) -> 17.11
B55: 4.998.137.287 | C55: HBE 0012 A | D55: Obudowa rozszerzeń na 12 modułów, 2 baterie 12V/28Ah oraz uchwyt dwóch zasilaczy CPB 1002 A(zamawiamy dodatkowo) | E55: =VLOOKUP(B55,'Fire EN 54'!$D$5:$H$508,5,0) -> 5281.00 | F55: 5A | G55: A | J55: =VLOOKUP(B55,'Fire EN 54'!$D$5:$I$508,6,0) -> 5 | K55: - | L55: CN | M55: =VLOOKUP(B55,'Fire EN 54 FX 4,704'!$D$5:$L$500,9,0) -> 8529904900 | N55: =VLOOKUP(B55,'Fire EN 54 FX 4,704'!$D$5:$O$500,12,0) -> 18.144
B56: 4.998.137.288 | C56: PSS 0002 A | D56: Obudowa zasilania mała (może zostać wyposażona alternatywnie w: a) dwie baterie 12V/28Ah oraz pojedynczy uchwyt zasilacza PSB 1001 A b) uchwyt zasilacza podwójny PSB 1002 A c) płytę montażową HMP 0002 A) | E56: =VLOOKUP(B56,'Fire EN 54'!$D$5:$H$508,5,0) -> 2291.00 | F56: 5A | G56: A | J56: =VLOOKUP(B56,'Fire EN 54'!$D$5:$I$508,6,0) -> 5 | K56: - | L56: CN | M56: =VLOOKUP(B56,'Fire EN 54 FX 4,704'!$D$5:$L$500,9,0) -> 3926909790 | N56: =VLOOKUP(B56,'Fire EN 54 FX 4,704'!$D$5:$O$500,12,0) -> 7.452
B57: 4.998.137.289 | C57: PSB 0004 A | D57: Obudowa zasilania duża (może zostać wyposażona alternatywnie w: a) cztery baterie 12V/28 Ah oraz uchwyt zasilacza pojedynczy PSB 1001 A b) dwie baterie 12V/28Ah oraz uchwyt zasilacza podwójny PSB 1002 A c) dwie baterie 12V/28Ah, uchwyt zasilacza podwójny PSB 1002 A oraz dystrybutor HPD 0000 A d) dwie baterie 12V/28Ah, uchwyt zasilacza podwójny PSB 1002 A oraz płytę montażową HMP 0001 A) | E57: =VLOOKUP(B57,'Fire EN 54'!$D$5:$H$508,5,0) -> 3108.00 | F57: 5A | G57: A | J57: =VLOOKUP(B57,'Fire EN 54'!$D$5:$I$508,6,0) -> 5 | K57: - | L57: CN | M57: =VLOOKUP(B57,'Fire EN 54 FX 4,704'!$D$5:$L$500,9,0) -> 3926909790 | N57: =VLOOKUP(B57,'Fire EN 54 FX 4,704'!$D$5:$O$500,12,0) -> 12.511
A58: Zestawy kabli central
B59: F.01U.500.367 | C59: UPS 2416 A | D59: Zasilacz 24V/6A | E59: =VLOOKUP(B59,'Fire EN 54'!$D$5:$H$508,5,0) -> 2031.00 | F59: 5A | G59: 1 | J59: =VLOOKUP(B59,'Fire EN 54'!$D$5:$I$508,6,0) -> 5 | K59: - | L59: CN | M59: =VLOOKUP(B59,'Fire EN 54 FX 4,704'!$D$5:$L$500,9,0) -> 8504403090 | N59: =VLOOKUP(B59,'Fire EN 54 FX 4,704'!$D$5:$O$500,12,0) -> 0.97
B60: 4.998.153.243 | C60: CPB 0000 A | D60: Zestaw kabli połączeniowych pomiędzy modułem BCM a zasilaczem UPS (długość 150 cm) | E60: =VLOOKUP(B60,'Fire EN 54'!$D$5:$H$508,5,0) -> 104.00 | F60: 5A | G60: A | J60: =VLOOKUP(B60,'Fire EN 54'!$D$5:$I$508,6,0) -> 5 | K60: - | L60: CN | M60: =VLOOKUP(B60,'Fire EN 54 FX 4,704'!$D$5:$L$500,9,0) -> 8544429090 | N60: =VLOOKUP(B60,'Fire EN 54 FX 4,704'!$D$5:$O$500,12,0) -> 0.198
B61: F.01U.078.858 | C61: FPO-5000-PSB1 | D61: Uchwyt zasilacza pojedynczy (do obudów zasilania do montażu naściennego: PSS 0002 A oraz PSB 0004 A) | E61: =VLOOKUP(B61,'Fire EN 54'!$D$5:$H$508,5,0) -> 456.00 | F61: 5A | G61: A | J61: =VLOOKUP(B61,'Fire EN 54'!$D$5:$I$508,6,0) -> 5 | K61: - | L61: CN | M61: =VLOOKUP(B61,'Fire EN 54 FX 4,704'!$D$5:$L$500,9,0) -> 3926909790 | N61: =VLOOKUP(B61,'Fire EN 54 FX 4,704'!$D$5:$O$500,12,0) -> 1.03
B62: F.01U.078.860 | C62: FPO-5000-PSB-CH | D62: Uchwyt zasilacza podwójny (do obudów do montażu naściennego: HCP 0006 A, HBC 0010 A oraz HBE 0012 A) | E62: =VLOOKUP(B62,'Fire EN 54'!$D$5:$H$508,5,0) -> 580.00 | F62: 5A | G62: 1 | J62: =VLOOKUP(B62,'Fire EN 54'!$D$5:$I$508,6,0) -> 5 | K62: - | L62: CN | M62: =VLOOKUP(B62,'Fire EN 54 FX 4,704'!$D$5:$L$500,9,0) -> 3926909790 | N62: =VLOOKUP(B62,'Fire EN 54 FX 4,704'!$D$5:$O$500,12,0) -> 0.798
A63: Zestawy kabli central
B64: 4.998.153.244 | C64: CBB 0000 A | D64: Zestaw kabli połączeniowych (moduł BCM/baterie - 180 cm; bateria/bateria - 17cm) Wykorzystywane, gdy baterie są umieszczone w oddzielnej obudowie) | E64: =VLOOKUP(B64,'Fire EN 54'!$D$5:$H$508,5,0) -> 135.00 | F64: 5A | G64: 1 | J64: =VLOOKUP(B64,'Fire EN 54'!$D$5:$I$508,6,0) -> 5 | K64: - | L64: CN | M64: =VLOOKUP(B64,'Fire EN 54 FX 4,704'!$D$5:$L$500,9,0) -> 8544429090 | N64: =VLOOKUP(B64,'Fire EN 54 FX 4,704'!$D$5:$O$500,12,0) -> 0.198
B65: F.01U.349.391 | C65: FPE-8000-CRP | D65: Zestaw kabli do redundantnego połączenia dwóch kontrolerów centrali AVENAR (do systemów o pojemności powyżej 512 elementów) | E65: =VLOOKUP(B65,'Fire EN 54'!$D$5:$H$508,5,0) -> 350.00 | F65: 5A | G65: A | J65: =VLOOKUP(B65,'Fire EN 54'!$D$5:$I$508,6,0) -> 5 | K65: - | L65: PT | M65: =VLOOKUP(B65,'Fire EN 54 FX 4,704'!$D$5:$L$500,9,0) -> 8544429090 | N65: =VLOOKUP(B65,'Fire EN 54 FX 4,704'!$D$5:$O$500,12,0) -> 0.64
B66: F.01U.349.392 | C66: FPE-8000-CRK | D66: Zestaw do podłączenia wyniesionego pola obsługi AVENAR jako redudancji centrali AVENAR 8000. | E66: =VLOOKUP(B66,'Fire EN 54'!$D$5:$H$508,5,0) -> 210.00 | F66: 5A | G66: A | J66: =VLOOKUP(B66,'Fire EN 54'!$D$5:$I$508,6,0) -> 5 | K66: - | L66: PT | M66: =VLOOKUP(B66,'Fire EN 54 FX 4,704'!$D$5:$L$500,9,0) -> 8544429090 | N66: =VLOOKUP(B66,'Fire EN 54 FX 4,704'!$D$5:$O$500,12,0) -> 0.26
A67: Akcesoria central
B68: F.01U.266.844 | C68: FPM-5000-KES | D68: Zestaw montażowy do instalacji przełącznika Ethernet lub konwertera transmisji w obudowach USF 0000 A lub PSS 0002 A. | E68: =VLOOKUP(B68,'Fire EN 54'!$D$5:$H$508,5,0) -> 3678.00 | F68: 5A | G68: A | J68: =VLOOKUP(B68,'Fire EN 54'!$D$5:$I$508,6,0) -> 5 | K68: - | L68: DE | M68: =VLOOKUP(B68,'Fire EN 54 FX 4,704'!$D$5:$L$500,9,0) -> 8302500000 | N68: =VLOOKUP(B68,'Fire EN 54 FX 4,704'!$D$5:$O$500,12,0) -> 2.77
B69: F.01U.265.641 | C69: EL1141-10B-BH | D69: Światłowodowy konwerter Ethernet MM | E69: =VLOOKUP(B69,'Fire EN 54'!$D$5:$H$508,5,0) -> 4443.00 | F69: 5A | G69: A | J69: =VLOOKUP(B69,'Fire EN 54'!$D$5:$I$508,6,0) -> 3 | K69: - | L69: DE | M69: =VLOOKUP(B69,'Fire EN 54 FX 4,704'!$D$5:$L$500,9,0) -> 8504409090 | N69: =VLOOKUP(B69,'Fire EN 54 FX 4,704'!$D$5:$O$500,12,0) -> 0.58
B70: F.01U.265.643 | C70: EL1141-B0B-BH | D70: Światłowodowy konwerter Ethernet SM | E70: =VLOOKUP(B70,'Fire EN 54'!$D$5:$H$508,5,0) -> 6173.00 | F70: 5A | G70: A | J70: =VLOOKUP(B70,'Fire EN 54'!$D$5:$I$508,6,0) -> 3 | K70: - | L70: DE | M70: =VLOOKUP(B70,'Fire EN 54 FX 4,704'!$D$5:$L$500,9,0) -> 8504409090 | N70: =VLOOKUP(B70,'Fire EN 54 FX 4,704'!$D$5:$O$500,12,0) -> 0.58
A71: Wyniesione pole obsługi
B72: F.01U.327.092 | C72: FPE-8000-FMR | D72: Klawiatura wyniesiona - wersja AVENAR | E72: =VLOOKUP(B72,'Fire EN 54'!$D$5:$H$508,5,0) -> 7090.00 | F72: 5A | G72: A | J72: =VLOOKUP(B72,'Fire EN 54'!$D$5:$I$508,6,0) -> 5 | K72: - | L72: PT | M72: =VLOOKUP(B72,'Fire EN 54 FX 4,704'!$D$5:$L$500,9,0) -> 8537109199 | N72: =VLOOKUP(B72,'Fire EN 54 FX 4,704'!$D$5:$O$500,12,0) -> 3.12
A73: Czujki punktowe LSNi
A74: Seria 520
B75: F.01U.510.149 | C75: FAP-O 520 | D75: Czujka optyczna dekoracyjna Lsn, biała | E75: =VLOOKUP(B75,'Fire EN 54'!$D$5:$H$508,5,0) -> 965.00 | F75: 5A | G75: A | J75: =VLOOKUP(B75,'Fire EN 54'!$D$5:$I$508,6,0) -> 5 | K75: - | L75: CN | M75: =VLOOKUP(B75,'Fire EN 54 FX 4,704'!$D$5:$L$500,9,0) -> 8531103000 | N75: =VLOOKUP(B75,'Fire EN 54 FX 4,704'!$D$5:$O$500,12,0) -> 0.170
B76: F.01U.510.151 | C76: FAP-OC 520 | D76: Czujka optyczo-chemiczna Lsn, biała | E76: =VLOOKUP(B76,'Fire EN 54'!$D$5:$H$508,5,0) -> 1544.00 | F76: 5A | G76: A | J76: =VLOOKUP(B76,'Fire EN 54'!$D$5:$I$508,6,0) -> 5 | K76: - | L76: CN | M76: =VLOOKUP(B76,'Fire EN 54 FX 4,704'!$D$5:$L$500,9,0) -> 8531103000 | N76: =VLOOKUP(B76,'Fire EN 54 FX 4,704'!$D$5:$O$500,12,0) -> 0.180
B77: F.01U.510.161 | C77: FAP-O 520-P | D77: Czujka optyczna dekoracyjna Lsn, przezroczysta | E77: =VLOOKUP(B77,'Fire EN 54'!$D$5:$H$508,5,0) -> 1094.00 | F77: 5A | G77: A | J77: =VLOOKUP(B77,'Fire EN 54'!$D$5:$I$508,6,0) -> 5 | K77: - | L77: CN | M77: =VLOOKUP(B77,'Fire EN 54 FX 4,704'!$D$5:$L$500,9,0) -> 8531103000 | N77: =VLOOKUP(B77,'Fire EN 54 FX 4,704'!$D$5:$O$500,12,0) -> 0.170
B78: F.01U.510.162 | C78: FAP-OC 520-P | D78: Czujka optyczno-chemiczna Lsn, przezroczysta | E78: =VLOOKUP(B78,'Fire EN 54'!$D$5:$H$508,5,0) -> 1577.00 | F78: 5A | G78: A | J78: =VLOOKUP(B78,'Fire EN 54'!$D$5:$I$508,6,0) -> 5 | K78: - | L78: CN | M78: =VLOOKUP(B78,'Fire EN 54 FX 4,704'!$D$5:$L$500,9,0) -> 8531103000 | N78: =VLOOKUP(B78,'Fire EN 54 FX 4,704'!$D$5:$O$500,12,0) -> 0.180
A79: Czujki w osłonach przeciwietrznych
B80: F.01U.029.411 | C80: FAD-420-HS-EN | D80: Osłona przeciwwietrzna z podstawą ms400 | E80: =VLOOKUP(B80,'Fire EN 54'!$D$5:$H$508,5,0) -> 1030.00 | F80: 5A | G80: A | J80: =VLOOKUP(B80,'Fire EN 54'!$D$5:$I$508,6,0) -> 5 | K80: - | L80: CN | M80: =VLOOKUP(B80,'Fire EN 54 FX 4,704'!$D$5:$L$500,9,0) -> 8536909599 | N80: =VLOOKUP(B80,'Fire EN 54 FX 4,704'!$D$5:$O$500,12,0) -> 1.944
B81: F.01U.308.231 | C81: FAD-425-O-R | D81: Czujka optyczna do stosowania w osłonie przeciwietrznej | E81: =VLOOKUP(B81,'Fire EN 54'!$D$5:$H$508,5,0) -> 515.00 | F81: 5A | G81: A | J81: =VLOOKUP(B81,'Fire EN 54'!$D$5:$I$508,6,0) -> 5 | K81: - | L81: PT | M81: =VLOOKUP(B81,'Fire EN 54 FX 4,704'!$D$5:$L$500,9,0) -> 8531103000 | N81: =VLOOKUP(B81,'Fire EN 54 FX 4,704'!$D$5:$O$500,12,0) -> 0.077
B82: F.01U.029.219 | C82: D344-1.5 | D82: Rurka próbkująca o długości 45,7cm | E82: =VLOOKUP(B82,'Fire EN 54'!$D$5:$H$508,5,0) -> 106.00 | F82: 5A | G82: A | J82: =VLOOKUP(B82,'Fire EN 54'!$D$5:$I$508,6,0) -> 3 | K82: - | L82: CN | M82: =VLOOKUP(B82,'Fire EN 54 FX 4,704'!$D$5:$L$500,9,0) -> 7608208990 | N82: =VLOOKUP(B82,'Fire EN 54 FX 4,704'!$D$5:$O$500,12,0) -> 0.058
B83: F.01U.029.175 | C83: D344-3 | D83: Rurka próbkująca 91,4 cm | E83: =VLOOKUP(B83,'Fire EN 54'!$D$5:$H$508,5,0) -> 206.00 | F83: 5A | G83: A | J83: =VLOOKUP(B83,'Fire EN 54'!$D$5:$I$508,6,0) -> 3 | K83: - | L83: CN | M83: =VLOOKUP(B83,'Fire EN 54 FX 4,704'!$D$5:$L$500,9,0) -> 7608208990 | N83: =VLOOKUP(B83,'Fire EN 54 FX 4,704'!$D$5:$O$500,12,0) -> 0.116
B84: F.01U.029.174 | C84: D344-5 | D84: Rurka próbkująca 1,52 m(DS290) | E84: =VLOOKUP(B84,'Fire EN 54'!$D$5:$H$508,5,0) -> 344.00 | F84: 5A | G84: A | J84: =VLOOKUP(B84,'Fire EN 54'!$D$5:$I$508,6,0) -> 3 | K84: - | L84: CN | M84: =VLOOKUP(B84,'Fire EN 54 FX 4,704'!$D$5:$L$500,9,0) -> 7608208990 | N84: =VLOOKUP(B84,'Fire EN 54 FX 4,704'!$D$5:$O$500,12,0) -> 0.21
B85: F.01U.425.789 | C85: D344-TF | D85: Rurka filtrująca próbkująca 20/PK | E85: =VLOOKUP(B85,'Fire EN 54'!$D$5:$H$508,5,0) -> 636.00 | F85: 5A | G85: A | J85: =VLOOKUP(B85,'Fire EN 54'!$D$5:$I$508,6,0) -> 3 | K85: - | L85: CN | M85: =VLOOKUP(B85,'Fire EN 54 FX 4,704'!$D$5:$L$500,9,0) -> 8421999099 | N85: =VLOOKUP(B85,'Fire EN 54 FX 4,704'!$D$5:$O$500,12,0) -> 0.14
B86: F.01U.029.619 | C86: FAD-RB-DIBT | D86: Płytka przekaźników do zastosowań zgodnych z wytycznymi DIBT | E86: =VLOOKUP(B86,'Fire EN 54'!$D$5:$H$508,5,0) -> 225.00 | F86: 5A | G86: A | J86: =VLOOKUP(B86,'Fire EN 54'!$D$5:$I$508,6,0) -> 3 | K86: - | L86: CN | M86: =VLOOKUP(B86,'Fire EN 54 FX 4,704'!$D$5:$L$500,9,0) -> 85371099 | N86: =VLOOKUP(B86,'Fire EN 54 FX 4,704'!$D$5:$O$500,12,0) -> 0.018
A87: AVENAR Detector 4000
B88: F.01U.307.725 | C88: FAP-425-O | D88: Czujka optyczne bez przełączników obrotowych | E88: =VLOOKUP(B88,'Fire EN 54'!$D$5:$H$508,5,0) -> 297.00 | F88: 5B | G88: A | J88: =VLOOKUP(B88,'Fire EN 54'!$D$5:$I$508,6,0) -> 5 | K88: - | L88: PT | M88: =VLOOKUP(B88,'Fire EN 54 FX 4,704'!$D$5:$L$500,9,0) -> 8531103000 | N88: =VLOOKUP(B88,'Fire EN 54 FX 4,704'!$D$5:$O$500,12,0) -> 0.075
B89: F.01U.307.726 | C89: FAP-425-O-R | D89: Czujka optyczna z przełącznikami obrotowymi | E89: =VLOOKUP(B89,'Fire EN 54'!$D$5:$H$508,5,0) -> 307.00 | F89: 5B | G89: A | J89: =VLOOKUP(B89,'Fire EN 54'!$D$5:$I$508,6,0) -> 5 | K89: - | L89: PT | M89: =VLOOKUP(B89,'Fire EN 54 FX 4,704'!$D$5:$L$500,9,0) -> 8531103000 | N89: =VLOOKUP(B89,'Fire EN 54 FX 4,704'!$D$5:$O$500,12,0) -> 0.077
B90: F.01U.307.729 | C90: FAP-425-DO-R | D90: Czujka optyczna Dual Ray z przełącznikami obrotowymi | E90: =VLOOKUP(B90,'Fire EN 54'!$D$5:$H$508,5,0) -> 332.00 | F90: 5B | G90: A | J90: =VLOOKUP(B90,'Fire EN 54'!$D$5:$I$508,6,0) -> 5 | K90: - | L90: PT | M90: =VLOOKUP(B90,'Fire EN 54 FX 4,704'!$D$5:$L$500,9,0) -> 8531103000 | N90: =VLOOKUP(B90,'Fire EN 54 FX 4,704'!$D$5:$O$500,12,0) -> 0.077
B91: F.01U.307.727 | C91: FAP-425-OT | D91: Czujka optyczno-termiczna bez przełączników obrotowych | E91: =VLOOKUP(B91,'Fire EN 54'!$D$5:$H$508,5,0) -> 349.00 | F91: 5B | G91: A | J91: =VLOOKUP(B91,'Fire EN 54'!$D$5:$I$508,6,0) -> 5 | K91: - | L91: PT | M91: =VLOOKUP(B91,'Fire EN 54 FX 4,704'!$D$5:$L$500,9,0) -> 8531103000 | N91: =VLOOKUP(B91,'Fire EN 54 FX 4,704'!$D$5:$O$500,12,0) -> 0.075
B92: F.01U.307.728 | C92: FAP-425-OT-R | D92: Czujka optyczno-termiczna z przełącznikami obrotowymi | E92: =VLOOKUP(B92,'Fire EN 54'!$D$5:$H$508,5,0) -> 357.00 | F92: 5B | G92: A | J92: =VLOOKUP(B92,'Fire EN 54'!$D$5:$I$508,6,0) -> 5 | K92: - | L92: PT | M92: =VLOOKUP(B92,'Fire EN 54 FX 4,704'!$D$5:$L$500,9,0) -> 8531103000 | N92: =VLOOKUP(B92,'Fire EN 54 FX 4,704'!$D$5:$O$500,12,0) -> 0.077
B93: F.01U.307.730 | C93: FAP-425-DOT-R | D93: Czujka optyczno-termiczna Dual Ray z przełącznikami obrotowymi | E93: =VLOOKUP(B93,'Fire EN 54'!$D$5:$H$508,5,0) -> 385.00 | F93: 5B | G93: A | J93: =VLOOKUP(B93,'Fire EN 54'!$D$5:$I$508,6,0) -> 5 | K93: - | L93: PT | M93: =VLOOKUP(B93,'Fire EN 54 FX 4,704'!$D$5:$L$500,9,0) -> 8531103000 | N93: =VLOOKUP(B93,'Fire EN 54 FX 4,704'!$D$5:$O$500,12,0) -> 0.077
B94: F.01U.307.732 | C94: FAH-425-T-R | D94: Czujka termiczna z przełącznikami obrotowymi | E94: =VLOOKUP(B94,'Fire EN 54'!$D$5:$H$508,5,0) -> 319.00 | F94: 5B | G94: A | J94: =VLOOKUP(B94,'Fire EN 54'!$D$5:$I$508,6,0) -> 5 | K94: - | L94: PT | M94: =VLOOKUP(B94,'Fire EN 54 FX 4,704'!$D$5:$L$500,9,0) -> 8531103000 | N94: =VLOOKUP(B94,'Fire EN 54 FX 4,704'!$D$5:$O$500,12,0) -> 0.077
B95: F.01U.395.473 | C95: FAP-425-DOTCO-R | D95: Czujka optyczno-termiczno-chemiczna z sensorem CO - Dual Ray z przełącznikami obrotowymi | E95: =VLOOKUP(B95,'Fire EN 54'!$D$5:$H$508,5,0) -> 670.00 | F95: 5A | G95: A | J95: =VLOOKUP(B95,'Fire EN 54'!$D$5:$I$508,6,0) -> 5 | K95: - | L95: PT | M95: =VLOOKUP(B95,'Fire EN 54 FX 4,704'!$D$5:$L$500,9,0) -> 8531103000 | N95: =VLOOKUP(B95,'Fire EN 54 FX 4,704'!$D$5:$O$500,12,0) -> 0,082
B96: F.01U.307.731 | C96: FAP-425-DOTC-R | D96: Czujka optyczno-termiczno-chemiczna Dual Ray z przełącznikami obrotowymi | E96: =VLOOKUP(B96,'Fire EN 54'!$D$5:$H$508,5,0) -> 670.00 | F96: 5B | G96: A | J96: =VLOOKUP(B96,'Fire EN 54'!$D$5:$I$508,6,0) -> 5 | K96: - | L96: PT | M96: =VLOOKUP(B96,'Fire EN 54 FX 4,704'!$D$5:$L$500,9,0) -> 8531103000 | N96: =VLOOKUP(B96,'Fire EN 54 FX 4,704'!$D$5:$O$500,12,0) -> 0.082
A97: Akcesoria do czujek serii 425 i 520
A98: Akcesoria czujek serii 520
B99: 4.998.151.297 | C99: FAA-500 | D99: Gniazdo czujek serii 520 | E99: =VLOOKUP(B99,'Fire EN 54'!$D$5:$H$508,5,0) -> 257.00 | F99: 5A | G99: A | J99: =VLOOKUP(B99,'Fire EN 54'!$D$5:$I$508,6,0) -> 5 | K99: - | L99: CN | M99: =VLOOKUP(B99,'Fire EN 54 FX 4,704'!$D$5:$L$500,9,0) -> 8536909599 | N99: =VLOOKUP(B99,'Fire EN 54 FX 4,704'!$D$5:$O$500,12,0) -> 0.25
B100: 4.998.151.302 | C100: FAA-500-BB | D100: Puszka montażowa czujek serii 500 do instalacji w sufitach podwieszanych | E100: =VLOOKUP(B100,'Fire EN 54'!$D$5:$H$508,5,0) -> 73.00 | F100: 5A | G100: A | J100: =VLOOKUP(B100,'Fire EN 54'!$D$5:$I$508,6,0) -> 5 | K100: - | L100: CN | M100: =VLOOKUP(B100,'Fire EN 54 FX 4,704'!$D$5:$L$500,9,0) -> 3926909790 | N100: =VLOOKUP(B100,'Fire EN 54 FX 4,704'!$D$5:$O$500,12,0) -> 0.166
B101: 4.998.151.296 | C101: FAA-500-TR-P | D101: Pierścień przezroczysty zewnętrzny z zestawem kolorowych wkładek | E101: =VLOOKUP(B101,'Fire EN 54'!$D$5:$H$508,5,0) -> 115.00 | F101: 5A | G101: A | J101: =VLOOKUP(B101,'Fire EN 54'!$D$5:$I$508,6,0) -> 5 | K101: - | L101: CN | M101: =VLOOKUP(B101,'Fire EN 54 FX 4,704'!$D$5:$L$500,9,0) -> 3926909790 | N101: =VLOOKUP(B101,'Fire EN 54 FX 4,704'!$D$5:$O$500,12,0) -> 0.049
B102: 4.998.151.295 | C102: FAA-500-TR-W | D102: Pierścień biały zewnętrzny | E102: =VLOOKUP(B102,'Fire EN 54'!$D$5:$H$508,5,0) -> 29.00 | F102: 5A | G102: A | J102: =VLOOKUP(B102,'Fire EN 54'!$D$5:$I$508,6,0) -> 5 | K102: - | L102: CN | M102: =VLOOKUP(B102,'Fire EN 54 FX 4,704'!$D$5:$L$500,9,0) -> 3926909790 | N102: =VLOOKUP(B102,'Fire EN 54 FX 4,704'!$D$5:$O$500,12,0) -> 0.03
B103: F.01U.510.166 | C103: FAA-500-SB-H | D103: Puszka montażowa do montażu powierzchniowego z uszczelką | E103: =VLOOKUP(B103,'Fire EN 54'!$D$5:$H$508,5,0) -> 64.00 | F103: 5A | G103: A | J103: =VLOOKUP(B103,'Fire EN 54'!$D$5:$I$508,6,0) -> 5 | K103: - | L103: CN | M103: =VLOOKUP(B103,'Fire EN 54 FX 4,704'!$D$5:$L$500,9,0) -> 3926909790 | N103: =VLOOKUP(B103,'Fire EN 54 FX 4,704'!$D$5:$O$500,12,0) -> 0.266
B104: F.01U.510.028 | C104: FAA-500-SPRING | D104: Sprężyna do gniazd instalowanych w betonowych lub drewnianych sufitach | E104: =VLOOKUP(B104,'Fire EN 54'!$D$5:$H$508,5,0) -> 44.00 | F104: 5A | G104: A | H104: Minimalne zamówienie paczka 10 sztuk lub wielokrotność 10. Jeżeli potrzebujesz 50 sztuk zamawiasz 50. | J104: =VLOOKUP(B104,'Fire EN 54'!$D$5:$I$508,6,0) -> 5 | K104: - | L104: CN | M104: =VLOOKUP(B104,'Fire EN 54 FX 4,704'!$D$5:$L$500,9,0) -> 7320208990 | N104: =VLOOKUP(B104,'Fire EN 54 FX 4,704'!$D$5:$O$500,12,0) -> 0.116
B105: 4.998.151.299 | C105: FAA-500-R | D105: Podstawa z wyjściem przekaźnikowym | E105: =VLOOKUP(B105,'Fire EN 54'!$D$5:$H$508,5,0) -> 257.00 | F105: 5A | G105: A | J105: =VLOOKUP(B105,'Fire EN 54'!$D$5:$I$508,6,0) -> 5 | K105: - | L105: CN | M105: =VLOOKUP(B105,'Fire EN 54 FX 4,704'!$D$5:$L$500,9,0) -> 8536909599 | N105: =VLOOKUP(B105,'Fire EN 54 FX 4,704'!$D$5:$O$500,12,0) -> 0.24
B106: F.01U.508.713 | C106: FAA-500-CB | D106: Zintegrowana obudowa do sufitów betonowych | E106: =VLOOKUP(B106,'Fire EN 54'!$D$5:$H$508,5,0) -> 347.00 | F106: 5A | G106: B | J106: =VLOOKUP(B106,'Fire EN 54'!$D$5:$I$508,6,0) -> 5 | K106: - | L106: DE | M106: =VLOOKUP(B106,'Fire EN 54 FX 4,704'!$D$5:$L$500,9,0) -> 3926909790 | N106: =VLOOKUP(B106,'Fire EN 54 FX 4,704'!$D$5:$O$500,12,0) -> 0.2
A107: Akcesoria do czujek serii 420 i 425
B108: 4.998.021.535 | C108: MS 400 | D108: Gniazdo czujek serii 400 | E108: =VLOOKUP(B108,'Fire EN 54'!$D$5:$H$508,5,0) -> 33.00 | F108: 5A | G108: 1 | J108: =VLOOKUP(B108,'Fire EN 54'!$D$5:$I$508,6,0) -> 5 | K108: - | L108: CN | M108: =VLOOKUP(B108,'Fire EN 54 FX 4,704'!$D$5:$L$500,9,0) -> 8536909599 | N108: =VLOOKUP(B108,'Fire EN 54 FX 4,704'!$D$5:$O$500,12,0) -> 0.009
B109: F.01U.215.139 | C109: MS 400 B | D109: Gniazdo czujek serii 400 z logo Bosch | E109: =VLOOKUP(B109,'Fire EN 54'!$D$5:$H$508,5,0) -> 34.00 | F109: 5A | G109: A | J109: =VLOOKUP(B109,'Fire EN 54'!$D$5:$I$508,6,0) -> 5 | K109: - | L109: CN | M109: =VLOOKUP(B109,'Fire EN 54 FX 4,704'!$D$5:$L$500,9,0) -> 8536909599 | N109: =VLOOKUP(B109,'Fire EN 54 FX 4,704'!$D$5:$O$500,12,0) -> 0.09
B110: F.01U.215.142 | C110: FAA-420-SEAL | D110: Gumowa uszczelka do pomieszczeń wilgotnych dla podstaw MS400 | E110: =VLOOKUP(B110,'Fire EN 54'!$D$5:$H$508,5,0) -> 588.00 | F110: 5A | G110: A | H110: Minimalne zamówienie paczka 10 sztuk lub wielokrotność 10. Jeżeli potrzebujesz 50 sztuk zamawiasz 5 | J110: =VLOOKUP(B110,'Fire EN 54'!$D$5:$I$508,6,0) -> 5 | K110: - | L110: CN | M110: =VLOOKUP(B110,'Fire EN 54 FX 4,704'!$D$5:$L$500,9,0) -> 8536909599 | N110: =VLOOKUP(B110,'Fire EN 54 FX 4,704'!$D$5:$O$500,12,0) -> 0.23
B111: F.01U.508.658 | C111: FAA-MSR420 | D111: Gniazdo czujki z wyjściem przekaźnikowym (tylko do czujek serii 420!!) | E111: =VLOOKUP(B111,'Fire EN 54'!$D$5:$H$508,5,0) -> 204.00 | F111: 5A | G111: A | J111: =VLOOKUP(B111,'Fire EN 54'!$D$5:$I$508,6,0) -> 5 | K111: - | L111: CN | M111: =VLOOKUP(B111,'Fire EN 54 FX 4,704'!$D$5:$L$500,9,0) -> 8536909599 | N111: =VLOOKUP(B111,'Fire EN 54 FX 4,704'!$D$5:$O$500,12,0) -> 0.09
B112: 4.998.113.025 | C112: MSC 420 | D112: MSC 420 podstawa do montażu sufitowego | E112: =VLOOKUP(B112,'Fire EN 54'!$D$5:$H$508,5,0) -> 33.00 | F112: 5A | G112: A | J112: =VLOOKUP(B112,'Fire EN 54'!$D$5:$I$508,6,0) -> 5 | K112: - | L112: CN | M112: =VLOOKUP(B112,'Fire EN 54 FX 4,704'!$D$5:$L$500,9,0) -> 3926909790 | N112: =VLOOKUP(B112,'Fire EN 54 FX 4,704'!$D$5:$O$500,12,0) -> 0.1
B113: 4.998.114.565 | C113: MSR 320 | D113: MSC 320 podstawa z przekaźnikiem | E113: =VLOOKUP(B113,'Fire EN 54'!$D$5:$H$508,5,0) -> 145.00 | F113: 5A | G113: 1 | J113: =VLOOKUP(B113,'Fire EN 54'!$D$5:$I$508,6,0) -> 5 | K113: - | L113: CN | M113: =VLOOKUP(B113,'Fire EN 54 FX 4,704'!$D$5:$L$500,9,0) -> 8536909599 | N113: =VLOOKUP(B113,'Fire EN 54 FX 4,704'!$D$5:$O$500,12,0) -> 0.04
B114: 4.998.025.369 | C114: SK 400 | D114: Metalowa kratka zabezpieczająca | E114: =VLOOKUP(B114,'Fire EN 54'!$D$5:$H$508,5,0) -> 232.00 | F114: 5A | G114: A | J114: =VLOOKUP(B114,'Fire EN 54'!$D$5:$I$508,6,0) -> 5 | K114: - | L114: DE | M114: =VLOOKUP(B114,'Fire EN 54 FX 4,704'!$D$5:$L$500,9,0) -> 7326909890 | N114: =VLOOKUP(B114,'Fire EN 54 FX 4,704'!$D$5:$O$500,12,0) -> 0.3
B115: 4.998.035.312 | C115: SSK400 | D115: Osłona zabezpieczająca przed kurzem - cena za 10 sztuk. | E115: =VLOOKUP(B115,'Fire EN 54'!$D$5:$H$508,5,0) -> 125.00 | F115: 5A | G115: A | H115: Minimalna wielkość zamówienia 10 sztuk lub wielokrotność 10. Jeżeli potrzebujesz 30 sztuk zamawiasz 3. | J115: =VLOOKUP(B115,'Fire EN 54'!$D$5:$I$508,6,0) -> 5 | K115: - | L115: DE | M115: =VLOOKUP(B115,'Fire EN 54 FX 4,704'!$D$5:$L$500,9,0) -> 3926909790 | N115: =VLOOKUP(B115,'Fire EN 54 FX 4,704'!$D$5:$O$500,12,0) -> 0.21
B116: 4.998.084.709 | C116: TP4 400 | D116: Tabliczka znamionowa do nanoszenia numerów stref i czujek (do montażu na wysokości do 4 m),- cena za 1 sztukę. | E116: =VLOOKUP(B116,'Fire EN 54'!$D$5:$H$508,5,0) -> 3.00 | F116: 5A | G116: A | H116: Minimalna ilość zamówienia 50sztuk lub wielokrotność 50. Potrzebujesz 150 sztuk zamawiasz 150 | J116: =VLOOKUP(B116,'Fire EN 54'!$D$5:$I$508,6,0) -> 5 | K116: - | L116: DE | M116: =VLOOKUP(B116,'Fire EN 54 FX 4,704'!$D$5:$L$500,9,0) -> 3926909790 | N116: =VLOOKUP(B116,'Fire EN 54 FX 4,704'!$D$5:$O$500,12,0) -> 0.006
B117: 4.998.084.710 | C117: TP8 400 | D117: Tabliczka znamionowa do nanoszenia numerów stref i czujek (do montażu na wysokości do 8 m)- cena za 1 sztukę . | E117: =VLOOKUP(B117,'Fire EN 54'!$D$5:$H$508,5,0) -> 3.00 | F117: 5A | G117: A | H117: Minimalna ilość zamówienia 50 sztuk lub wielokrotność 50. Potrzebujesz 150 sztuk zamawiasz 150 | J117: =VLOOKUP(B117,'Fire EN 54'!$D$5:$I$508,6,0) -> 5 | K117: - | L117: DE | M117: =VLOOKUP(B117,'Fire EN 54 FX 4,704'!$D$5:$L$500,9,0) -> 3926909790 | N117: =VLOOKUP(B117,'Fire EN 54 FX 4,704'!$D$5:$O$500,12,0) -> 0.009
B118: 4.998.025.373 | C118: MH 400 | D118: Grzałka czujki | E118: =VLOOKUP(B118,'Fire EN 54'!$D$5:$H$508,5,0) -> 233.00 | F118: 5A | G118: A | J118: =VLOOKUP(B118,'Fire EN 54'!$D$5:$I$508,6,0) -> 5 | K118: - | L118: DE | M118: =VLOOKUP(B118,'Fire EN 54 FX 4,704'!$D$5:$L$500,9,0) ->  | N118: =VLOOKUP(B118,'Fire EN 54 FX 4,704'!$D$5:$O$500,12,0) -> 
B119: 4.998.097.924 | C119: WA400 | D119: MK 400, uchwyt do instalacji czujki | E119: =VLOOKUP(B119,'Fire EN 54'!$D$5:$H$508,5,0) -> 207.00 | F119: 5A | G119: A | J119: =VLOOKUP(B119,'Fire EN 54'!$D$5:$I$508,6,0) -> 5 | K119: - | L119: DE | M119: =VLOOKUP(B119,'Fire EN 54 FX 4,704'!$D$5:$L$500,9,0) -> 3926909790 | N119: =VLOOKUP(B119,'Fire EN 54 FX 4,704'!$D$5:$O$500,12,0) -> 0.199
B120: 2.799.271.257 | C120: FMX-DET-MB | D120: Uchwyt montażowy do instalacji pod podłogą uniesioną. Nie zawiera gniazda czujki. | E120: =VLOOKUP(B120,'Fire EN 54'!$D$5:$H$508,5,0) -> 119.00 | F120: 5A | G120: A | J120: =VLOOKUP(B120,'Fire EN 54'!$D$5:$I$508,6,0) -> 5 | K120: - | L120: DE | M120: =VLOOKUP(B120,'Fire EN 54 FX 4,704'!$D$5:$L$500,9,0) -> 3926909790 | N120: =VLOOKUP(B120,'Fire EN 54 FX 4,704'!$D$5:$O$500,12,0) -> 0.09
B121: F.01U.289.620 | C121: FAA-420-RI-DIN | D121: Wskaźnik zadziałania | E121: =VLOOKUP(B121,'Fire EN 54'!$D$5:$H$508,5,0) -> 225.00 | F121: 5A | G121: A | J121: =VLOOKUP(B121,'Fire EN 54'!$D$5:$I$508,6,0) -> 5 | K121: - | L121: PT | M121: =VLOOKUP(B121,'Fire EN 54 FX 4,704'!$D$5:$L$500,9,0) -> 8531900000 | N121: =VLOOKUP(B121,'Fire EN 54 FX 4,704'!$D$5:$O$500,12,0) -> 0.061
B122: F.01U.289.120 | C122: FAA-420-RI-ROW | D122: Wskaźnik zadziałania | E122: =VLOOKUP(B122,'Fire EN 54'!$D$5:$H$508,5,0) -> 75.00 | F122: 5A | G122: A | J122: =VLOOKUP(B122,'Fire EN 54'!$D$5:$I$508,6,0) -> 5 | K122: - | L122: PT | M122: =VLOOKUP(B122,'Fire EN 54 FX 4,704'!$D$5:$L$500,9,0) -> 8531900000 | N122: =VLOOKUP(B122,'Fire EN 54 FX 4,704'!$D$5:$O$500,12,0) -> 0.058
A123: Czujki specjalne
A124: Liniowe czujki dymu
B125: F.01U.400.533 | C125: FRAY-ONE-EN | D125: Czujka liniowa Fireray ONE | E125: =VLOOKUP(B125,'Fire EN 54'!$D$5:$H$508,5,0) -> 7078.00 | F125: 5A | G125: A | J125: =VLOOKUP(B125,'Fire EN 54'!$D$5:$I$508,6,0) -> 3 | K125: - | L125: GB | M125: =VLOOKUP(B125,'Fire EN 54 FX 4,704'!$D$5:$L$500,9,0) -> 85365019 | N125: =VLOOKUP(B125,'Fire EN 54 FX 4,704'!$D$5:$O$500,12,0) -> 0.800
B126: F.01U.290.195 | C126: FIRERAY3000 | D126: Fireray 3000 Liniowa czujka dymu | E126: =VLOOKUP(B126,'Fire EN 54'!$D$5:$H$508,5,0) -> 14641.00 | F126: 5A | G126: A | J126: =VLOOKUP(B126,'Fire EN 54'!$D$5:$I$508,6,0) -> 3 | K126: - | L126: GB | M126: =VLOOKUP(B126,'Fire EN 54 FX 4,704'!$D$5:$L$500,9,0) -> 8536501999 | N126: =VLOOKUP(B126,'Fire EN 54 FX 4,704'!$D$5:$O$500,12,0) -> 1.62
B127: F.01U.290.196 | C127: FIRERAY3000-HD | D127: Fireray 3000 dodatkowa glowica | E127: =VLOOKUP(B127,'Fire EN 54'!$D$5:$H$508,5,0) -> 12649.00 | F127: 5A | G127: A | J127: =VLOOKUP(B127,'Fire EN 54'!$D$5:$I$508,6,0) -> 3 | K127: - | L127: GB | M127: =VLOOKUP(B127,'Fire EN 54 FX 4,704'!$D$5:$L$500,9,0) -> 8536501999 | N127: =VLOOKUP(B127,'Fire EN 54 FX 4,704'!$D$5:$O$500,12,0) -> 0.65
B128: F.01U.290.197 | C128: FIRERAY5000-EN | D128: Czujka liniowa FireRay5000 (możliwość pracy dwóch głowic) | E128: =VLOOKUP(B128,'Fire EN 54'!$D$5:$H$508,5,0) -> 11760.00 | F128: 5A | G128: A | J128: =VLOOKUP(B128,'Fire EN 54'!$D$5:$I$508,6,0) -> 3 | K128: - | L128: GB | M128: =VLOOKUP(B128,'Fire EN 54 FX 4,704'!$D$5:$L$500,9,0) -> 8536501999 | N128: =VLOOKUP(B128,'Fire EN 54 FX 4,704'!$D$5:$O$500,12,0) -> 2.106
B129: F.01U.143.247 | C129: FRAY5000-HEAD-EN | D129: Dodatkowa głowica do FRAY5000-EN z jednym lustrem | E129: =VLOOKUP(B129,'Fire EN 54'!$D$5:$H$508,5,0) -> 6813.00 | F129: 5A | G129: A | J129: =VLOOKUP(B129,'Fire EN 54'!$D$5:$I$508,6,0) -> 3 | K129: - | L129: GB | M129: =VLOOKUP(B129,'Fire EN 54 FX 4,704'!$D$5:$L$500,9,0) -> 8531900000 | N129: =VLOOKUP(B129,'Fire EN 54 FX 4,704'!$D$5:$O$500,12,0) -> 0.666
B130: F.01U.083.264 | C130: FRAY5000-LR-KIT | D130: Fireray5000 zestaw dłuższego zasięgu , przedłużenie 50m zawiera 3 lustra | E130: =VLOOKUP(B130,'Fire EN 54'!$D$5:$H$508,5,0) -> 1904.00 | F130: 5A | G130: A | J130: =VLOOKUP(B130,'Fire EN 54'!$D$5:$I$508,6,0) -> 3 | K130: - | L130: GB | M130: =VLOOKUP(B130,'Fire EN 54 FX 4,704'!$D$5:$L$500,9,0) -> 8536501999 | N130: =VLOOKUP(B130,'Fire EN 54 FX 4,704'!$D$5:$O$500,12,0) -> 0.18
B131: F.01U.098.240 | C131: FRAY5000-BR | D131: Uniwersalny wspornik dla Fireray5000 | E131: =VLOOKUP(B131,'Fire EN 54'!$D$5:$H$508,5,0) -> 1909.00 | F131: 5A | G131: A | J131: =VLOOKUP(B131,'Fire EN 54'!$D$5:$I$508,6,0) -> 3 | K131: - | L131: US | M131: =VLOOKUP(B131,'Fire EN 54 FX 4,704'!$D$5:$L$500,9,0) -> 7326909890 | N131: =VLOOKUP(B131,'Fire EN 54 FX 4,704'!$D$5:$O$500,12,0) -> 0.199
B132: F.01U.098.241 | C132: FRAY5000-4PRISM | D132: Element umożliwiający instalację 4 luster | E132: =VLOOKUP(B132,'Fire EN 54'!$D$5:$H$508,5,0) -> 1208.00 | F132: 5A | G132: A | J132: =VLOOKUP(B132,'Fire EN 54'!$D$5:$I$508,6,0) -> 3 | K132: - | L132: US | M132: =VLOOKUP(B132,'Fire EN 54 FX 4,704'!$D$5:$L$500,9,0) -> 7326909890 | N132: =VLOOKUP(B132,'Fire EN 54 FX 4,704'!$D$5:$O$500,12,0) -> 0.383
B133: F.01U.098.242 | C133: FRAY5000-1PRISM | D133: Element umożliwiający instalacje jednego lustra | E133: =VLOOKUP(B133,'Fire EN 54'!$D$5:$H$508,5,0) -> 1057.00 | F133: 5A | G133: A | J133: =VLOOKUP(B133,'Fire EN 54'!$D$5:$I$508,6,0) -> 3 | K133: - | L133: US | M133: =VLOOKUP(B133,'Fire EN 54 FX 4,704'!$D$5:$L$500,9,0) -> 7326909890 | N133: =VLOOKUP(B133,'Fire EN 54 FX 4,704'!$D$5:$O$500,12,0) -> 0.09
A134: Liniowe czujki termiczne
B135: F.01U.393.476 | C135: FCS-LHD-2EN | D135: Liniowa czujka termiczna, VdS | E135: =VLOOKUP(B135,'Fire EN 54'!$D$5:$H$508,5,0) -> 15550.00 | F135: 5A | G135: A | J135: =VLOOKUP(B135,'Fire EN 54'!$D$5:$I$508,6,0) -> 3 | K135: - | L135: GB | M135: =VLOOKUP(B135,'Fire EN 54 FX 4,704'!$D$5:$L$500,9,0) -> 8536501990 | N135: =VLOOKUP(B135,'Fire EN 54 FX 4,704'!$D$5:$O$500,12,0) -> 0.950
B136: F.01U.395.474 | C136: FCS-LHDSC-EN100 | D136: Kabel sensoryczny PVC, VdS, 100m | E136: =VLOOKUP(B136,'Fire EN 54'!$D$5:$H$508,5,0) -> 7372.00 | F136: 5A | G136: A | H136: Kabel sensoryczny na szpuli 100m | J136: =VLOOKUP(B136,'Fire EN 54'!$D$5:$I$508,6,0) -> 3 | K136: - | L136: GB | M136: =VLOOKUP(B136,'Fire EN 54 FX 4,704'!$D$5:$L$500,9,0) -> 85444993 | N136: =VLOOKUP(B136,'Fire EN 54 FX 4,704'!$D$5:$O$500,12,0) -> 2.470
B137: F.01U.395.475 | C137: FCS-LHDSC-EN250 | D137: Kabel sensoryczny PVC, VdS, 250m | E137: =VLOOKUP(B137,'Fire EN 54'!$D$5:$H$508,5,0) -> 18442.00 | F137: 5A | G137: A | H137: Kabel sensoryczny na szpuli 250m | J137: =VLOOKUP(B137,'Fire EN 54'!$D$5:$I$508,6,0) -> 3 | K137: - | L137: GB | M137: =VLOOKUP(B137,'Fire EN 54 FX 4,704'!$D$5:$L$500,9,0) -> 85444993 | N137: =VLOOKUP(B137,'Fire EN 54 FX 4,704'!$D$5:$O$500,12,0) -> 6.180
B138: F.01U.395.476 | C138: FCS-LHDSC-EN500 | D138: Kabel sensoryczny PVC, VdS, 500m | E138: =VLOOKUP(B138,'Fire EN 54'!$D$5:$H$508,5,0) -> 36741.00 | F138: 5A | G138: A | H138: Kabel sensoryczny na szpuli 500m | J138: =VLOOKUP(B138,'Fire EN 54'!$D$5:$I$508,6,0) -> 3 | K138: - | L138: GB | M138: =VLOOKUP(B138,'Fire EN 54 FX 4,704'!$D$5:$L$500,9,0) -> 85444993 | N138: =VLOOKUP(B138,'Fire EN 54 FX 4,704'!$D$5:$O$500,12,0) -> 12.350
B139: F.01U.403.515 | C139: FCS-LHDSC-NYL100 | D139: Kabel sensoryczny nylon, VdS, 100m | E139: =VLOOKUP(B139,'Fire EN 54'!$D$5:$H$508,5,0) -> 9273.00 | F139: 5A | G139: A | H139: Kabel sensoryczny na szpuli 100m | J139: =VLOOKUP(B139,'Fire EN 54'!$D$5:$I$508,6,0) -> 3 | K139: - | L139: GB | M139: =VLOOKUP(B139,'Fire EN 54 FX 4,704'!$D$5:$L$500,9,0) -> 85444993 | N139: =VLOOKUP(B139,'Fire EN 54 FX 4,704'!$D$5:$O$500,12,0) -> 3.510
B140: F.01U.403.516 | C140: FCS-LHDSC-NYL250 | D140: Kabel sensoryczny nylon, VdS, 250m | E140: =VLOOKUP(B140,'Fire EN 54'!$D$5:$H$508,5,0) -> 22890.00 | F140: 5A | G140: A | H140: Kabel sensoryczny na szpuli 250m | J140: =VLOOKUP(B140,'Fire EN 54'!$D$5:$I$508,6,0) -> 3 | K140: - | L140: GB | M140: =VLOOKUP(B140,'Fire EN 54 FX 4,704'!$D$5:$L$500,9,0) -> 85444993 | N140: =VLOOKUP(B140,'Fire EN 54 FX 4,704'!$D$5:$O$500,12,0) -> 8.780
B141: F.01U.403.517 | C141: FCS-LHDSC-NYL500 | D141: Kabel sensoryczny nylon, VdS, 500m | E141: =VLOOKUP(B141,'Fire EN 54'!$D$5:$H$508,5,0) -> 44606.00 | F141: 5A | G141: A | H141: Kabel sensoryczny na szpuli 500m | J141: =VLOOKUP(B141,'Fire EN 54'!$D$5:$I$508,6,0) -> 3 | K141: - | L141: GB | M141: =VLOOKUP(B141,'Fire EN 54 FX 4,704'!$D$5:$L$500,9,0) -> 85444993 | N141: =VLOOKUP(B141,'Fire EN 54 FX 4,704'!$D$5:$O$500,12,0) -> 17.550
B142: F.01U.403.518 | C142: FCS-LHDSC-STL100 | D142: Kabel sensoryczny stal, VdS, 100m | E142: =VLOOKUP(B142,'Fire EN 54'!$D$5:$H$508,5,0) -> 14849.00 | F142: 5A | G142: A | H142: Kabel sensoryczny na szpuli 100m | J142: =VLOOKUP(B142,'Fire EN 54'!$D$5:$I$508,6,0) -> 3 | K142: - | L142: GB | M142: =VLOOKUP(B142,'Fire EN 54 FX 4,704'!$D$5:$L$500,9,0) -> 85444993 | N142: =VLOOKUP(B142,'Fire EN 54 FX 4,704'!$D$5:$O$500,12,0) -> 3.770
B143: F.01U.403.519 | C143: FCS-LHDSC-STL250 | D143: Kabel sensoryczny stal, VdS, 250m | E143: =VLOOKUP(B143,'Fire EN 54'!$D$5:$H$508,5,0) -> 36316.00 | F143: 5A | G143: A | H143: Kabel sensoryczny na szpuli 250m | J143: =VLOOKUP(B143,'Fire EN 54'!$D$5:$I$508,6,0) -> 3 | K143: - | L143: GB | M143: =VLOOKUP(B143,'Fire EN 54 FX 4,704'!$D$5:$L$500,9,0) -> 85444993 | N143: =VLOOKUP(B143,'Fire EN 54 FX 4,704'!$D$5:$O$500,12,0) -> 9.430
B144: F.01U.403.520 | C144: FCS-LHDSC-STL500 | D144: Kabel sensoryczny stal, VdS, 500m | E144: =VLOOKUP(B144,'Fire EN 54'!$D$5:$H$508,5,0) -> 71018.00 | F144: 5A | G144: A | H144: Kabel sensoryczny na szpuli 500m | J144: =VLOOKUP(B144,'Fire EN 54'!$D$5:$I$508,6,0) -> 3 | K144: - | L144: GB | M144: =VLOOKUP(B144,'Fire EN 54 FX 4,704'!$D$5:$L$500,9,0) -> 85444993 | N144: =VLOOKUP(B144,'Fire EN 54 FX 4,704'!$D$5:$O$500,12,0) -> 18.850
B145: F.01U.395.477 | C145: FCS-LHD2EN-EOL | D145: Moduł End-of-line, VdS | E145: =VLOOKUP(B145,'Fire EN 54'!$D$5:$H$508,5,0) -> 1963.00 | F145: 5A | G145: A | I145: Wymagane do zakończenia linii przewodu czujnika | J145: =VLOOKUP(B145,'Fire EN 54'!$D$5:$I$508,6,0) -> 3 | K145: - | L145: GB | M145: =VLOOKUP(B145,'Fire EN 54 FX 4,704'!$D$5:$L$500,9,0) -> 85319000 | N145: =VLOOKUP(B145,'Fire EN 54 FX 4,704'!$D$5:$O$500,12,0) -> 0.112
B146: F.01U.395.478 | C146: FCS-LHD2EN-CONN | D146: Puszka łączeniowa, VdS | E146: =VLOOKUP(B146,'Fire EN 54'!$D$5:$H$508,5,0) -> 1510.00 | F146: 5A | G146: A | I146: Skrzynka przyłączowa do podłączenia dwóch przewodów czujnika | J146: =VLOOKUP(B146,'Fire EN 54'!$D$5:$I$508,6,0) -> 3 | K146: - | L146: GB | M146: =VLOOKUP(B146,'Fire EN 54 FX 4,704'!$D$5:$L$500,9,0) -> 85319000 | N146: =VLOOKUP(B146,'Fire EN 54 FX 4,704'!$D$5:$O$500,12,0) -> 0.211
B147: F.01U.395.480 | C147: FCS-LHD2EN-CLIP | D147: Zacisk L-Clip, 50mm | E147: =VLOOKUP(B147,'Fire EN 54'!$D$5:$H$508,5,0) -> 1440.00 | F147: 5A | G147: A | H147: Opakowanie 100 sztuk. Chcąc zamówić 200 klipsów, zamawiamy 2 pozycje | I147: Zacisk L-Clip Zintec do montażu kabla detektora | J147: =VLOOKUP(B147,'Fire EN 54'!$D$5:$I$508,6,0) -> 3 | K147: - | L147: GB | M147: =VLOOKUP(B147,'Fire EN 54 FX 4,704'!$D$5:$L$500,9,0) -> 73261990 | N147: =VLOOKUP(B147,'Fire EN 54 FX 4,704'!$D$5:$O$500,12,0) -> 0.040
B148: F.01U.395.479 | C148: FCS-LHD2EN-SLE | D148: Tuleje silikonowe | E148: =VLOOKUP(B148,'Fire EN 54'!$D$5:$H$508,5,0) -> 377.00 | F148: 5A | G148: A | H148: Opakowanie 100 sztuk. Chcąc zamówić 200 sztuk, zamawiamy 2 pozycje | I148: Wymagana do montażu kabla detektora do zacisku L-Clip. | J148: =VLOOKUP(B148,'Fire EN 54'!$D$5:$I$508,6,0) -> 3 | K148: - | L148: GB | M148: =VLOOKUP(B148,'Fire EN 54 FX 4,704'!$D$5:$L$500,9,0) -> 39259010 | N148: =VLOOKUP(B148,'Fire EN 54 FX 4,704'!$D$5:$O$500,12,0) -> 1.590
A149: Czujka płomienia
B150: F.01U.418.818 | C150: 922819 | D150: Czujka płomieniar FMX5000 IR VK | E150: =VLOOKUP(B150,'Fire EN 54'!$D$5:$H$508,5,0) -> 29823.00 | F150: 5A | G150: C | H150: Konieczne zamówienie również: 929144, 924441. Opcjonalnie: 904757. | I150: Wersja bez Ex | J150: =VLOOKUP(B150,'Fire EN 54'!$D$5:$I$508,6,0) -> 3 | K150: - | L150: DE | M150: =VLOOKUP(B150,'Fire EN 54 FX 4,704'!$D$5:$L$500,9,0) -> 85365019 | N150: =VLOOKUP(B150,'Fire EN 54 FX 4,704'!$D$5:$O$500,12,0) -> 0.590
B151: F.01U.418.821 | C151: 929144 | D151: Moduł przekaźnika KMX5000 RK VK | E151: =VLOOKUP(B151,'Fire EN 54'!$D$5:$H$508,5,0) -> 2278.00 | F151: 5A | G151: C | J151: =VLOOKUP(B151,'Fire EN 54'!$D$5:$I$508,6,0) -> 3 | K151: - | L151: DE | M151: =VLOOKUP(B151,'Fire EN 54 FX 4,704'!$D$5:$L$500,9,0) -> 85319000 | N151: =VLOOKUP(B151,'Fire EN 54 FX 4,704'!$D$5:$O$500,12,0) -> 0.050
B152: F.01U.418.824 | C152: 924441 | D152: Gniazdo czujki MX5000 VK | E152: =VLOOKUP(B152,'Fire EN 54'!$D$5:$H$508,5,0) -> 1542.00 | F152: 5A | G152: C | J152: =VLOOKUP(B152,'Fire EN 54'!$D$5:$I$508,6,0) -> 3 | K152: - | L152: DE | M152: =VLOOKUP(B152,'Fire EN 54 FX 4,704'!$D$5:$L$500,9,0) -> 85389099 | N152: =VLOOKUP(B152,'Fire EN 54 FX 4,704'!$D$5:$O$500,12,0) -> 0.380
B153: F.01U.418.826 | C153: 904757 | D153: Uchwyt montażowy MX5000 | E153: =VLOOKUP(B153,'Fire EN 54'!$D$5:$H$508,5,0) -> 242.00 | F153: 5A | G153: C | J153: =VLOOKUP(B153,'Fire EN 54'!$D$5:$I$508,6,0) -> 3 | K153: - | L153: DE | M153: =VLOOKUP(B153,'Fire EN 54 FX 4,704'!$D$5:$L$500,9,0) -> 85389099 | N153: =VLOOKUP(B153,'Fire EN 54 FX 4,704'!$D$5:$O$500,12,0) -> 0.095
B154: F.01U.418.819 | C154: 924420 | D154: IR-flame detector FMX5000 IR 3GD | E154: =VLOOKUP(B154,'Fire EN 54'!$D$5:$H$508,5,0) -> 36960.00 | F154: 5A | G154: C | H154: Konieczna zamówienie również: 926826 oraz 924442. Opcjonalnie 904757 | I154: Wersja Ex | J154: =VLOOKUP(B154,'Fire EN 54'!$D$5:$I$508,6,0) -> 3 | K154: - | L154: DE | M154: =VLOOKUP(B154,'Fire EN 54 FX 4,704'!$D$5:$L$500,9,0) -> 90318080 | N154: =VLOOKUP(B154,'Fire EN 54 FX 4,704'!$D$5:$O$500,12,0) -> 0.590
B155: F.01U.418.822 | C155: 926826 | D155: Relay module KMX5000 RK 3GD VK | E155: =VLOOKUP(B155,'Fire EN 54'!$D$5:$H$508,5,0) -> 3059.00 | F155: 5A | G155: C | J155: =VLOOKUP(B155,'Fire EN 54'!$D$5:$I$508,6,0) -> 3 | K155: - | L155: DE | M155: =VLOOKUP(B155,'Fire EN 54 FX 4,704'!$D$5:$L$500,9,0) -> 85319085 | N155: =VLOOKUP(B155,'Fire EN 54 FX 4,704'!$D$5:$O$500,12,0) -> 0.050
B156: F.01U.418.820 | C156: 911674 | D156: IR-flame detector FMX5000 IR Ex | E156: =VLOOKUP(B156,'Fire EN 54'!$D$5:$H$508,5,0) -> 43333.00 | F156: 5A | G156: C | H156: Konieczna zamówienie również: 922689 oraz 924442. Opcjonalnie 904757 | I156: Wersja Ex | J156: =VLOOKUP(B156,'Fire EN 54'!$D$5:$I$508,6,0) -> 3 | K156: - | L156: DE | M156: =VLOOKUP(B156,'Fire EN 54 FX 4,704'!$D$5:$L$500,9,0) -> 90318080 | N156: =VLOOKUP(B156,'Fire EN 54 FX 4,704'!$D$5:$O$500,12,0) -> 0.590
B157: F.01U.418.823 | C157: 922689 | D157: Bariera Ex. 24V 2 channel | E157: =VLOOKUP(B157,'Fire EN 54'!$D$5:$H$508,5,0) -> 9559.00 | F157: 5A | G157: C | J157: =VLOOKUP(B157,'Fire EN 54'!$D$5:$I$508,6,0) -> 3 | K157: - | L157: DE | M157: =VLOOKUP(B157,'Fire EN 54 FX 4,704'!$D$5:$L$500,9,0) -> 85363010 | N157: =VLOOKUP(B157,'Fire EN 54 FX 4,704'!$D$5:$O$500,12,0) -> 0.150
B158: F.01U.418.825 | C158: 924442 | D158: Gniazdo czujki MX5000 Ex VK | E158: =VLOOKUP(B158,'Fire EN 54'!$D$5:$H$508,5,0) -> 2804.00 | F158: 5A | G158: C | J158: =VLOOKUP(B158,'Fire EN 54'!$D$5:$I$508,6,0) -> 3 | K158: - | L158: DE | M158: =VLOOKUP(B158,'Fire EN 54 FX 4,704'!$D$5:$L$500,9,0) -> 85389099 | N158: =VLOOKUP(B158,'Fire EN 54 FX 4,704'!$D$5:$O$500,12,0) -> 0.530
B159: F.01U.279.762 | C159: 016589 | D159: IR3 Flame Detector | E159: =VLOOKUP(B159,'Fire EN 54'!$D$5:$H$508,5,0) -> 33137.00 | F159: 5A | G159: A | J159: =VLOOKUP(B159,'Fire EN 54'!$D$5:$I$508,6,0) -> 3 | K159: - | L159: GB | M159: =VLOOKUP(B159,'Fire EN 54 FX 4,704'!$D$5:$L$500,9,0) -> 8536501999 | N159: =VLOOKUP(B159,'Fire EN 54 FX 4,704'!$D$5:$O$500,12,0) -> 2.0
B160: F.01U.279.880 | C160: 007127 | D160: Mounting Bracket Flame Detector | E160: =VLOOKUP(B160,'Fire EN 54'!$D$5:$H$508,5,0) -> 1963.00 | F160: 5A | G160: A | J160: =VLOOKUP(B160,'Fire EN 54'!$D$5:$I$508,6,0) -> 3 | K160: - | L160: GB | M160: =VLOOKUP(B160,'Fire EN 54 FX 4,704'!$D$5:$L$500,9,0) -> 8536501999 | N160: =VLOOKUP(B160,'Fire EN 54 FX 4,704'!$D$5:$O$500,12,0) -> 0.655
B161: F.01U.279.764 | C161: 016519 | D161: IR3 – czujka płomienia w wersji EX | E161: =VLOOKUP(B161,'Fire EN 54'!$D$5:$H$508,5,0) -> 41340.00 | F161: 5A | G161: A | J161: =VLOOKUP(B161,'Fire EN 54'!$D$5:$I$508,6,0) -> 3 | K161: - | L161: GB | M161: =VLOOKUP(B161,'Fire EN 54 FX 4,704'!$D$5:$L$500,9,0) -> 8531103000 | N161: =VLOOKUP(B161,'Fire EN 54 FX 4,704'!$D$5:$O$500,12,0) -> 2.5
A162: Czujki punktowe EX (iskrobezpieczne)
B163: F.01U.332.582 | C163: OOH740-A9-EX | D163: Dualna czujka optyczna w wersji EX | E163: =VLOOKUP(B163,'Fire EN 54'!$D$5:$H$508,5,0) -> 2678.00 | F163: 5A | G163: A | I163: EOL 31.12.2026 | J163: =VLOOKUP(B163,'Fire EN 54'!$D$5:$I$508,6,0) -> 3 | K163: - | L163: CH | M163: =VLOOKUP(B163,'Fire EN 54 FX 4,704'!$D$5:$L$500,9,0) -> 85311030000 | N163: =VLOOKUP(B163,'Fire EN 54 FX 4,704'!$D$5:$O$500,12,0) -> 0.124
B164: F.01U.332.583 | C164: FDB201 | D164: Podstawa do podwójnej czujki optycznej OOH740-A9-EX w wersji EX | E164: =VLOOKUP(B164,'Fire EN 54'!$D$5:$H$508,5,0) -> 161.00 | F164: 5A | G164: A | I164: EOL 31.12.2026 | J164: =VLOOKUP(B164,'Fire EN 54'!$D$5:$I$508,6,0) -> 3 | K164: - | L164: CH | M164: =VLOOKUP(B164,'Fire EN 54 FX 4,704'!$D$5:$L$500,9,0) -> 85319085900 | N164: =VLOOKUP(B164,'Fire EN 54 FX 4,704'!$D$5:$O$500,12,0) -> 0.025
B165: F.01U.335.165 | C165: FDB291 | D165: Podstawa montaż powierzchniowy | E165: =VLOOKUP(B165,'Fire EN 54'!$D$5:$H$508,5,0) -> 119.00 | F165: 5A | G165: A | I165: EOL 31.12.2026 | J165: =VLOOKUP(B165,'Fire EN 54'!$D$5:$I$508,6,0) -> 3 | K165: - | L165: CH | M165: =VLOOKUP(B165,'Fire EN 54 FX 4,704'!$D$5:$L$500,9,0) -> 85319000000 | N165: =VLOOKUP(B165,'Fire EN 54 FX 4,704'!$D$5:$O$500,12,0) -> 0.036
B166: F.01U.335.589 | C166: FDB295 | D166: Podstawa montaz powierzchniowy z zabezpieczeniem przeciw wilgoci | E166: =VLOOKUP(B166,'Fire EN 54'!$D$5:$H$508,5,0) -> 458.00 | F166: 5A | G166: A | I166: EOL 31.12.2026 | J166: =VLOOKUP(B166,'Fire EN 54'!$D$5:$I$508,6,0) -> 3 | K166: - | L166: CN | M166: =VLOOKUP(B166,'Fire EN 54 FX 4,704'!$D$5:$L$500,9,0) -> 85319000000 | N166: =VLOOKUP(B166,'Fire EN 54 FX 4,704'!$D$5:$O$500,12,0) -> 0.286
B167: F.01U.335.595 | C167: FDB295M | D167: Metalowy dławik kablowy M20x1.5 | E167: =VLOOKUP(B167,'Fire EN 54'!$D$5:$H$508,5,0) -> 262.00 | F167: 5A | G167: A | H167: Minimalna wielkość zamówienia 10 sztuk lub wielokrotność 10. Jeżeli potrzebujesz 30 sztuk zamawiasz 30 | I167: EOL 31.12.2026 | J167: =VLOOKUP(B167,'Fire EN 54'!$D$5:$I$508,6,0) -> 3 | K167: - | L167: CH | M167: =VLOOKUP(B167,'Fire EN 54 FX 4,704'!$D$5:$L$500,9,0) -> 90269000900 | N167: =VLOOKUP(B167,'Fire EN 54 FX 4,704'!$D$5:$O$500,12,0) -> 0.354
B168: F.01U.335.593 | C168: FDUD291 | D168: Narzędzie do demontowania czujek | E168: =VLOOKUP(B168,'Fire EN 54'!$D$5:$H$508,5,0) -> 10238.00 | F168: 5A | G168: A | I168: EOL 31.12.2026 | J168: =VLOOKUP(B168,'Fire EN 54'!$D$5:$I$508,6,0) -> 3 | K168: - | L168: CH | M168: =VLOOKUP(B168,'Fire EN 54 FX 4,704'!$D$5:$L$500,9,0) -> 90318080000 | N168: =VLOOKUP(B168,'Fire EN 54 FX 4,704'!$D$5:$O$500,12,0) -> 0.480
B169: F.01U.335.590 | C169: FDBZ291 | D169: Tabliczka znamionowa do nanoszenia oznakowania czujki | E169: =VLOOKUP(B169,'Fire EN 54'!$D$5:$H$508,5,0) -> 12.00 | F169: 5A | G169: A | H169: Minimalna wielkość zamówienia 10 sztuk lub wielokrotność 10. Jeżeli potrzebujesz 30 sztuk zamawiasz 30 | I169: EOL 31.12.2026 | J169: =VLOOKUP(B169,'Fire EN 54'!$D$5:$I$508,6,0) -> 3 | K169: - | L169: CH | M169: =VLOOKUP(B169,'Fire EN 54 FX 4,704'!$D$5:$L$500,9,0) -> 85319000000 | N169: =VLOOKUP(B169,'Fire EN 54 FX 4,704'!$D$5:$O$500,12,0) -> 0.024
B170: F.01U.335.591 | C170: FDBZ293 | D170: Blokada czujki M3x6. W zestawie 2 klucze imbusowe. | E170: =VLOOKUP(B170,'Fire EN 54'!$D$5:$H$508,5,0) -> 5.00 | F170: 5A | G170: A | H170: Minimalna wielkość zamówienia 100 sztuk lub wielokrotność 100. Jeżeli potrzebujesz 60 sztuk zamawiasz 100 | I170: EOL 31.12.2026 | J170: =VLOOKUP(B170,'Fire EN 54'!$D$5:$I$508,6,0) -> 3 | K170: - | L170: CH | M170: =VLOOKUP(B170,'Fire EN 54 FX 4,704'!$D$5:$L$500,9,0) -> 85319000000 | N170: =VLOOKUP(B170,'Fire EN 54 FX 4,704'!$D$5:$O$500,12,0) -> 0.026
B171: F.01U.335.592 | C171: FDBZ295 | D171: Uszczelka do OOH740-A9-Ex | E171: =VLOOKUP(B171,'Fire EN 54'!$D$5:$H$508,5,0) -> 95.00 | F171: 5A | G171: A | I171: EOL 31.12.2026 | J171: =VLOOKUP(B171,'Fire EN 54'!$D$5:$I$508,6,0) -> 3 | K171: - | L171: CH | M171: =VLOOKUP(B171,'Fire EN 54 FX 4,704'!$D$5:$L$500,9,0) -> 40169300900 | N171: =VLOOKUP(B171,'Fire EN 54 FX 4,704'!$D$5:$O$500,12,0) -> 0.037
B172: F.01U.335.594 | C172: FDZ291 | D172: Osłona zabezpieczająca przed kurzem - cena za 1sztukę. | E172: =VLOOKUP(B172,'Fire EN 54'!$D$5:$H$508,5,0) -> 18.00 | F172: 5A | G172: A | H172: Minimalna wielkość zamówienia 10 sztuk lub wielokrotność 10. Jeżeli potrzebujesz 30 sztuk zamawiasz 30 | I172: EOL 31.12.2026 | J172: =VLOOKUP(B172,'Fire EN 54'!$D$5:$I$508,6,0) -> 3 | K172: - | L172: CH | M172: =VLOOKUP(B172,'Fire EN 54 FX 4,704'!$D$5:$L$500,9,0) -> 85319000000 | N172: =VLOOKUP(B172,'Fire EN 54 FX 4,704'!$D$5:$O$500,12,0) -> 0.045
B173: 4.998.112.084 | C173: DM1103B-EX | D173: ROP w wersji EX | E173: =VLOOKUP(B173,'Fire EN 54'!$D$5:$H$508,5,0) -> 1923.00 | F173: 5A | G173: A | H173: Uwaga! Brak wymaganego Świadectwa Dopuszczenia. | I173: EOL 31.12.2026 | J173: =VLOOKUP(B173,'Fire EN 54'!$D$5:$I$508,6,0) -> 3 | K173: - | L173: DE | M173: =VLOOKUP(B173,'Fire EN 54 FX 4,704'!$D$5:$L$500,9,0) -> 8536501999 | N173: =VLOOKUP(B173,'Fire EN 54 FX 4,704'!$D$5:$O$500,12,0) -> 0.333
B174: 4.998.112.085 | C174: SB3 | D174: Bariera iskrobezpieczna SB3 wraz z modułem DCA1192 | E174: Zapytaj o cene przed zamówieniem | F174: 5A | G174: A | I174: EOL 31.03.2026 | J174: 3 | K174: - | L174: DE | M174: =VLOOKUP(B174,'Fire EN 54 FX 4,704'!$D$5:$L$500,9,0) -> 8536909599 | N174: =VLOOKUP(B174,'Fire EN 54 FX 4,704'!$D$5:$O$500,12,0) -> 1.19
A175: Video Detecja
B176: F.01U.406.348 | C176: FCS-8000-VFD-I | D176: AI-VFD Bullet 4MP 4.4-10mm IP67- kamera do inteligentnej wideo detekcji pożaru. | E176: =VLOOKUP(B176,'Fire EN 54'!$D$5:$H$508,5,0) -> 34014.00 | F176: 5A | G176: N/a | J176: =VLOOKUP(B176,'Fire EN 54'!$D$5:$I$508,6,0) -> 3 | K176: - | L176: PT | M176: =VLOOKUP(B176,'Fire EN 54 FX 4,704'!$D$5:$L$500,9,0) -> 85258900 | N176: =VLOOKUP(B176,'Fire EN 54 FX 4,704'!$D$5:$O$500,12,0) -> 3.285
B177: F.01U.317.536 | C177: FCS-8000-VFD-B | D177: AVIOTEC IP starlight 8000 - kamera do inteligentnej wideo detekcji pożaru. | E177: =VLOOKUP(B177,'Fire EN 54'!$D$5:$H$508,5,0) -> 34014.00 | F177: 5A | G177: N/a | J177: =VLOOKUP(B177,#REF!,5,0) ->  | K177: - | L177: PT | M177: =VLOOKUP(B177,'Fire EN 54 FX 4,704'!$D$5:$L$500,9,0) -> 8525801931 | N177: =VLOOKUP(B177,'Fire EN 54 FX 4,704'!$D$5:$O$500,12,0) -> 1.196
A178: Czujki bezprzewodowe
B179: F.01U.349.134 | C179: FWI-270 | D179: Moduł LSN do urządzeń bezprzewodowych | E179: =VLOOKUP(B179,'Fire EN 54'!$D$5:$H$508,5,0) -> 5223.00 | F179: 5A | G179: B | J179: =VLOOKUP(B179,'Fire EN 54'!$D$5:$I$508,6,0) -> 3 | K179: - | L179: PT | M179: =VLOOKUP(B179,'Fire EN 54 FX 4,704'!$D$5:$L$500,9,0) -> 8517620000 | N179: =VLOOKUP(B179,'Fire EN 54 FX 4,704'!$D$5:$O$500,12,0) -> 0.260
B180: F.01U.349.135 | C180: FDOOT271-O | D180: Czujka bezprzewodowa optyczno-termiczna | E180: =VLOOKUP(B180,'Fire EN 54'!$D$5:$H$508,5,0) -> 3003.00 | F180: 5A | G180: B | J180: =VLOOKUP(B180,'Fire EN 54'!$D$5:$I$508,6,0) -> 3 | K180: - | L180: CH | M180: =VLOOKUP(B180,'Fire EN 54 FX 4,704'!$D$5:$L$500,9,0) -> 8531900000 | N180: =VLOOKUP(B180,'Fire EN 54 FX 4,704'!$D$5:$O$500,12,0) -> 0.134
B181: F.01U.349.136 | C181: FDB271 | D181: Podstawa czujki bezprzewodowej | E181: =VLOOKUP(B181,'Fire EN 54'!$D$5:$H$508,5,0) -> 57.00 | F181: 5A | G181: B | J181: =VLOOKUP(B181,'Fire EN 54'!$D$5:$I$508,6,0) -> 3 | K181: - | L181: CH | M181: =VLOOKUP(B181,'Fire EN 54 FX 4,704'!$D$5:$L$500,9,0) -> 8536909599 | N181: =VLOOKUP(B181,'Fire EN 54 FX 4,704'!$D$5:$O$500,12,0) -> 0.039
B182: F.01U.349.137 | C182: FDMH273-R | D182: Obudowa bezprzewodowego ROP dwustadiowego | E182: =VLOOKUP(B182,'Fire EN 54'!$D$5:$H$508,5,0) -> 652.00 | F182: 5A | G182: B | J182: =VLOOKUP(B182,'Fire EN 54'!$D$5:$I$508,6,0) -> 3 | K182: - | L182: CH | M182: =VLOOKUP(B182,'Fire EN 54 FX 4,704'!$D$5:$L$500,9,0) -> 8536501999 | N182: =VLOOKUP(B182,'Fire EN 54 FX 4,704'!$D$5:$O$500,12,0) -> 0.285
B183: F.01U.349.249 | C183: FDME273-O | D183: Bezprzewodowy ROP dwustadiowy - elektronika | E183: =VLOOKUP(B183,'Fire EN 54'!$D$5:$H$508,5,0) -> 3768.00 | F183: 5A | G183: B | J183: =VLOOKUP(B183,'Fire EN 54'!$D$5:$I$508,6,0) -> 3 | K183: - | L183: CH | M183: =VLOOKUP(B183,'Fire EN 54 FX 4,704'!$D$5:$L$500,9,0) -> 8536501999 | N183: =VLOOKUP(B183,'Fire EN 54 FX 4,704'!$D$5:$O$500,12,0) -> 0.108
B184: F.01U.349.248 | C184: BAT3.6-10 | D184: Li-SOCl2 bateria 3.6V, 10 Ah | E184: =VLOOKUP(B184,'Fire EN 54'!$D$5:$H$508,5,0) -> 385.00 | F184: 5A | G184: B | J184: =VLOOKUP(B184,'Fire EN 54'!$D$5:$I$508,6,0) -> 1 | K184: - | L184: CH | M184: =VLOOKUP(B184,'Fire EN 54 FX 4,704'!$D$5:$L$500,9,0) -> 8506501000 | N184: =VLOOKUP(B184,'Fire EN 54 FX 4,704'!$D$5:$O$500,12,0) -> 0.09
B185: F.01U.349.250 | C185: DMZ1196-AC | D185: Zapasowa szybka do FDM273-O | E185: =VLOOKUP(B185,'Fire EN 54'!$D$5:$H$508,5,0) -> 53.00 | F185: 5A | G185: B | H185: Cena za sztukę. Zamówienie w paczkach 10 sztuk. | J185: =VLOOKUP(B185,'Fire EN 54'!$D$5:$I$508,6,0) -> 3 | K185: - | L185: CH | M185: =VLOOKUP(B185,'Fire EN 54 FX 4,704'!$D$5:$L$500,9,0) -> 3926909790 | N185: =VLOOKUP(B185,'Fire EN 54 FX 4,704'!$D$5:$O$500,12,0) -> 0.117
B186: F.01U.349.254 | C186: FDUZ227 | D186: MCL adapter USB | E186: =VLOOKUP(B186,'Fire EN 54'!$D$5:$H$508,5,0) -> 6232.00 | F186: 5A | G186: B | J186: =VLOOKUP(B186,'Fire EN 54'!$D$5:$I$508,6,0) -> 3 | K186: - | L186: CH | M186: =VLOOKUP(B186,'Fire EN 54 FX 4,704'!$D$5:$L$500,9,0) -> 8536909599 | N186: =VLOOKUP(B186,'Fire EN 54 FX 4,704'!$D$5:$O$500,12,0) -> 0.197
A187: ROPy adresowalne LSNi
A188: ROP typu FMC-210 i powiązane akcesoria
B189: F.01U.011.956 | C189: FMC-210-DM-G-R | D189: ROP czerwony, wewnętrzny | E189: =VLOOKUP(B189,'Fire EN 54'!$D$5:$H$508,5,0) -> 292.00 | F189: 5A | G189: 1 | J189: =VLOOKUP(B189,'Fire EN 54'!$D$5:$I$508,6,0) -> 3 | K189: - | L189: CN | M189: =VLOOKUP(B189,'Fire EN 54 FX 4,704'!$D$5:$L$500,9,0) -> 8536501999 | N189: =VLOOKUP(B189,'Fire EN 54 FX 4,704'!$D$5:$O$500,12,0) -> 0.237
B190: F.01U.011.958 | C190: FMC-210-DM-H-R | D190: ROP czerwony, zewnętrzny | E190: =VLOOKUP(B190,'Fire EN 54'!$D$5:$H$508,5,0) -> 729.00 | F190: 5A | G190: A | J190: =VLOOKUP(B190,'Fire EN 54'!$D$5:$I$508,6,0) -> 3 | K190: - | L190: CN | M190: =VLOOKUP(B190,'Fire EN 54 FX 4,704'!$D$5:$L$500,9,0) -> 8536501999 | N190: =VLOOKUP(B190,'Fire EN 54 FX 4,704'!$D$5:$O$500,12,0) -> 0.244
B191: F.01U.025.845 | C191: FMC-SPGL-DEIL | D191: Zapasowa szybka do Ręcznych OstrzeGaczy Pożarowych MPC- 5 sztuk | E191: =VLOOKUP(B191,'Fire EN 54'!$D$5:$H$508,5,0) -> 159.00 | F191: 5A | G191: A | J191: =VLOOKUP(B191,'Fire EN 54'!$D$5:$I$508,6,0) -> 3 | K191: - | L191: DE | M191: =VLOOKUP(B191,'Fire EN 54 FX 4,704'!$D$5:$L$500,9,0) -> 70060090 | N191: =VLOOKUP(B191,'Fire EN 54 FX 4,704'!$D$5:$O$500,12,0) -> 0.075
B192: 3.756.630.007 | C192: FMM-KEY-Form G/H | D192: Klucz do Ręcznego Ostrzegacza Pożarowego | E192: =VLOOKUP(B192,'Fire EN 54'!$D$5:$H$508,5,0) -> 8.00 | F192: 5A | G192: A | J192: =VLOOKUP(B192,'Fire EN 54'!$D$5:$I$508,6,0) -> 3 | K192: - | L192: HU | M192: =VLOOKUP(B192,'Fire EN 54 FX 4,704'!$D$5:$L$500,9,0) -> 85319010 | N192: =VLOOKUP(B192,'Fire EN 54 FX 4,704'!$D$5:$O$500,12,0) -> 0.017
A193: ROP typu FMC-420 i powiązane akcesoria
B194: F.01U.012.781 | C194: FMC-420RW-GSGRD | D194: ROP wewnętrzny, czerwony, montaż natynkowy | E194: =VLOOKUP(B194,'Fire EN 54'!$D$5:$H$508,5,0) -> 342.00 | F194: 5A | G194: A | J194: =VLOOKUP(B194,'Fire EN 54'!$D$5:$I$508,6,0) -> 3 | K194: - | L194: CN | M194: =VLOOKUP(B194,'Fire EN 54 FX 4,704'!$D$5:$L$500,9,0) -> 8536501999 | N194: =VLOOKUP(B194,'Fire EN 54 FX 4,704'!$D$5:$O$500,12,0) -> 0.835
B195: F.01U.012.782 | C195: FMC-420RW-GSRRD | D195: ROP wewnętrzny, czerwony, montaż natynkowy, z możliwością kasowania alarmu | E195: =VLOOKUP(B195,'Fire EN 54'!$D$5:$H$508,5,0) -> 342.00 | F195: 5A | G195: A | J195: =VLOOKUP(B195,'Fire EN 54'!$D$5:$I$508,6,0) -> 3 | K195: - | L195: CN | M195: =VLOOKUP(B195,'Fire EN 54 FX 4,704'!$D$5:$L$500,9,0) -> 8536501999 | N195: =VLOOKUP(B195,'Fire EN 54 FX 4,704'!$D$5:$O$500,12,0) -> 0.183
B196: F.01U.012.783 | C196: FMC-420RW-GFGRD | D196: ROP wewnętrzny, czerwony, montaż podtynkowy | E196: =VLOOKUP(B196,'Fire EN 54'!$D$5:$H$508,5,0) -> 342.00 | F196: 5A | G196: A | J196: =VLOOKUP(B196,'Fire EN 54'!$D$5:$I$508,6,0) -> 3 | K196: - | L196: CN | M196: =VLOOKUP(B196,'Fire EN 54 FX 4,704'!$D$5:$L$500,9,0) -> 8536501999 | N196: =VLOOKUP(B196,'Fire EN 54 FX 4,704'!$D$5:$O$500,12,0) -> 0.183
B197: F.01U.012.784 | C197: FMC-420RW-GFRRD | D197: ROP wewnętrzny, czerwony, montaż podtynkowy, z możliwością kasowania alarmu | E197: =VLOOKUP(B197,'Fire EN 54'!$D$5:$H$508,5,0) -> 342.00 | F197: 5A | G197: A | J197: =VLOOKUP(B197,'Fire EN 54'!$D$5:$I$508,6,0) -> 3 | K197: - | L197: CN | M197: =VLOOKUP(B197,'Fire EN 54 FX 4,704'!$D$5:$L$500,9,0) -> 8536501999 | N197: =VLOOKUP(B197,'Fire EN 54 FX 4,704'!$D$5:$O$500,12,0) -> 0.17
B198: F.01U.073.045 | C198: FMC-BEZEL-RD | D198: Ramka montażowa dla FMC-420RW-GFGRD oraz FMC-420RW-GFRRD | E198: =VLOOKUP(B198,'Fire EN 54'!$D$5:$H$508,5,0) -> 141.00 | F198: 5A | G198: A | J198: =VLOOKUP(B198,'Fire EN 54'!$D$5:$I$508,6,0) -> 3 | K198: - | L198: CN | M198: =VLOOKUP(B198,'Fire EN 54 FX 4,704'!$D$5:$L$500,9,0) -> 3926909790 | N198: =VLOOKUP(B198,'Fire EN 54 FX 4,704'!$D$5:$O$500,12,0) -> 0.175
B199: F.01U.013.504 | C199: FMC-SPGL-RW | D199: Opakowanie 5 sztuk zapasowych szybek do FMC-420RW-GSGRD oraz FMC-420RW-GFGRD | E199: =VLOOKUP(B199,'Fire EN 54'!$D$5:$H$508,5,0) -> 235.00 | F199: 5A | G199: A | H199: 1 opakowanie zawiera 5 sztuk. Jeśli potrzebujesz 10 sztuk, zamów 2 | J199: =VLOOKUP(B199,'Fire EN 54'!$D$5:$I$508,6,0) -> 3 | K199: - | L199: CN | M199: =VLOOKUP(B199,'Fire EN 54 FX 4,704'!$D$5:$L$500,9,0) -> 70060090 | N199: =VLOOKUP(B199,'Fire EN 54 FX 4,704'!$D$5:$O$500,12,0) -> 0.07
B200: F.01U.028.227 | C200: FMC-KEY-RW | D200: Kluczyk testowy do ROP | E200: =VLOOKUP(B200,'Fire EN 54'!$D$5:$H$508,5,0) -> 6.00 | F200: 5A | G200: A | J200: =VLOOKUP(B200,'Fire EN 54'!$D$5:$I$508,6,0) -> 3 | K200: - | L200: CN | M200: =VLOOKUP(B200,'Fire EN 54 FX 4,704'!$D$5:$L$500,9,0) -> 3926909790 | N200: =VLOOKUP(B200,'Fire EN 54 FX 4,704'!$D$5:$O$500,12,0) -> 0.001
B201: F.01U.028.194 | C201: FMC-FLAP-RW | D201: Klapka chroniąca przed omyłkową aktywacją (opakowanie 5 sztuk) | E201: =VLOOKUP(B201,'Fire EN 54'!$D$5:$H$508,5,0) -> 86.00 | F201: 5A | G201: C | H201: 1 opakowanie zawiera 5 sztuk. Jeśli potrzebujesz 10 sztuk, zamów 2 | J201: =VLOOKUP(B201,'Fire EN 54'!$D$5:$I$508,6,0) -> 3 | K201: - | L201: CN | M201: =VLOOKUP(B201,'Fire EN 54 FX 4,704'!$D$5:$L$500,9,0) -> 3926909790 | N201: =VLOOKUP(B201,'Fire EN 54 FX 4,704'!$D$5:$O$500,12,0) -> 0.099
... 169 more rows

Sheet Cennik Titanus - pozostałe
A2: W przypadku zamówień mniejszych niż 7000PLN REUP (jednorazowa kwota zamówienia obejmująca tylko poniższe produkty) doliczamy opłatę za transport 200PLN.
A4: SAP | B4: TYP | C4: OPIS | D4: CENA REUP PLN | E4: CENA EUR | F4: CENA REUP PLN | G4: Grupa rabatowa | H4: Informacje dodatkowe
A6: F.01U.363.332 | B6: PL - SF 400 | C6: Special filter 400mm | D6: 4191.00 | E6: =D6/4.165 -> 1006.24 | F6: =ROUND(ROUND(E6*4.704,2),0) -> 4733.00 | G6: 5A
A7: F.01U.363.333 | B7: PL - SF 650 | C7: Special filter 650mm | D7: 5272.00 | E7: =D7/4.165 -> 1265.79 | F7: =ROUND(ROUND(E7*4.704,2),0) -> 5954.00 | G7: 5A
A8: F.01U.363.334 | B8: PL - LF-AD-2 | C8: Filter medium-superfine-coarse-filtermat | D8: 1993.00 | E8: 478.51 | F8: 2251.00 | G8: 5A
A9: F.01U.363.335 | B9: PL - RSV-R25 | C9: Non return valve, spring loaded | D9: 893.00 | E9: 214.41 | F9: 1009.00 | G9: 5A
A10: F.01U.363.336 | B10: PL - KA-1 | C10: Steam trap | D10: 2328.00 | E10: 558.94 | F10: 2629.00 | G10: 5A
A11: F.01U.363.337 | B11: PL - AK-2,0 | C11: Airflow 2,0mm reducer for deep freeze | D11: 93.00 | E11: 22.33 | F11: 105.00 | G11: 5A | H11: Minimalne zamówienie paczka 10 sztuk lub wielokrotność 10. Jeżeli potrzebujesz 30 sztuk zamawiasz 30
A12: F.01U.363.338 | B12: PL - AK-2,5 | C12: Airflow 2,5mm reducer for deep freeze | D12: 93.00 | E12: 22.33 | F12: 105.00 | G12: 5A | H12: Minimalna wielkość zamówienia 10 sztuk, cena za sztukę. Zamawiać 10 lub wielokrotność 10.
A13: F.01U.363.339 | B13: PL - AK-3,0 | C13: Airflow 3,0mm reducer for deep freeze | D13: 93.00 | E13: 22.33 | F13: 105.00 | G13: 5A | H13: Minimalna wielkość zamówienia 10 sztuk, cena za sztukę. Zamawiać 10 lub wielokrotność 10.
A14: F.01U.363.340 | B14: PL - AK-3,2 | C14: Airflow 3,2mm reducer for deep freeze | D14: 93.00 | E14: 22.33 | F14: 105.00 | G14: 5A | H14: Minimalna wielkość zamówienia 10 sztuk, cena za sztukę. Zamawiać 10 lub wielokrotność 10.
A15: F.01U.363.341 | B15: PL - AK-3,4 | C15: Airflow 3,4mm reducer for deep freeze | D15: 93.00 | E15: 22.33 | F15: 105.00 | G15: 5A | H15: Minimalna wielkość zamówienia 10 sztuk, cena za sztukę. Zamawiać 10 lub wielokrotność 10.
A16: F.01U.363.342 | B16: PL - AK-3,6 | C16: Airflow 3,6mm reducer for deep freeze | D16: 93.00 | E16: 22.33 | F16: 105.00 | G16: 5A | H16: Minimalna wielkość zamówienia 10 sztuk, cena za sztukę. Zamawiać 10 lub wielokrotność 10.
A17: F.01U.363.343 | B17: PL - AK-3,8 | C17: Airflow 3,8mm reducer for deep freeze | D17: 93.00 | E17: 22.33 | F17: 105.00 | G17: 5A | H17: Minimalna wielkość zamówienia 10 sztuk, cena za sztukę. Zamawiać 10 lub wielokrotność 10.
A18: F.01U.363.344 | B18: PL - AK-4,0 | C18: Airflow 4,0mm reducer for deep freeze | D18: 93.00 | E18: 22.33 | F18: 105.00 | G18: 5A | H18: Minimalna wielkość zamówienia 10 sztuk, cena za sztukę. Zamawiać 10 lub wielokrotność 10.
A19: F.01U.363.345 | B19: PL - AK-4,2 | C19: Airflow 4,2mm reducer for deep freeze | D19: 93.00 | E19: 22.33 | F19: 105.00 | G19: 5A | H19: Minimalna wielkość zamówienia 10 sztuk, cena za sztukę. Zamawiać 10 lub wielokrotność 10.
A20: F.01U.363.346 | B20: PL - AK-4,4 | C20: Airflow 4,4mm reducer for deep freeze | D20: 93.00 | E20: 22.33 | F20: 105.00 | G20: 5A | H20: Minimalna wielkość zamówienia 10 sztuk, cena za sztukę. Zamawiać 10 lub wielokrotność 10.
A21: F.01U.363.347 | B21: PL - AK-4,6 | C21: Airflow 4,6mm reducer for deep freeze | D21: 93.00 | E21: 22.33 | F21: 105.00 | G21: 5A | H21: Minimalna wielkość zamówienia 10 sztuk, cena za sztukę. Zamawiać 10 lub wielokrotność 10.
A22: F.01U.363.348 | B22: PL - AK-5,0 | C22: Airflow 5,0mm reducer for deep freeze | D22: 93.00 | E22: 22.33 | F22: 105.00 | G22: 5A | H22: Minimalna wielkość zamówienia 10 sztuk, cena za sztukę. Zamawiać 10 lub wielokrotność 10.
A23: F.01U.363.349 | B23: PL - AK-5,2 | C23: Airflow 5,2mm reducer for deep freeze | D23: 93.00 | E23: 22.33 | F23: 105.00 | G23: 5A | H23: Minimalna wielkość zamówienia 10 sztuk, cena za sztukę. Zamawiać 10 lub wielokrotność 10.
A24: F.01U.363.350 | B24: PL - AK-5,6 | C24: Airflow 5,6mm reducer for deep freeze | D24: 93.00 | E24: 22.33 | F24: 105.00 | G24: 5A | H24: Minimalna wielkość zamówienia 10 sztuk, cena za sztukę. Zamawiać 10 lub wielokrotność 10.
A25: F.01U.363.351 | B25: PL - AK-6,0 | C25: Airflow 6,0mm reducer for deep freeze | D25: 93.00 | E25: 22.33 | F25: 105.00 | G25: 5A | H25: Minimalna wielkość zamówienia 10 sztuk, cena za sztukę. Zamawiać 10 lub wielokrotność 10.
A26: F.01U.363.352 | B26: PL - AK-6,8 | C26: Airflow 6,8mm reducer for deep freeze | D26: 93.00 | E26: 22.33 | F26: 105.00 | G26: 5A | H26: Minimalna wielkość zamówienia 10 sztuk, cena za sztukę. Zamawiać 10 lub wielokrotność 10.
A27: F.01U.363.353 | B27: PL - AK-7 | C27: Airflow 7,0mm reducer for deep freeze | D27: 93.00 | E27: 22.33 | F27: 105.00 | G27: 5A | H27: Minimalna wielkość zamówienia 10 sztuk, cena za sztukę. Zamawiać 10 lub wielokrotność 10.
A28: F.01U.363.354 | B28: PL - AK-C | C28: Plastic clip for airflow reducer | D28: 64.00 | E28: 15.37 | F28: 72.00 | G28: 5A | H28: Minimalna wielkość zamówienia 10 sztuk, cena za sztukę. Zamawiać 10 lub wielokrotność 10.
A29: F.01U.363.355 | B29: PL - K.Schell. | C29: Plastic clip | D29: 39.00 | E29: 9.36 | F29: 44.00 | G29: 5A
A30: F.01U.363.356 | B30: PL - CT-1 | C30: Smoke pen | D30: 890.00 | E30: 213.69 | F30: 1005.00 | G30: 5A
A31: F.01U.363.357 | B31: PL - AK-CT-1 | C31: Fixing tool for smoke pen | D31: 267.00 | E31: 64.11 | F31: 302.00 | G31: 5A
A32: F.01U.363.358 | B32: PL - SP-CT-1 | C32: Smoke sticks for smoke pen | D32: 793.00 | E32: 190.40 | F32: 896.00 | G32: 5A
A33: F.01U.363.359 | B33: PL - TP-1-F/a | C33: TITANUS PRO ·SENS ® | D33: 11109.00 | E33: 2667.23 | F33: 12547.00 | G33: 5A | H33: Czujka wymaga dokupienia folii FW-TP-PL
A34: F.01U.363.360 | B34: PL - DM-TP10-LF | C34: Detector module TITANUS PRO·SENS® | D34: 6767.00 | E34: 1624.73 | F34: 7643.00 | G34: 5A
A35: F.01U.363.361 | B35: PL - DM-TP01-LF | C35: Detector module TITANUS PRO·SENS® | D35: 21946.00 | E35: 5269.15 | F35: 24786.00 | G35: 5A
A36: F.01U.363.362 | B36: PL - DM-TP50-LF | C36: Detector module TITANUS PRO·SENS® | D36: 4939.00 | E36: 1185.83 | F36: 5578.00 | G36: 5A
A37: F.01U.363.363 | B37: PL - TT-1-F/a | C37: TITANUS TOP·SENS® | D37: 29074.00 | E37: 6980.55 | F37: 32837.00 | G37: 5A | H37: Czujka wymaga dokupienia folii FW-TP-PL
A38: F.01U.363.364 | B38: PL - DM-TT10-LF | C38: Detector module TITANUS TOP·SENS® | D38: 6767.00 | E38: 1624.73 | F38: 7643.00 | G38: 5A
A39: F.01U.363.365 | B39: PL - DM-TT01-LF | C39: Detector module TITANUS TOP·SENS® | D39: 21946.00 | E39: 5269.15 | F39: 24786.00 | G39: 5A
A40: F.01U.363.366 | B40: PL - DM-TT50-LF | C40: Detector module TITANUS TOP·SENS® | D40: 4939.00 | E40: 1185.83 | F40: 5578.00 | G40: 5A
A41: F.01U.399.609 | B41: FW-TP-PL | C41: Front foil TITANUS | D41: 133.00 | E41: 31.93 | F41: 150.00 | G41: 5A

Sheet Dodatkowa gwarancja (hidden)
A2: Ceny rozszerzeń gwarancji nie podlegają rabatowaniu projektowemu. Przyznawany jest tylko rabat bazowy.
A4: Zamawiasz tyle sztuk, ile sztuk danego produktu chcesz objąć dodatkową gwarancją na 12-msc. Dwukrotność tej ilości, aby zapewnić dodatkowe 24-msc (maksymalna długość gwarancji razem wynosi 5 lat).
A5: SAP | B5: TYP | C5: OPIS | D5: stara CENA REUP PLN | E5: CENA REUP PLN | F5: Grupa rabatowa | G5: Informacje do zamówienia
A6: F.01U.360.726 | B6: EWE-FPA5MPC-IW | C6: 12 msc. rozszrzerzenie gwarancji na kontroler centrali FPA-5000 | D6: 85.00 | E6: =VLOOKUP(A6,'Warranty Extension'!$B$3:$G$20,5,0) -> 103.00 | F6: 5A
A7: F.01U.360.727 | B7: EWE-FPA5FMR-IW | C7: 12 msc. rozszrzenie gwarancji na panel wyniesiony FMR-5000 | D7: 113.00 | E7: =VLOOKUP(A7,'Warranty Extension'!$B$3:$G$20,5,0) -> 137.00 | F7: 5A
A8: F.01U.360.729 | B8: EWE-FPDVC-IW | C8: 12 msc. rozszrzenie gwarancji na moduł wej./wyj. | D8: 14.00 | E8: =VLOOKUP(A8,'Warranty Extension'!$B$3:$G$20,5,0) -> 17.00 | F8: 5A
A9: F.01U.360.730 | B9: EWE-LSN1500-IW | C9: 12 msc. rozszrzenie gwarancji na moduł LSN1500 | D9: 85.00 | E9: =VLOOKUP(A9,'Warranty Extension'!$B$3:$G$20,5,0) -> 103.00 | F9: 5A
A10: F.01U.360.731 | B10: EWE-FPA5MD-IW | C10: 12 msc. rozszrzenie gwarancji na moduł centrali FPA | D10: 28.00 | E10: =VLOOKUP(A10,'Warranty Extension'!$B$3:$G$20,5,0) -> 34.00 | F10: 5A
A11: F.01U.360.733 | B11: EWE-FAP520-IW | C11: 12 msc. rozszrzenie gwarancji na czujnik FAP520 | D11: 28.00 | E11: =VLOOKUP(A11,'Warranty Extension'!$B$3:$G$20,5,0) -> 34.00 | F11: 5A
A12: F.01U.360.735 | B12: EWE-FPC500-IW | C12: 12 msc. rozszrzenie gwarancji na centralę FPC-500 | D12: 57.00 | E12: =VLOOKUP(A12,'Warranty Extension'!$B$3:$G$20,5,0) -> 69.00 | F12: 5A
A13: F.01U.360.736 | B13: EWE-FPTDT-IW | C13: 12 msc. rozszrzenie gwarancji na czujkę FAP-425 | D13: 14.00 | E13: =VLOOKUP(A13,'Warranty Extension'!$B$3:$G$20,5,0) -> 17.00 | F13: 5A
A14: F.01U.360.742 | B14: EWE-UPS2416-IW | C14: 12 msc. rozszrzenie gwarancji na UPS2426 zasilacz centrali | D14: 57.00 | E14: =VLOOKUP(A14,'Warranty Extension'!$B$3:$G$20,5,0) -> 69.00 | F14: 5A
A15: F.01U.360.765 | B15: EWE-AVIOTEC-IW | C15: 12 msc. rozszrzenie gwarancji na Aviotec starlight 8000 | D15: 922.00 | E15: =VLOOKUP(A15,'Warranty Extension'!$B$3:$G$20,5,0) -> 1117.00 | F15: 5A

Sheet Uwagi Ogólne
A2: Wyjaśnienia dotyczące cenników. Opisane tematy:
A3: - Gwarancja
A4: - Klasyfikacja 1- A-B-C
B6: Na czerwono oznaczono produkty nowe.
B7: Na niebiesko oznaczono produkty których cena uległa zmianie.
B8: Na szaro produkty wycofane z cennika
B10: Przy składaniu ofert na produkty zawarte w cenniku należy zweryfikować czy produkt posiada aktualny certyfikat
B11: Certyfikaty do pobrania pod produktami na stronie: www.boschsecurity.pl
A15: Gwarancja
B16: Okres gwarancji zależy od kategori produktu: produkty Bosch (gwarancja - 5 lat), produkty handlowe i AVIOTEC (gwarancja - 3 lata) oraz baterie (gwarancja - 1 rok). W cenniku w kolumnie J znajdziesz odpowiedni okres gwarancji dla każdego produktu. Gwarancja liczona jest automatycznie od daty wystawienia faktury. Szczegóły znajdują się w ogólnych warunkach gwarancji dostępnych na stronie internetowej: https://www.boschsecurity.com/pl/wsparcie-techniczne/obsluga-posprzedazna/warranty/
A22: Klasyfikacja 1-A-B-C
B24: Wprowadzenie
B25: Wszystkie elementy są kategoryzowane do klasy 1, A, B lub C. Produkty 1, A i B są z zasady w magazynie, produkty C
B26: produkowane na zamówienie i dlatego potrzebują nieco czasu. Zamówienia należy składać z klasyfikacją ABC.
B27: Klasyfikacja ta (z czasami oczekiwania) zostanie opublikowana w cenniku. W ten sposób klasyfikacja będzie
B28: znana w całym łańcuchu dostaw (od fabryki po klienta). Ostateczna odpowiedzialność za klasyfikację ABC
B29: spoczywa na menedżerze wspomagania sprzedaży (Sales Support Manager).
B31: Definicja
B32: Poziom usług (RLIP=Requested Line Item Performance) na klase ABC i kryteria klasyfikacji produktu jako
B33: 1, A, B lub C są następujące:
C35: Klasa | D35: Poiom usług | F35: Kryteria
C36: 1 | D36: · Element magazynowy | F36: · Produkt o wysokim i stosunkowo stabilnym popycie
D37: · 98% dostępnych z magazynu, w innych przypadkach należy poczekać | F37: · Produkty sprzedawane głównie przez hurtownie
F38: · Produkty, które ‘dopełniają’ pakiet (np. łączniki)
C39: A | D39: · Element magazynowy | F39: · Produkt o wysokim i stosunkowo stabilnym popycie
D40: · 95% dostępnych z magazynu, w innych przypadkach należy poczekać | F40: · Produkty sprzedawane głównie przez hurtownie
F41: · Produkty, które ‘dopełniają’ pakiet (np. łączniki)
C42: B | D42: · Element magazynowy | F42: · Produkty o rozsądnej, ale wysoce nieprzewidywalnej strukturze popytu.
D43: · 90% dostępnych z magazynu, w innych przypadkach należy poczekać | F43: · Produkty sprzedawane przez kanał VAR
C44: C | D44: Element produkowany na zamówienie | F44: · Produkty o niskiej i nieprzewidywalnej strukturze popytu
C45: (C1/C2) | F45: · Produkty dostosowane do klienta
C46: D | D46: Elementy produkowane na zamowienie | F46: Produkty bez przewidywalnego zapotrzebowania i czasu produkcji
D47: Czas realizacji określany indywidualnie do każdego zamówienia | F47: Produkty projektowane według zamówienia klienta

Sheet Fire EN 54_old (hidden)
A1: Change Indicator | C1: BU Fire reference REUP List Q1-2 / 2025 - V1.3 | G1: Note: Warranty extension available on demand for specific products
B2: 12 NC | C2: CTN | D2: SAPnumber | E2: Description | F2: Discount Category | G2: REUP EMEA valid 01.06.2025 | H2: REUP PL valid 01.06.2025 | I2: Warranty Extension | J2: Status | K2: ABC Code | L2: HS Code | M2: Country of Origin | N2: Spike order | O2: Net weight (kg) | P2: Order Info | Q2: Repair process | R2: Remarks | S2: EAN code single
B3: Modular Panel
B4: Modules FPA-5000 and AVENAR Panels
B5: 7050 000 81384 | C5: BCM-0000-B | D5: F.01U.081.384 | E5: BCM 0000 B Battery Controller Module | F5: 5A | G5: 211.69 | H5: =ROUND(ROUND(G5*4.8,2),0) -> 1,016.00 | I5: on demand | J5: C | K5: 1 | L5: 8537109199 | M5: CN | N5: 148 | O5: 0.342 | Q5: SBN | S5: 800549180153
B6: 6649 981 37262 | C6: ANI 0016 A | D6: 4.998.137.262 | E6: ANI 0016 A 16 Point Annunciator internal | F6: 5A | G6: 127.02 | H6: =ROUND(ROUND(G6*4.8,2),0) -> 610.00 | I6: on demand | J6: C | K6: A | L6: 8537109199 | M6: CN | N6: 7 | O6: 0.26 | Q6: SBN | S6: 8717332205882
B7: 6649 981 37265 | C7: RML 0008 A | D7: 4.998.137.265 | E7: RML 0008 A Relay Low Voltage | F7: 5A | G7: 169.34 | H7: 813.00 | I7: on demand | J7: C | K7: 1 | L7: 8537109199 | M7: CN | N7: 98 | O7: 0.306 | Q7: SBN | S7: 8717332205912
B8: 6649 981 37266 | C8: IOS 0020 A | D8: 4.998.137.266 | E8: IOS 0020 A 20mA Communication Module | F8: 5A | G8: 254.03 | H8: 1,219.00 | I8: on demand | J8: C | K8: 1 | L8: 8537109199 | M8: CN | N8: 15 | O8: 0.594 | Q8: SBN | S8: 8717332205929
B9: 6649 981 37267 | C9: IOS 0232 A | D9: 4.998.137.267 | E9: IOS 0232 A RS232 Communication Module | F9: 5A | G9: 254.03 | H9: 1,219.00 | I9: on demand | J9: C | K9: A | L9: 8537109199 | M9: CN | N9: 4 | O9: 0.233 | Q9: SBN | S9: 8717332205936
B10: 6649 981 37269 | C10: IOP 0008 A | D10: 4.998.137.269 | E10: IOP 0008 A 8 input/output OC module | F10: 5A | G10: 232.51 | H10: 1,116.00 | I10: on demand | J10: C | K10: 1 | L10: 8537109199 | M10: CN | N10: 17 | O10: 0.299 | Q10: SBN | S10: 8717332205943
B11: 6649 981 37270 | C11: CZM 0004 A | D11: 4.998.137.270 | E11: CZM 0004 A 4 Zone Conventional Zone Module | F11: 5A | G11: 459.06 | H11: 2,203.00 | I11: on demand | J11: C | K11: 1 | L11: 8537109199 | M11: CN | N11: 52 | O11: 0.333 | Q11: SBN | S11: 8717332205950
B12: 7050 000 63204 | C12: ENO 0000 B | D12: F.01U.063.204 | E12: ENO 0000 B (External Notification) | F12: 5A | G12: 338.70 | H12: 1,626.00 | I12: on demand | J12: C | K12: 1 | L12: 8537109199 | M12: CN | N12: 79 | O12: 0.27 | Q12: SBN | S12: 800549134231
B13: 6649 981 37274 | C13: RMH 0002 A | D13: 4.998.137.274 | E13: RMH 0002 A 2 Zone Relay high voltage | F13: 5A | G13: 387.52 | H13: 1,860.00 | I13: on demand | J13: C | K13: A | L13: 8537109199 | M13: CN | N13: 15 | O13: 0.31 | Q13: SBN | S13: 8717332205998
B14: 6649 981 37275 | C14: NZM 0002 A | D14: 4.998.137.275 | E14: NZM 0002 A 2 Zone NAC Zone Module | F14: 5A | G14: 338.70 | H14: 1,626.00 | I14: on demand | J14: C | K14: 1 | L14: 8537109199 | M14: CN | N14: 37 | O14: 0.306 | Q14: SBN | S14: 8717332206001
B15: 6650 000 28289 | C15: FPE-5000-UGM | D15: F.01U.028.289 | E15: UGM interface module | F15: 5A | G15: 447.07 | H15: 2,146.00 | I15: no W-Extension | J15: C | K15: A | L15: 8537109199 | M15: CN | N15: 32 | O15: 0.27 | Q15: SBN | S15: 8717332260041
B16: 6649 981 37277 | C16: LSN 0300 A | D16: 4.998.137.277 | E16: LSN 0300 A LSN Module | F16: 5A | G16: 494.82 | H16: 2,375.00 | I16: on demand | J16: C | K16: 1 | L16: 8538909999 | M16: CN | N16: 462 | O16: 0.306 | Q16: SBN | S16: 8717332206018
B17: 6649 981 37278 | C17: LSN 1500 A | D17: 4.998.137.278 | E17: LSN 1500 A, LSN improved Module | F17: 5A | G17: 983.69 | H17: 4,722.00 | I17: on demand | J17: C | K17: A | L17: 8538909999 | M17: CN | N17: 27 | O17: 0.68 | Q17: SBN | S17: 8717332309719
B18: 6649 981 37279 | C18: PRS-0002-C | D18: F.01U.284.903 | E18: PRS-0002-C Panel Rail Short | F18: 5A | G18: 57.43 | H18: 276.00 | I18: no W-Extension | J18: C | K18: A | L18: 8536901000 | M18: CN | N18: 165 | O18: 0.45 | Q18: SBN | S18: 8717332206025
B19: 6649 981 37280 | C19: PRD 0004 A | D19: 4.998.137.280 | E19: PRD 0004 A Panel Rail long | F19: 5A | G19: 143.95 | H19: 691.00 | I19: no W-Extension | J19: C | K19: 1 | L19: 8536901000 | M19: CN | N19: 129 | O19: 0.72 | Q19: SBN | S19: 8717332206032
B20: AVENAR Panel 8000
B21: 7050 003 27090 | C21: FPE-8000-SPC | D21: F.01U.327.090 | E21: Panel controller, standard license | F21: 5A | G21: 822.73 | H21: =ROUND(ROUND(G21*4.8,2),0) -> 3,949.00 | I21: on demand | J21: C | K21: A | L21: 8537109199 | M21: PT | N21: 24 | O21: 3.191 | Q21: SBN | S21: 8717332940417
B22: 7050 003 52441 | C22: FPE-8000-PPC | D22: F.01U.352.441 | E22: Panel controller, premium license | F22: 5A | G22: 1,412.94 | H22: =ROUND(ROUND(G22*4.8,2),0) -> 6,782.00 | I22: on demand | J22: C | K22: A | L22: 8537109199 | M22: PT | N22: 27 | O22: 3.191 | Q22: SBN | S22: 4060039031174
B23: Housings for Frame Installation AVENAR Panel 8000
B24: 6649 981 37290 | C24: CPH 0006 A | D24: 4.998.137.290 | E24: CPH 0006 A Backbox CABT 1 rail | F24: 5A | G24: 504.01 | H24: =ROUND(ROUND(G24*4.8,2),0) -> 2,419.00 | I24: no W-Extension | J24: C | K24: 1 | L24: 8538909999 | M24: CN | N24: 68 | O24: 12.34 | Q24: SBN | S24: 8717332206131
B25: 6649 981 37291 | C25: MPH 0010 A | D25: 4.998.137.291 | E25: MPH 0010 A Backbox CABT 2 Rails | F25: 5A | G25: 635.05 | H25: =ROUND(ROUND(G25*4.8,2),0) -> 3,048.00 | I25: no W-Extension | J25: C | K25: 1 | L25: 8538909999 | M25: CN | N25: 74 | O25: 13.85 | Q25: SBN | S25: 8717332206148
B26: 6649 981 37292 | C26: EPH 0012 A | D26: 4.998.137.292 | E26: EPH 0012 A Backbox 3 rails | F26: 5A | G26: 1,079.08 | H26: 5,180.00 | I26: no W-Extension | J26: C | K26: 1 | L26: 8538909999 | M26: CN | N26: 21 | O26: 14.55 | Q26: SBN | S26: 8717332206155
B27: 6649 981 37293 | C27: PSF 0002 A | D27: 4.998.137.293 | E27: PSF 0002 A Power-small-frame | F27: 5A | G27: 340.52 | H27: 1,635.00 | I27: no W-Extension | J27: C | K27: 1 | L27: 8538909999 | M27: CN | N27: 54 | O27: 7.723 | Q27: SBN | S27: 8717332206162
B28: 6650 005 11306 | C28: PMF 0002 A | D28: F.01U.511.306 | E28: PMF 0002 A Power-medium-frame | F28: 5A | G28: 343.53 | H28: 1,649.00 | I28: no W-Extension | J28: C | K28: A | L28: 3926909790 | M28: CN | N28: 124 | O28: 12.726 | Q28: SBN | S28: 8717332206667
B29: 6649 981 37294 | C29: PMF 0004 A | D29: 4.998.137.294 | E29: PMF 0004 A Power-medium-frame | F29: 5A | G29: 393.67 | H29: 1,890.00 | I29: no W-Extension | J29: C | K29: 1 | L29: 8538909999 | M29: CN | N29: 64 | O29: 12.132 | Q29: SBN | S29: 8717332206179
B30: 6649 981 47119 | C30: USF 0000 A | D30: 4.998.147.119 | E30: USF 0000 A Universal housing-small-frame | F30: 5A | G30: 327.61 | H30: 1,573.00 | I30: no W-Extension | J30: C | K30: A | L30: 8538909999 | M30: CN | N30: 13 | O30: 7.489 | Q30: SBN | S30: 8717332206315
B31: 6649 981 37296 | C31: FBH 0000 A | D31: 4.998.137.296 | E31: FBH 0000 A Mounting frame large | F31: 5A | G31: 171.37 | H31: 823.00 | I31: no W-Extension | J31: C | K31: 1 | L31: 3926909790 | M31: CN | N31: 500 | O31: 4.822 | Q31: SBN | S31: 8717332206193
B32: 6649 981 37297 | C32: FMH 0000 A | D32: 4.998.137.297 | E32: FMH 0000 A Mounting frame medium | F32: 5A | G32: 126.00 | H32: 605.00 | I32: no W-Extension | J32: C | K32: 1 | L32: 3926909790 | M32: CN | N32: 150 | O32: 4.137 | Q32: SBN | S32: 8717332206209
B33: 6649 981 37298 | C33: FSH 0000 A | D33: 4.998.137.298 | E33: FSH 0000 A Mounting frame small | F33: 5A | G33: 100.81 | H33: 484.00 | I33: no W-Extension | J33: C | K33: A | L33: 3926909790 | M33: CN | N33: 20 | O33: 2.362 | Q33: SBN | S33: 8717332206216
B34: 7050 002 66845 | C34: FPM-5000-KMC | D34: F.01U.266.845 | E34: mounting kit for media converter | F34: 5A | G34: 425.92 | H34: 2,044.00 | I34: no W-Extension | J34: C | K34: A | L34: 85189000 | M34: DE | N34: 7 | O34: 0.86 | Q34: SBN | S34: 8717332875269
B35: 6650 005 11305 | C35: HMP 0003 A | D35: F.01U.511.305 | E35: HMP 0003 A, installation plate for mounting frame | F35: 5A | G35: 127.02 | H35: 610.00 | I35: no W-Extension | J35: C | K35: A | L35: 3926909790 | M35: CN | N35: 8 | O35: 0.383 | Q35: SBN | S35: 8717332206650
B36: 6649 981 39498 | C36: FRB 0019 A | D36: 4.998.139.498 | E36: FRB 0019 A 19" Frame Rack X Rails | F36: 5A | G36: 135.48 | H36: 650.00 | I36: no W-Extension | J36: C | K36: A | L36: 7326909890 | M36: CN | N36: 10 | O36: 4.813 | Q36: SBN | S36: 8717332206278
B37: 6649 981 39499 | C37: FRM 0019 A | D37: 4.998.139.499 | E37: FRM 0019 A 19" Frame Rack X Rails | F37: 5A | G37: 105.84 | H37: 508.00 | I37: no W-Extension | J37: C | K37: A | L37: 7326909890 | M37: CN | N37: 4 | O37: 4.778 | Q37: SBN | S37: 8717332206285
B38: 6649 981 39500 | C38: FRS 0019 A | D38: 4.998.139.500 | E38: FRS 0019 A 19" Frame Rack X Rails | F38: 5A | G38: 93.14 | H38: 447.00 | I38: no W-Extension | J38: C | K38: A | L38: 3926909790 | M38: CN | N38: 3 | O38: 3.14 | Q38: SBN | S38: 8717332206292
B39: 6650 005 00374 | C39: FDP 0001 A | D39: F.01U.500.374 | E39: FDP 0001 A Front Dummy cover plate | F39: 5A | G39: 16.93 | H39: 81.00 | I39: no W-Extension | J39: C | K39: 1 | L39: 3926909790 | M39: CN | N39: 737 | O39: 0.1 | Q39: SBN | S39: 8717332206605
B40: 6650 005 13251 | C40: FPO-5000-EB | D40: F.01U.513.251 | E40: FPO-5000-EB earth bar | F40: 5A | G40: 84.68 | H40: 406.00 | I40: no W-Extension | J40: C | K40: A | L40: 7326909890 | M40: CN | N40: 31 | O40: 0.111 | Q40: SBN | S40: 8717332206766
B41: Housings for Wall Mounting AVENAR Panel 8000
B42: 6649 981 37285 | C42: HCP 0006 A | D42: 4.998.137.285 | E42: HCP 0006 A CABT 1 Rail & Common Control | F42: 5A | G42: 423.37 | H42: =ROUND(ROUND(G42*4.8,2),0) -> 2,032.00 | I42: no W-Extension | J42: C | K42: 1 | L42: 8529904900 | M42: CN | N42: 64 | O42: 13.581 | Q42: SBN | S42: 8717332206087
B43: 6649 981 37286 | C43: HBC 0010 A | D43: 4.998.137.286 | E43: HBC 0010 A CABT 2 Rails & Common Control | F43: 5A | G43: 635.05 | H43: =ROUND(ROUND(G43*4.8,2),0) -> 3,048.00 | I43: no W-Extension | J43: C | K43: 1 | L43: 8529904900 | M43: CN | N43: 13 | O43: 17.11 | Q43: SBN | S43: 8717332206094
B44: 6649 981 37287 | C44: HBE 0012 A | D44: 4.998.137.287 | E44: HBE 0012 A CABT 3 Rails | F44: 5A | G44: 1,079.08 | H44: 5,180.00 | I44: no W-Extension | J44: C | K44: A | L44: 8529904900 | M44: CN | N44: 7 | O44: 18.144 | Q44: SBN | S44: 8717332206100
B45: 6649 981 37288 | C45: PSS 0002 A | D45: 4.998.137.288 | E45: PSS 0002 A CABT 1 power Slot 2 batterys | F45: 5A | G45: 468.02 | H45: 2,247.00 | I45: no W-Extension | J45: C | K45: A | L45: 3926909790 | M45: CN | N45: 8 | O45: 7.452 | Q45: SBN | S45: 8717332206117
B46: 6649 981 37289 | C46: PSB 0004 A | D46: 4.998.137.289 | E46: PSB 0004 A CABT 1 power Slot 4 batterys | F46: 5A | G46: 635.05 | H46: 3,048.00 | I46: no W-Extension | J46: C | K46: A | L46: 3926909790 | M46: CN | N46: 10 | O46: 12.511 | Q46: SBN | S46: 8717332206124
B47: 6650 005 11304 | C47: FRK 0019 A | D47: F.01U.511.304 | E47: FRK 0019 A 19 inches fixing kit | F47: 5A | G47: 281.85 | H47: 1,353.00 | I47: no W-Extension | J47: C | K47: A | L47: 7326909890 | M47: DE | N47: 1 | O47: 2.34 | Q47: SBN | S47: 8717332263493
B48: 7050 002 66844 | C48: FPM-5000-KES | D48: F.01U.266.844 | E48: FPM-5000-KES mounting kit for Ethernet switch | F48: 5A | G48: 751.61 | H48: 3,608.00 | I48: no W-Extension | J48: C | K48: A | L48: 8302500000 | M48: DE | N48: 5 | O48: 2.77 | Q48: SBN | S48: 8717332875252
B49: 7050 002 65641 | C49: EL1141-10B-BH | D49: F.01U.265.641 | E49: EL1141-10B-BH Ethernet Fibre Optics Converter MM | F49: 5A | G49: 907.80 | H49: 4,357.00 | I49: no W-Extension | J49: C | K49: A | L49: 8504409090 | M49: TW | N49: 31 | O49: 0.58 | Q49: SBN | S49: 8717332871018
B50: 7050 002 65643 | C50: EL1141-B0B-BH | D50: F.01U.265.643 | E50: EL1141-10B-BH Ethernet Fibre Optics Converter SM | F50: 5A | G50: 1,261.33 | H50: 6,054.00 | I50: no W-Extension | J50: C | K50: A | L50: 8504409090 | M50: TW | N50: 23 | O50: 0.58 | Q50: SBN | S50: 8717332871032
B51: Power Supplies AVENAR Panel 8000
B52: 6650 005 00367 | C52: UPS 2416 A | D52: F.01U.500.367 | E52: UPS 2416 Power Supply 24V/6A NAC sync | F52: 5A | G52: 414.90 | H52: =ROUND(ROUND(G52*4.8,2),0) -> 1,992.00 | I52: on demand | J52: C | K52: 1 | L52: 8504403090 | M52: CN | N52: 1250 | O52: 0.97 | Q52: SBN | S52: 8717332206582
B53: 6649 981 53243 | C53: CPB 0000 A | D53: 4.998.153.243 | E53: CPB 0000 A Cable set P-Supply to BC | F53: 5A | G53: 21.17 | H53: =ROUND(ROUND(G53*4.8,2),0) -> 102.00 | I53: no W-Extension | J53: C | K53: A | L53: 8544429090 | M53: CN | N53: 700 | O53: 0.198 | Q53: SBN | S53: 8717332206520
B54: 7050 000 78858 | C54: FPO-5000-PSB1 | D54: F.01U.078.858 | E54: PSB 1001 A P-Supply Bracket US single | F54: 5A | G54: 93.14 | H54: 447.00 | I54: no W-Extension | J54: C | K54: A | L54: 3926909790 | M54: CN | N54: 12 | O54: 1.03 | Q54: SBN | S54: 8717332342655
B55: 7050 000 78860 | C55: FPO-5000-PSB-CH | D55: F.01U.078.860 | E55: CPB 1002 A P-Supply Bracket CH US | F55: 5A | G55: 118.55 | H55: 569.00 | I55: no W-Extension | J55: C | K55: 1 | L55: 3926909790 | M55: CN | N55: 375 | O55: 0.798 | Q55: SBN | S55: 8717332342679
B56: 705000398453 | C56: FPP-3000 | D56: F.01U.398.453 | E56: Power Supply | F56: 5A | G56: 572.12 | H56: 2,746.00 | I56: no W-Extension | J56: C | K56: A | L56: 85044055 | M56: PL | N56: 23 | O56: 11.000 | Q56: SBN | S56: 4060039146991
B57: 6650 005 11307 | C57: FPP 5000 | D57: F.01U.511.307 | E57: FPP 5000, AUX power supply kit | F57: 5A | G57: 1,151.56 | H57: 5,527.00 | I57: no W-Extension | J57: C | K57: B | L57: 8504900500 | M57: NL | N57: 20 | O57: 20.7 | Q57: RC | S57: 8717332206674
B58: 7050 001 61679 | C58: FPP-5000-TI13 | D58: F.01U.161.679 | E58: LSN interface for FPP-5000 | F58: 5A | G58: 171.00 | H58: 821.00 | I58: on demand | J58: C | K58: A | L58: 8531900000 | M58: CN | N58: 111 | O58: 0.306 | S58: 8717332754281
B59: Cable Sets FPA-5000 / AVENAR Panel 8000
B60: 6649 981 53244 | C60: CBB 0000 A | D60: 4.998.153.244 | E60: CBB 0000 A Cable set BC to Battery | F60: 5A | G60: 27.52 | H60: =ROUND(ROUND(G60*4.8,2),0) -> 132.00 | I60: no W-Extension | J60: C | K60: 1 | L60: 8544429090 | M60: CN | N60: 788 | O60: 0.198 | Q60: SBN | S60: 8717332206537
B61: 7050 003 49391 | C61: FPE-8000-CRP | D61: F.01U.349.391 | E61: Cable set redundant panel controller | F61: 5A | G61: 71.54 | H61: =ROUND(ROUND(G61*4.8,2),0) -> 343.00 | I61: no W-Extension | J61: C | K61: A | L61: 8544429090 | M61: PT | N61: 13 | O61: 0.642 | Q61: SBN | S61: 4060039022608
B62: 7050 003 49392 | C62: FPE-8000-CRK | D62: F.01U.349.392 | E62: Cable redundant keypad | F62: 5A | G62: 42.92 | H62: 206.00 | I62: no W-Extension | J62: C | K62: A | L62: 8544429090 | M62: PT | N62: 25 | O62: 0.258 | Q62: SBN | S62: 4060039022615
B63: Display Panels
B64: 6649 980 00922 | C64: BAT 100 LSN | D64: 4.998.000.922 | E64: BAT100 LSN, Remote display panel | F64: 5A | G64: 566.50 | H64: =ROUND(ROUND(G64*4.8,2),0) -> 2,719.00 | I64: on demand | J64: C | K64: A | L64: 8537109199 | M64: DE | N64: 3 | O64: 2.61 | Q64: SBN | R64: One ATG-420-LSNi is included | S64: 8717332004584
B65: 8717332915347 | C65: ATB 420 LSNi | D65: F.01U.284.611 | E65: ATB 420 LSNi for the connection to location map tableaus | F65: 5A | G65: 346.34 | H65: =ROUND(ROUND(G65*4.8,2),0) -> 1,662.00 | I65: on demand | J65: C | K65: A | L65: 8538909189 | M65: DE | N65: 11 | O65: 0.07 | Q65: SBN | S65: 8717332915347
B66: 6649 980 01941 | C66: BAT100-LABELS | D66: 4.998.001.941 | E66: BS labeling strips for BAT 100 | F66: 5A | G66: 85.50 | H66: 410.00 | I66: no W-Extension | J66: C | K66: C | L66: 3919908099 | M66: DE | N66: 2 | O66: 0.266 | Q66: SBN | S66: 8717332019816
B67: 8531901000 | C67: ATG 420 LSNI | D67: F.01U.284.610 | E67: ATG 420 LSNi display module | F67: 5A | G67: 346.34 | H67: 1,662.00 | I67: on demand | J67: C | K67: C | L67: 8531209590 | M67: CN | N67: 9 | O67: 0.055 | Q67: SBN | S67: 8717332915330
B68: not in MFG | C68: ATG100-LABEL | D68: 3.902.102.662 | E68: BS labeling membranes ATG 100 | F68: 5A | G68: 46.04 | H68: 221.00 | I68: no W-Extension | J68: C | K68: C | L68: 3919908099 | M68: DE | N68: 10 | O68: 0.349 | Q68: -
B69: Accessories FPA-5000 / AVENAR Panel 8000
B70: 6650 005 00374 | C70: FDP 0001 A | D70: F.01U.500.374 | E70: FDP 0001 A Front Dummy cover plate | F70: 5A | G70: 16.93 | H70: =ROUND(ROUND(G70*4.8,2),0) -> 81.00 | I70: no W-Extension | J70: C | K70: 1 | L70: 3926909790 | M70: CN | N70: 737 | O70: 0.1 | Q70: SBN | S70: 8717332206605
B71: 6650 005 00442 | C71: SIV 28 | D71: F.01U.500.442 | E71: SIV 28V Fuse protected distributor | F71: 5A | G71: 115.56 | H71: =ROUND(ROUND(G71*4.8,2),0) -> 555.00 | I71: no W-Extension | J71: C | K71: A | L71: 8531900000 | M71: DE | N71: 5 | O71: 0.22 | Q71: SBN | S71: 8717332212309
C72: ESP-EF01U390166 | D72: F.01U.390.166 | E72: SPA Cable NTC-Resistor Magic-Panel | F72: 5A | G72: 57.48 | H72: 276.00 | I72: no W-Extension | J72: C | K72: A | L72: 85334010 | M72: China | O72: 0.001 | Q72: No repair | S72: 4060039122308
B73: Remote Keypad for AVENAR Panel Series
B74: 7050 003 27092 | C74: FPE-8000-FMR | D74: F.01U.327.092 | E74: Remote Keypad | F74: 5A | G74: 1,448.71 | H74: =ROUND(ROUND(G74*4.8,2),0) -> 6,954.00 | I74: on demand | J74: C | K74: A | L74: 8537109199 | M74: PT | N74: 22 | O74: 3.121 | Q74: SBN | S74: 8717332940431
B75: AVENAR Panel 2000 Series
B76: 7050 003 27091 | C76: FPE-2000-SPC | D76: F.01U.327.091 | E76: Panel controller AVENAR panel 2000, standard license | F76: 5A | G76: 822.73 | H76: =ROUND(ROUND(G76*4.8,2),0) -> 3,949.00 | I76: on demand | J76: C | K76: A | L76: 8537109199 | M76: PT | N76: 28 | O76: 3.191 | Q76: SBN | S76: 8717332940424
B77: 7050 003 52443 | C77: FPE-2000-PPC | D77: F.01U.352.443 | E77: Panel controller AVENAR panel 2000, premium license | F77: 5A | G77: 1,412.94 | H77: =ROUND(ROUND(G77*4.8,2),0) -> 6,782.00 | I77: on demand | J77: C | K77: A | L77: 8537109199 | M77: PT | N77: 18 | O77: 3.191 | Q77: SBN | S77: 4060039031181
B78: 7050 003 83886 | C78: FPA-2000-SWM | D78: F.01U.383.886 | E78: Panel kit standard license, wall-mount | F78: 5A | G78: 1,721.76 | H78: =ROUND(ROUND(G78*4.8*1.05,2),0) -> 8,678.00 | I78: no W-Extension | J78: C | K78: A | L78: 8537109199 | M78: PT | N78: 0 | O78: 19.7 | Q78: SBN | S78: 4060039107411
B79: 7050 003 83887 | C79: FPA-2000-SFM | D79: F.01U.383.887 | E79: Panel kit standard license, frame-mount | F79: 5A | G79: 1,851.22 | H79: =ROUND(ROUND(G79*4.8*1.05,2),0) -> 9,330.00 | I79: no W-Extension | J79: C | K79: A | L79: 8537109199 | M79: PT | N79: 5 | O79: 22.8 | Q79: SBN | S79: 4060039107428
B80: 7050 003 83888 | C80: FPA-2000-PWM | D80: F.01U.383.888 | E80: Panel kit premium license, wall-mount | F80: 5A | G80: 2,258.95 | H80: =ROUND(ROUND(G80*4.8*1.05,2),0) -> 11,385.00 | I80: no W-Extension | J80: C | K80: A | L80: 8537109199 | M80: PT | N80: 0 | O80: 19.7 | Q80: SBN | S80: 4090039107435
B81: 7050 003 83893 | C81: FPA-2000-PFM | D81: F.01U.383.893 | E81: Panel kit premium license, frame-mount | F81: 5A | G81: 2,382.72 | H81: =ROUND(ROUND(G81*4.8*1.05,2),0) -> 12,009.00 | I81: no W-Extension | J81: C | K81: A | L81: 8537109199 | M81: PT | N81: 2 | O81: 22.8 | Q81: SBN | S81: 4060039107442
B82: BACNet Server License
A83: 2025-05-07 | B83: 7050 004 28678 | C83: FSM8000-BNSL | D83: F.01U.428.678 | E83: BACnet server license 5 years | F83: n.a. | G83: 2,000.00 | H83: =ROUND(ROUND(G83*4.8,2),0) -> 9,600.00 | I83: no W-Extension | K83: C | L83: n.a. | M83: DE | O83: n.a. | Q83: n.a. | R83: Available as of 01.06.2025 | S83: 4060039205827
A84: 2025-05-07 | B84: 7051 004 28679 | C84: FSM8000-BNSTL | D84: F.01U.428.679 | E84: BACnet server trial license 30 days | F84: n.a. | G84: 45.00 | H84: =ROUND(ROUND(G84*4.8,2),0) -> 216.00 | I84: no W-Extension | K84: C | L84: n.a. | M84: DE | O84: n.a. | Q84: n.a. | R84: Available as of 01.06.2025 | S84: 4060039205834
B85: Remote Serive
A86: 2025-05-07 | B86: n.a. | C86: FPO-GATE | D86: F.01U.433.333 | E86: Secure Network Gateway | F86: 5A | G86: 937.50 | H86: =ROUND(ROUND(G86*4.8,2),0) -> 4,500.00 | I86: no W-Extension | J86: C | K86: A | L86: 8517620000 | M86: DE | O86: 1.127 | R86: Available as of 15.06.2025 the latest | S86: 4060039034250
A87: 2025-05-07 | B87: n.a. | C87: FSL-BASIC-S | D87: F.01U.435.428 | E87: NEXOSPACE FSE basic license S | F87: 5A | G87: 593.75 | H87: =ROUND(ROUND(G87*4.8,2),0) -> 2,850.00 | I87: no W-Extension | J87: C | K87: n.a. | L87: 4911990000 | M87: DE | O87: 0 | P87: Annual connectivity license <254 points | Q87: No physical product | R87: Available as of 01.06.2025 | S87: 4060039104076
A88: 2025-05-07 | B88: n.a. | C88: FSL-BASIC-M | D88: F.01U.435.594 | E88: NEXOSPACE FSE basic license M | F88: 5A | G88: 1,531.25 | H88: 7,350.00 | I88: no W-Extension | J88: C | K88: n.a. | L88: 4911990000 | M88: DE | O88: 0 | P88: Annual connectivity license 254 - 2000 points | Q88: No physical product | R88: Available as of 01.06.2025 | S88: 4060039112699
A89: 2025-05-07 | B89: n.a. | C89: FSL-BASIC-L | D89: F.01U.435.590 | E89: NEXOSPACE FSE basic license L | F89: 5A | G89: 3,750.00 | H89: 18,000.00 | I89: no W-Extension | J89: C | K89: n.a. | L89: 4911990000 | M89: DE | O89: 0 | P89: Annual connectivity license > 2000 points | Q89: No physical product | R89: Available as of 01.06.2025 | S89: 4060039111692
A90: 2025-05-07 | B90: 7050 003 09110 | C90: FPA-REMOTE-GATEWAY | D90: F.01U.360.934 | E90: Secure Network Gateway | F90: 5A | G90: 770.65 | H90: =ROUND(ROUND(G90*4.8,2),0) -> 3,699.00 | I90: no W-Extension | J90: C | K90: A | L90: 8517620000 | M90: DE | N90: 3 | O90: 0.87 | R90: Stopp of sales and delivery by 01.06.2025 | S90: 8717332977307
B91: Fire Monitoring System
B92: 7050 003 14991 | C92: FSM-5000 | D92: F.01U.314.991 | E92: Fire Monitoring System 5000 | F92: 5A | G92: 5,122.49 | H92: =ROUND(ROUND(G92*4.8,2),0) -> 24,588.00 | I92: no W-Extension | J92: C | K92: C | L92: 4911990000 | M92: IT | N92: 0.000 | O92: 0.001 | P92: Sold only in SEO. Outphased for rest EMEA | Q92: No repair | R92: Sold only in SEO. Outphased for rest EMEA | S92: 8717332995257
B93: 7050 003 14990 | C93: FSM-2500 | D93: F.01U.314.990 | E93: Fire Monitoring System 2500 | F93: 5A | G93: 3,472.88 | H93: =ROUND(ROUND(G93*4.8,2),0) -> 16,670.00 | I93: no W-Extension | J93: C | K93: C | L93: 4911990000 | M93: IT | N93: 0 | O93: 0.001 | P93: Sold only in SEO. Outphased for rest EMEA | Q93: No repair | R93: Sold only in SEO. Outphased for rest EMEA | S93: 8717332995240
C94: FSM-10K | D94: F.01U.374.278 | E94: Fire Monitoring System 10000 | F94: 5A | G94: 9,261.00 | H94: 44,453.00 | I94: no W-Extension | J94: C | K94: C | L94: 4911990000 | M94: IT | O94: 0.001 | P94: Cannot be sold in SEO | Q94: No repair | R94: Cannot be sold in SEO | S94: 4060039091192
C95: FSM-5000 | D95: F.01U.374.695 | E95: Fire Monitoring System 5000 | F95: 5A | G95: 5,122.49 | H95: 24,588.00 | I95: no W-Extension | J95: C | K95: C | L95: 4911990000 | M95: IT | N95: 0.000 | O95: 0.001 | P95: Cannot be sold in SEO | Q95: No repair | R95: Cannot be sold in SEO | S95: 4060039091437
C96: FSM-2500 | D96: F.01U.374.694 | E96: Fire Monitoring System 2500 | F96: 5A | G96: 3,472.88 | H96: 16,670.00 | I96: no W-Extension | J96: C | K96: C | L96: 4911990000 | M96: IT | N96: 0.000 | O96: 0.001 | P96: Cannot be sold in SEO | Q96: No repair | R96: Cannot be sold in SEO | S96: 4060039091420
B97: 7050 003 14992 | C97: FSM-5000-EP | D97: F.01U.314.992 | E97: Evolution pack FSM-5000 | F97: 5A | G97: 499.86 | H97: 2,399.00 | I97: no W-Extension | J97: C | K97: C | L97: 4911990000 | M97: IT | N97: 0 | O97: 0.001 | Q97: No repair | S97: 8717332995264
B98: 7050 003 15067 | C98: FSM-2500-EP | D98: F.01U.315.067 | E98: Evolution pack FSM-2500 | F98: 5A | G98: 349.05 | H98: 1,675.00 | I98: no W-Extension | J98: C | K98: C | L98: 4911990000 | M98: IT | N98: 0 | O98: 0.001 | Q98: No repair | S98: 8717332995288
B99: Conventional panels
B100: 705000164791 | C100: FPC-500-2 | D100: F.01U.164.791 | E100: 2 zone conventional fire panel | F100: 5A | G100: 381.77 | H100: =ROUND(ROUND(G100*4.8,2),0) -> 1,833.00 | I100: on demand | J100: C | K100: A | L100: 8531103000 | M100: CN | N100: 15 | O100: 2.2 | S100: 8717332759385
B101: 705000164792 | C101: FPC-500-4 | D101: F.01U.164.792 | E101: 4 zone conventional fire panel | F101: 5A | G101: 470.55 | H101: =ROUND(ROUND(G101*4.8,2),0) -> 2,259.00 | I101: on demand | J101: C | K101: A | L101: 8531103000 | M101: CN | N101: 20 | O101: 3.456 | S101: 8717332759392
B102: 705000164793 | C102: FPC-500-8 | D102: F.01U.164.793 | E102: 8 zone conventional fire panel | F102: 5A | G102: 588.93 | H102: 2,827.00 | I102: on demand | J102: C | K102: A | L102: 8531103000 | M102: CN | N102: 14 | O102: 3.42 | S102: 8717332759408
B103: 705000164794 | C103: FPC-500-OCEXT | D103: F.01U.164.794 | E103: Optional open collector board | F103: 5A | G103: 44.40 | H103: 213.00 | I103: no W-Extension | J103: C | K103: A | L103: 8531900000 | M103: CN | N103: 1 | O103: 0.1 | S103: 8717332759415
B104: 705000164795 | C104: FPC-500-RLYEXT | D104: F.01U.164.795 | E104: Optional relay board | F104: 5A | G104: 82.86 | H104: 398.00 | I104: no W-Extension | J104: C | K104: A | L104: 8531900000 | M104: CN | N104: 10 | O104: 0.1 | S104: 8717332759422
B105: 705000164844 | C105: FPC-500-KEY | D105: F.01U.164.844 | E105: Optional access key level 2 | F105: 5A | G105: 29.60 | H105: 142.00 | I105: no W-Extension | J105: C | K105: A | L105: 3926909790 | M105: CN | N105: 8 | O105: 0.01 | S105: 8717332759859
B106: Batteries
B107: Batteries
C108: IPS-BAT12V-12AH | D108: F.01U.579.778 | E108: Battery 12 V / 10 - 12 Ah | G108: Purchase via BU SC | O108: 3.730
C109: IPS-BAT12V-27AH | D109: F.01U.579.781 | E109: Battery 12 V / 24 - 27 Ah | G109: Purchase via BU SC | O109: 7.96
C110: IPS-BAT12V-45AH | D110: F.01U.579.782 | E110: Battery 12 V / 38 - 45 Ah | G110: Purchase via BU SC | O110: 13.520
B111: LSN Detectors
B112: 500 Series
B113: 6650 005 10149 | C113: FAP-O 520 | D113: F.01U.510.149 | E113: FAP-O 520 opt smoke detector LSNi white | F113: 5A | G113: 197.17 | H113: =ROUND(ROUND(G113*4.8,2),0) -> 946.00 | I113: on demand | J113: C | K113: A | L113: 8531103000 | M113: CN | N113: 112 | O113: 0.170 | Q113: SBN | S113: 8717332265121
B114: 6650 005 10151 | C114: FAP-OC 520 | D114: F.01U.510.151 | E114: FAP-OC 520 Multisensor detector LSNi wh | F114: 5A | G114: 315.55 | H114: =ROUND(ROUND(G114*4.8,2),0) -> 1,515.00 | I114: on demand | J114: C | K114: A | L114: 8531103000 | M114: CN | N114: 23 | O114: 0.180 | Q114: SBN | S114: 8717332265138
B115: 6650 005 10161 | C115: FAP-O 520-P | D115: F.01U.510.161 | E115: FAP-O 520-P opt smoke detector LSNi tr | F115: 5A | G115: 223.47 | H115: 1,073.00 | I115: on demand | J115: C | K115: A | L115: 8531103000 | M115: CN | N115: 20 | O115: 0.170 | Q115: SBN | S115: 8717332265190
B116: 6650 005 10162 | C116: FAP-OC 520-P | D116: F.01U.510.162 | E116: FAP-OC 520-P Multisens detector LSNi tr | F116: 5A | G116: 322.26 | H116: 1,547.00 | I116: on demand | J116: C | K116: A | L116: 8531103000 | M116: CN | N116: 15 | O116: 0.180 | Q116: SBN | S116: 8717332265213
B117: AVENAR Detector 4000
B118: 7050 003 07726 | C118: FAP-425-O-R | D118: F.01U.307.726 | E118: Optical with Rotary-Switches | F118: 5A | G118: 87.23 | H118: =ROUND(ROUND(G118*4.8*0.72,2),0) -> 301.00 | I118: on demand | J118: C | K118: A | L118: 8531103000 | M118: PT | N118: 12911 | O118: 0.077 | Q118: SBN | S118: 8717332972968
B119: 7050 003 07728 | C119: FAP-425-OT-R | D119: F.01U.307.728 | E119: Optical/Thermal with Rotary-Switches | F119: 5A | G119: 101.21 | H119: =ROUND(ROUND(G119*4.8*0.72,2),0) -> 350.00 | I119: on demand | J119: C | K119: A | L119: 8531103000 | M119: PT | N119: 10961 | O119: 0.077 | Q119: SBN | S119: 8717332972982
B120: 7050 003 07732 | C120: FAH-425-T-R | D120: F.01U.307.732 | E120: Heat with Rotary-Switches | F120: 5A | G120: 79.47 | H120: =ROUND(ROUND(G120*4.8*0.82,2),0) -> 313.00 | I120: on demand | J120: C | K120: A | L120: 8531103000 | M120: PT | N120: 1050 | O120: 0.077 | Q120: SBN | S120: 8717332973026
B121: 7050 003 07729 | C121: FAP-425-DO-R | D121: F.01U.307.729 | E121: Dual-Optical with Rotary-Switches | F121: 5A | G121: 94.27 | H121: =ROUND(ROUND(G121*4.8*0.72,2),0) -> 326.00 | I121: on demand | J121: C | K121: A | L121: 8531103000 | M121: PT | N121: 2238 | O121: 0.077 | Q121: SBN | S121: 8717332972999
B122: 7050 003 07730 | C122: FAP-425-DOT-R | D122: F.01U.307.730 | E122: Dual-Optical/Thermal with Rotary-Switches | F122: 5A | G122: 109.17 | H122: =ROUND(ROUND(G122*4.8*0.72,2),0) -> 377.00 | I122: on demand | J122: C | K122: A | L122: 8531103000 | M122: PT | N122: 2407 | O122: 0.077 | Q122: SBN | S122: 8717332973002
B123: 7050 003 07731 | C123: FAP-425-DOTC-R | D123: F.01U.307.731 | E123: Dual-Optical/Thermal/Chemical with Rotary-Switches | F123: 5A | G123: 182.43 | H123: =ROUND(ROUND(G123*4.8*0.75,2),0) -> 657.00 | I123: on demand | J123: C | K123: A | L123: 8531103000 | M123: PT | N123: 275 | O123: 0.082 | Q123: SBN | S123: 8717332973019
B124: 7050 003 95473 | C124: FAP-425-DOTCO-R | D124: F.01U.395.473 | E124: Detector dual-optical/thermal/CO | F124: 5A | G124: 182.43 | H124: =ROUND(ROUND(G124*4.8*0.75,2),0) -> 657.00 | I124: on demand | J124: C | K124: A | L124: 8531103000 | M124: PT | O124: 0,082 | Q124: SBN | S124: 4060039133199
B125: 7050 003 07725 | C125: FAP-425-O | D125: F.01U.307.725 | E125: Optical without Rotary-Switches | F125: 5A | G125: 84.35 | H125: =ROUND(ROUND(G125*4.8*0.72,2),0) -> 292.00 | I125: on demand | J125: C | K125: A | L125: 8531103000 | M125: PT | N125: 4365 | O125: 0.075 | Q125: SBN | S125: 8717332972951
B126: 7050 003 07727 | C126: FAP-425-OT | D126: F.01U.307.727 | E126: Optical/Thermal without Rotary-Switches | F126: 5A | G126: 99.11 | H126: =ROUND(ROUND(G126*4.8*0.72,2),0) -> 343.00 | I126: on demand | J126: C | K126: A | L126: 8531103000 | M126: PT | N126: 1688 | O126: 0.075 | Q126: SBN | S126: 8717332972975
B127: Accessories 500/400/300 series detectors
B128: Accessories for FAP-500 Series
B129: 6650 005 08713 | C129: FAA-500-CB | D129: F.01U.508.713 | E129: FAA-500-CB, built-in housing for concrete ceiling | F129: 5A | G129: 70.80 | H129: =ROUND(ROUND(G129*4.8,2),0) -> 340.00 | I129: no W-Extension | J129: C | K129: B | L129: 3926909790 | M129: DE | N129: 9 | O129: 0.2 | Q129: - | S129: 4060039033000
B130: 6649 981 51297 | C130: FAA-500 | D130: 4.998.151.297 | E130: FAA500, base LSN | F130: 5A | G130: 52.50 | H130: =ROUND(ROUND(G130*4.8,2),0) -> 252.00 | I130: no W-Extension | J130: C | K130: A | L130: 8536909599 | M130: CN | N130: 174 | O130: 0.25 | Q130: SBN | S130: 8717332097494
B131: 6649 981 51302 | C131: FAA-500-BB | D131: 4.998.151.302 | E131: FAA-500-BB, mount back box | F131: 5A | G131: 14.91 | H131: 72.00 | I131: no W-Extension | J131: C | K131: A | L131: 3926909790 | M131: CN | N131: 192 | O131: 0.166 | Q131: SBN | S131: 8717332097487
B132: 6649 981 51296 | C132: FAA-500-TR-P | D132: 4.998.151.296 | E132: FAA-500-TR-P, transperant iris with color insert | F132: 5A | G132: 23.55 | H132: 113.00 | I132: no W-Extension | J132: C | K132: A | L132: 3926909790 | M132: CN | N132: 20 | O132: 0.049 | Q132: SBN | S132: 8717332097562
B133: 6649 981 51295 | C133: FAA-500-TR-W | D133: 4.998.151.295 | E133: Trim ring for 500 Series, iris white | F133: 5A | G133: 5.92 | H133: 28.00 | I133: no W-Extension | J133: C | K133: A | L133: 3926909790 | M133: CN | N133: 151 | O133: 0.03 | Q133: SBN | S133: 8717332097555
B134: 6650 005 10166 | C134: FAA-500-SB-H | D134: F.01U.510.166 | E134: FAA-500-SB-H Surface mount back box with damp room seal | F134: 5A | G134: 13.02 | H134: 63.00 | I134: no W-Extension | J134: C | K134: A | L134: 3926909790 | M134: CN | N134: 38 | O134: 0.266 | Q134: SBN | S134: 8717332204748
B135: 6650 005 10028 | C135: FAA-500-SPRING | D135: F.01U.510.028 | E135: FAA-500-SPRING for concrete / wooden ceilings | F135: 5A | G135: 9.07 | H135: 44.00 | I135: no W-Extension | J135: C | K135: A | L135: 7320208990 | M135: CN | N135: 10 | O135: 0.116 | P135: Price per piece. Order only 10 pcs or multiple of 10. E.g. needed 30 pcs, order 30 pcs | Q135: - | S135: 8717332204793
B136: 6649 981 51299 | C136: FAA-500-R | D136: 4.998.151.299 | E136: FAA-500-R base LSN with relay | F136: 5A | G136: 52.48 | H136: 252.00 | I136: no W-Extension | J136: C | K136: A | L136: 8536909599 | M136: CN | N136: 2 | O136: 0.24 | Q136: SBN | S136: 8717332283224
B137: Accessories for 300 and 400 series
B138: 6650 005 08658 | C138: FAA-MSR420 | D138: F.01U.508.658 | E138: FAA-420-R Base with Relay for 420 Series | F138: 5A | G138: 41.69 | H138: =ROUND(ROUND(G138*4.8,2),0) -> 200.00 | I138: no W-Extension | J138: C | K138: A | L138: 8536909599 | M138: CN | N138: 28 | O138: 0.09 | Q138: SBN | S138: 8717332206896
B139: 6649 980 21535 | C139: MS 400 | D139: 4.998.021.535 | E139: MS 400, socket, surface/ flush mounted cable supply | F139: 5A | G139: 5.34 | H139: =ROUND(ROUND(G139*4.8*1.28,2),0) -> 33.00 | I139: no W-Extension | J139: C | K139: 1 | L139: 8536909599 | M139: CN | N139: 3162 | O139: 0.009 | Q139: SBN | S139: 8717332019878
B140: 7050 002 15139 | C140: MS 400 B | D140: F.01U.215.139 | E140: MS 400 Detector Base with Bosch Logo | F140: 5A | G140: 5.01 | H140: =ROUND(ROUND(G140*4.8*1.37,2),0) -> 33.00 | I140: no W-Extension | J140: C | K140: A | L140: 8536909599 | M140: CN | N140: 11606 | O140: 0.09 | Q140: SBN | S140: 8717332019878
B141: 7050 002 15142 | C141: FAA-420-SEAL | D141: F.01U.215.142 | E141: FAA-420-SEAL Damp Room Seal MS400 (10ps) | F141: 5A | G141: 120.08 | H141: =ROUND(ROUND(G141*4.8,2),0) -> 576.00 | I141: no W-Extension | J141: C | K141: A | L141: 8536909599 | M141: CN | N141: 38 | O141: 0.23 | P141: One package unit contains 10 pcs. E.g. 50 pcs needed --> order 5 | Q141: SBN | S141: 8717332808830
B142: 6649 981 13025 | C142: MSC 420 | D142: 4.998.113.025 | E142: MSC 420 Add base surface-mount | F142: 5A | G142: 6.78 | H142: =ROUND(ROUND(G142*4.8,2),0) -> 33.00 | I142: no W-Extension | J142: C | K142: A | L142: 3926909790 | M142: CN | N142: 944 | O142: 0.1 | Q142: - | S142: 8717332020461
B143: 6649 981 14565 | C143: MSR 320 | D143: 4.998.114.565 | E143: MSR 320 GLT, Base with Relay | F143: 5A | G143: 29.65 | H143: 142.00 | I143: no W-Extension | J143: C | K143: 1 | L143: 8536909599 | M143: CN | N143: 254 | O143: 0.04 | Q143: SBN | S143: 8717332022519
B144: 6649 980 25369 | C144: SK 400 | D144: 4.998.025.369 | E144: SK 400, Metal cage for protection MagicSens detectors | F144: 5A | G144: 47.42 | H144: 228.00 | I144: no W-Extension | J144: C | K144: A | L144: 7326909890 | M144: DE | N144: 39 | O144: 0.3 | Q144: SBN | S144: 8717332003266
B145: 6649 980 35312 | C145: SSK400 | D145: 4.998.035.312 | E145: SSK 400, dust cover (10ps) | F145: 5A | G145: 25.54 | H145: 123.00 | I145: no W-Extension | J145: C | K145: A | L145: 3926909790 | M145: DE | N145: 123 | O145: 0.21 | P145: One package unit contains 10 pcs. E.g. 50 pcs needed --> order 5 | Q145: SBN | S145: 8717332003310
B146: 6649 980 84709 | C146: TP4 400 | D146: 4.998.084.709 | E146: TP4 400, lettering strip till 4 m hight, (Attention!!! Order multiple, read comment) | F146: 5A | G146: 0.52 | H146: 3.00 | I146: no W-Extension | J146: C | K146: A | L146: 3926909790 | M146: DE | N146: 4597 | O146: 0.006 | P146: Order only 50 pcs or multiple of 50. E.g. needed 150 pcs, order 150 pcs | Q146: - | S146: 8717332003396
B147: 6649 980 84710 | C147: TP8 400 | D147: 4.998.084.710 | E147: TP8 400, lettering strip till 8 m hight, (Attention!!! Order multiple, read comment) | F147: 5A | G147: 0.55 | H147: 3.00 | I147: no W-Extension | J147: C | K147: A | L147: 3926909790 | M147: DE | N147: 879 | O147: 0.009 | P147: Order only 50 pcs or multiple of 50. E.g. needed 150 pcs, order 150 pcs | Q147: - | S147: 8717332003402
B148: 6649 980 25373 | C148: MH 400 | D148: 4998025373 | E148: MH 400, detector heating | F148: 5A | G148: 47.68 | H148: 229.00 | I148: no W-Extension | J148: C | K148: A | L148: 8531900000 | M148: DE | N148: 15 | O148: 0.017 | Q148: - | S148: 8717332003280
B149: 6649 980 97924 | C149: WA400 | D149: 4.998.097.924 | E149: MK 400, detector console including socket | F149: 5A | G149: 42.35 | H149: 203.00 | I149: no W-Extension | J149: C | K149: A | L149: 3926909790 | M149: DE | N149: 33 | O149: 0.199 | Q149: - | S149: 8717332003426
B150: 7050 002 89620 | C150: FAA-420-RI-DIN | D150: F.01U.289.620 | E150: Remote Indicator | F150: 5A | G150: 46.01 | H150: 221.00 | I150: no W-Extension | J150: C | K150: 1 | L150: 8531900000 | M150: PT | N150: 175 | O150: 0.061 | Q150: SBN | S150: 8717332927982
B151: 7050 002 89120 | C151: FAA-420-RI-ROW | D151: F.01U.289.120 | E151: Remote Indicator | F151: 5A | G151: 15.32 | H151: 74.00 | I151: no W-Extension | J151: C | K151: A | L151: 8531900000 | M151: PT | N151: 1155 | O151: 0.058 | Q151: SBN | S151: 8717332926756
B152: 6627 992 71257 | C152: FMX-DET-MB | D152: 2.799.271.257 | E152: MOUNT BRACKfalse floor mounting bracket | F152: 5A | G152: 24.31 | H152: 117.00 | I152: no W-Extension | J152: C | K152: A | L152: 3926909790 | M152: DE | N152: 84 | O152: 0.09 | Q152: - | S152: 8717332018994
B153: 7050 002 39554 | C153: FAA-420-CAP-V0 | D153: F.01U.239.554 | E153: Detector cap, V0 rating (200 pcs) | F153: 5A | G153: 417.33 | H153: 2,003.00 | I153: no W-Extension | J153: C | K153: C | L153: 85369095 | M153: CN | N153: 0 | O153: 0.023 | P153: One unit contains 200 pcs. Minimum order quantity is 5 units (= 1.000 caps). Delivery time 3-4 months. | Q153: - | R153: Mainly used for Israel | S153: 8717332822423
B154: 7050 002 14891 | C154: MS 400 V0 | D154: F.01U.214.891 | E154: Detector base, V0 rating | F154: 5A | G154: 9.96 | H154: 48.00 | I154: no W-Extension | J154: C | K154: C | L154: 85369095 | M154: CN | N154: 0 | O154: 0.081 | Q154: - | R154: Mainly used for Israel | S154: 8717332808199
B155: Conventional detectors
B156: 320 Series
B157: 7050 000 26293 | C157: FCP-O320 | D157: F.01U.026.293 | E157: FCP-O320 optical conventional (820Ω) | F157: 5A | G157: 39.33 | H157: =ROUND(ROUND(G157*4.8,2),0) -> 189.00 | I157: on demand | J157: C | K157: A | L157: 8531103000 | M157: CN | N157: 690 | O157: 0.072 | Q157: SBN | S157: 8717332253180
B158: 7050 000 26292 | C158: FCP-OC320 | D158: F.01U.026.292 | E158: FCP-OC 320 optical/ chemical conv. det. (820Ω) | F158: 5A | G158: 173.17 | H158: =ROUND(ROUND(G158*4.8,2),0) -> 831.00 | I158: on demand | J158: C | K158: A | L158: 8531103000 | M158: CN | N158: 23 | O158: 0.1 | Q158: SBN | S158: 8717332253173
B159: 7050 000 26295 | C159: FCP-OT320 | D159: F.01U.026.295 | E159: FCP-OT 320 optical/ heat conv. Detector (820Ω) | F159: 5A | G159: 67.75 | H159: 325.00 | I159: on demand | J159: C | K159: A | L159: 8531103000 | M159: CN | N159: 113 | O159: 0.09 | Q159: SBN | S159: 8717332253210
B160: 7050 000 26291 | C160: FCH-T320 | D160: F.01U.026.291 | E160: FCH-T 320 conv. RoR heat detector (820Ω) | F160: 5A | G160: 30.07 | H160: 144.00 | I160: on demand | J160: C | K160: A | L160: 8531103000 | M160: CN | N160: 134 | O160: 0.069 | Q160: SBN | S160: 8717332253166
B161: 7050 000 26294 | C161: FCH-T320-FSA | D161: F.01U.026.294 | E161: FCH-T 320-FSA Heat, RoR conv. Detector (820Ω) | F161: 5A | G161: 58.86 | H161: 283.00 | I161: on demand | J161: C | K161: A | L161: 8531103000 | M161: CN | N161: 2 | O161: 0.09 | Q161: SBN | S161: 8717332253203
B162: 7850 000 29857 | C162: FCP-O320-R470 | D162: F.01U.029.857 | E162: FCP-O 320-R470 optical smoke detector (470Ω) | F162: 5A | G162: 39.33 | H162: 189.00 | I162: on demand | J162: C | K162: A | L162: 8531900000 | M162: CN | N162: 31 | O162: 0.09 | Q162: SBN | S162: 800549091664
B163: 7850 000 29867 | C163: FCP-OC320-R470 | D163: F.01U.029.867 | E163: FCP-OC 320-R470 Combined opt/gas det. (470Ω) | F163: 5A | G163: 173.17 | H163: 831.00 | I163: on demand | J163: C | K163: A | L163: 8531103000 | M163: CN | N163: 2 | O163: 0.09 | Q163: SBN | S163: 800549091718
B164: 7850 000 29862 | C164: FCP-OT320-R470 | D164: F.01U.029.862 | E164: FCP-OT 320-R470 optical/heat detector (470Ω) | F164: 5A | G164: 67.75 | H164: 325.00 | I164: on demand | J164: C | K164: A | L164: 8531103000 | M164: CN | N164: 4 | O164: 0.091 | Q164: SBN | S164: 800549091701
B165: 7850 000 29861 | C165: FCH-T320-R470 | D165: F.01U.029.861 | E165: FCH-T 320-R470 heat detector (470Ω) | F165: 5A | G165: 30.07 | H165: 144.00 | I165: on demand | J165: C | K165: A | L165: 8531103000 | M165: CN | N165: 4 | O165: 0.099 | Q165: SBN | S165: 800549091695
B166: 7050 000 83619 | C166: FLM-320-EOL2W | D166: F.01U.083.619 | E166: FLM-320-EOL2W Conv EOL Module 2-Wire | F166: 5A | G166: 32.89 | H166: 158.00 | I166: no W-Extension | J166: C | K166: A | L166: 8537109199 | M166: CN | N166: 24 | O166: 0.03 | Q166: SBN | S166: 800549189309
B167: 705000083620 | C167: FLM-320-EOL4W-S | D167: F.01U.083.620 | E167: FLM-320-EOL4W-S Conv EOL Module 4-Wire | F167: 5A | G167: 144.68 | H167: 694.00 | I167: on demand | J167: C | K167: A | L167: 8536501999 | M167: CN | N167: 3 | O167: 0.48 | Q167: SBN | S167: 8717332361120
B168: 500 Series
B169: 7850 005 10647 | C169: FCA-500-EU | D169: F.01U.510.647 | E169: FCA-500-EU base conventional for EU | F169: 5A | G169: 60.96 | H169: =ROUND(ROUND(G169*4.8,2),0) -> 293.00 | I169: no W-Extension | J169: C | K169: A | L169: 8536909599 | M169: CN | N169: 40 | O169: 0.218 | Q169: SBN | S169: 8717332251490
B170: 7850 005 10648 | C170: FCA-500-E-EU | D170: F.01U.510.648 | E170: FCA-500-E-EU base conv-EOL for EU | F170: 5A | G170: 74.51 | H170: =ROUND(ROUND(G170*4.8,2),0) -> 358.00 | I170: no W-Extension | J170: C | K170: A | L170: 8536909599 | M170: CN | N170: 7 | O170: 0.25 | Q170: SBN | S170: 8717332256228
B171: 7850 005 12649 | C171: FCP-O 500 | D171: F.01U.510.649 | E171: FCP-O 500 conv opt smoke detector EU wh | F171: 5A | G171: 304.83 | H171: 1,463.00 | I171: on demand | J171: C | K171: 1 | L171: 8531103000 | M171: CN | N171: 75 | O171: 0.308 | Q171: SBN | S171: 8717332251445
B172: 7850 005 10653 | C172: FCP-OC 500 | D172: F.01U.510.653 | E172: FCP-OC 500 Multisens detect conv EU wh | F172: 5A | G172: 440.31 | H172: 2,113.00 | I172: on demand | J172: C | K172: A | L172: 8531103000 | M172: CN | N172: 10 | O172: 0.217 | Q172: SBN | S172: 8717332251469
B173: 7850 005 10654 | C173: FCP-O 500-P | D173: F.01U.510.654 | E173: FCP-O 500-P conv opt smoke det EU tr | F173: 5A | G173: 318.38 | H173: 1,528.00 | I173: on demand | J173: C | K173: A | L173: 8531103000 | M173: CN | N173: 10 | O173: 0.36 | Q173: SBN | S173: 8717332251476
B174: 7850 005 10656 | C174: FCP-OC 500-P | D174: F.01U.510.656 | E174: FCP-OC 500-P conv multisen detect EU tr | F174: 5A | G174: 453.86 | H174: 2,179.00 | I174: on demand | J174: C | K174: A | L174: 8531103000 | M174: CN | N174: 1 | O174: 0.35 | Q174: SBN | S174: 8717332251483
B175: Detectors for explosive areas
B176: 7050 002 79764 | C176: 016519 | D176: F.01U.279.764 | E176: Flameproof (Exd) IR3 Flame Detector | F176: 5A | G176: 8,447.08 | H176: =ROUND(ROUND(G176*4.8,2),0) -> 40,546.00 | I176: no W-Extension | J176: C | K176: A | L176: 8531103000 | M176: GB | N176: 3 | O176: 2.5 | Q176: SBN | S176: 8717332906369
B177: 705000332582 | C177: OOH740-A9-EX | D177: F.01U.332.582 | E177: Dual-optical detector, explosive area | F177: 5A | G177: 547.29 | H177: =ROUND(ROUND(G177*4.8,2),0) -> 2,627.00 | I177: no W-Extension | J177: C | K177: A | L177: 85311030000 | M177: CH | N177: 23 | O177: 0.124 | Q177: SBN | S177: 4260451081447
B178: 705000332583 | C178: FDB201 | D178: F.01U.332.583 | E178: Base for Dual-Optical Detector for Ex Area | F178: 5A | G178: 32.83 | H178: 158.00 | I178: no W-Extension | J178: C | K178: A | L178: 85319085900 | M178: CH | N178: 24 | O178: 0.025 | Q178: SBN | S178: 4260451081454
B179: 705000335165 | C179: FDB291 | D179: F.01U.335.165 | E179: Base attachment | F179: 5A | G179: 24.32 | H179: 117.00 | I179: no W-Extension | J179: C | K179: A | L179: 85319000000 | M179: CH | N179: 11 | O179: 0.036 | Q179: SBN | S179: 4260451089573
B180: 705000335589 | C180: FDB295 | D180: F.01U.335.589 | E180: Base attachment wet | F180: 5A | G180: 93.65 | H180: 450.00 | I180: no W-Extension | J180: C | K180: A | L180: 85319000000 | M180: CN | N180: 10 | O180: 0.286 | Q180: SBN | S180: 4060039000002
B181: 705000335595 | C181: FDB295M | D181: F.01U.335.595 | E181: Metal cable gland | F181: 5A | G181: 53.52 | H181: 257.00 | I181: no W-Extension | J181: C | K181: A | L181: 90269000900 | M181: CH | N181: 27 | O181: 0.354 | P181: 1 bag contains 10 pcs.20 pcs needed, order 2 pcs. (bags) REUP per unit (= 10 pcs) | Q181: SBN | S181: 4060039000064
B182: 705000335593 | C182: FDUD291 | D182: F.01U.335.593 | E182: Detector exchanger | F182: 5A | G182: 2,091.86 | H182: 10,041.00 | I182: no W-Extension | J182: C | K182: A | L182: 90318080000 | M182: CH | N182: 0 | O182: 0.480 | Q182: SBN | S182: 4060039000040
B183: 705000335590 | C183: FDBZ291 | D183: F.01U.335.590 | E183: Designation plate | F183: 5A | G183: 2.44 | H183: 12.00 | I183: no W-Extension | J183: C | K183: A | L183: 85319000000 | M183: CH | N183: 13 | O183: 0.024 | P183: Order only 10 pcs or multiple of 10. E.g. needed 30 pcs, order 30 pcs | Q183: SBN | S183: 4060039000019
B184: 705000335591 | C184: FDBZ293 | D184: F.01U.335.591 | E184: Detector locking device | F184: 5A | G184: 0.96 | H184: 5.00 | I184: no W-Extension | J184: C | K184: A | L184: 85319000000 | M184: CH | N184: 0 | O184: 0.026 | P184: Order only 100 pcs or multiple of 100. E.g. needed 60 pcs, order 100 pcs | Q184: SBN | S184: 4060039000026
B185: 705000335592 | C185: FDBZ295 | D185: F.01U.335.592 | E185: Sealing element | F185: 5A | G185: 19.46 | H185: 93.00 | I185: no W-Extension | J185: C | K185: A | L185: 40169300900 | M185: CH | N185: 3 | O185: 0.037 | Q185: SBN | S185: 4060039000033
B186: 705000335594 | C186: FDZ291 | D186: F.01U.335.594 | E186: Detector dust cap | F186: 5A | G186: 3.65 | H186: 18.00 | I186: no W-Extension | J186: C | K186: A | L186: 85319000000 | M186: CH | N186: 4 | O186: 0.045 | P186: Order only 10 pcs or multiple of 10. E.g. needed 30 pcs, order 30 pcs | Q186: SBN | S186: 4060039000057
B187: 6649 981 12085 | C187: SB3 | D187: 4.998.112.085 | E187: SB3, Safety barrier (including input/output module DCA1192) | F187: 5A | G187: 899.99 | H187: 4,320.00 | I187: no W-Extension | J187: C | K187: A | L187: 8536909599 | M187: DE | N187: 15 | O187: 1.19 | Q187: SBN | S187: 8717332003655
B188: 6649 981 15785 | C188: DOW1171-ident | D188: 4.998.115.785 | E188: DBZ1193A, DOW1171 Det identifier | F188: 5A | G188: 1.85 | H188: 9.00 | I188: no W-Extension | J188: C | K188: A | L188: 8310000000.00 | M188: CH | N188: 3 | O188: 0 | P188: Price per piece. Order only 10 pcs or multiple of 10. E.g. needed 30 pcs, order 30 pcs. | Q188: SBN | S188: 8717332020478
B189: Video-based Fire Detection
B190: 7050 004 06348 | C190: FCS-8000-VFD-I | D190: F.01U.406.348 | E190: AI-VFD Bullet 4MP 4.4-10mm IP67 | F190: 5A | G190: 7,089.08 | H190: =ROUND(ROUND(G190*4.8,2),0) -> 34,028.00 | I190: on demand | J190: C | K190: A | L190: 85258900 | M190: PT | O190: 3.285 | Q190: SBN | S190: 4060039159519
B191: 7050 003 17536 | C191: FCS-8000-VFD-B | D191: F.01U.317.536 | E191: AVIOTEC IP starlight 8000 | F191: 5A | G191: 7,089.08 | H191: =ROUND(ROUND(G191*4.8,2),0) -> 34,028.00 | I191: on demand | J191: C | K191: A | L191: 8525801931 | M191: PT | N191: 44 | O191: 1.196 | Q191: SBN | S191: 8717332541010
B192: Wireless Devices
B193: 66F01U349134 | C193: FWI-270 | D193: F.01U.349.134 | E193: Radio gateway | F193: 5A | G193: 1,067.22 | H193: =ROUND(ROUND(G193*4.8,2),0) -> 5,123.00 | I193: no W-Extension | J193: C | K193: B | L193: 8517620000 | M193: PT | N193: 11 | O193: 0.260 | S193: 4060039021670
B194: 66F01U349135 | C194: FDOOT271-O | D194: F.01U.349.135 | E194: Radio fire detector | F194: 5A | G194: 613.54 | H194: =ROUND(ROUND(G194*4.8,2),0) -> 2,945.00 | I194: no W-Extension | J194: C | K194: B | L194: 8531900000 | M194: CH | N194: 93 | O194: 0.134 | S194: 4060039021687
B195: 66F01U349136 | C195: FDB271 | D195: F.01U.349.136 | E195: Base radio fire detector | F195: 5A | G195: 11.58 | H195: 56.00 | I195: no W-Extension | J195: C | K195: B | L195: 8536909599 | M195: CH | N195: 92 | O195: 0.039 | S195: 4060039021694
B196: 66F01U349137 | C196: FDMH273-R | D196: F.01U.349.137 | E196: Radio manual call point housing | F196: 5A | G196: 133.13 | H196: 639.00 | I196: no W-Extension | J196: C | K196: B | L196: 8536501999 | M196: CH | N196: 5 | O196: 0.285 | S196: 4060039021700
B197: 66F01U349249 | C197: FDME273-O | D197: F.01U.349.249 | E197: Radio manual call point switching unit | F197: 5A | G197: 769.82 | H197: 3,695.00 | I197: no W-Extension | J197: C | K197: B | L197: 8536501999 | M197: CH | N197: 6 | O197: 0.108 | S197: 4060039022233
B198: 66F01U349248 | C198: BAT3.6-10 | D198: F.01U.349.248 | E198: Li-SOCl2 battery pack 3.6V, 10 Ah | F198: 5A | G198: 78.72 | H198: 378.00 | I198: no W-Extension | J198: C | K198: B | L198: 8506501000 | M198: CH | N198: 120 | O198: 0.09 | S198: 4060039022226
B199: 66F01U349251 | C199: FDM275-O | D199: F.01U.349.251 | E199: Radio manual call point | F199: 5A | G199: 795.29 | H199: 3,817.00 | I199: no W-Extension | J199: C | K199: B | L199: 8536501999 | M199: CH | N199: 1 | O199: 0.224 | S199: 4060039022257
B200: 66F01U349250 | C200: DMZ1196-AC | D200: F.01U.349.250 | E200: Spare glass FDM273-O | F200: 5A | G200: 10.77 | H200: 52.00 | I200: no W-Extension | J200: C | K200: B | L200: 3926909790 | M200: CH | N200: 4 | O200: 0.117 | P200: Price of 1 Pc. But can be only ordered in set of 10 Pieces | S200: 4060039022240
... 303 more rows

Sheet Fire EN 54 FX 4,704 (hidden)
A1: Change Indicator | C1: BU Fire reference REUP List Q3-4 / 2025 - V1.3
B2: 12 NC | C2: CTN | D2: SAPnumber | E2: Description | F2: Discount Category | G2: REUP EMEA valid 01.07.2025 | H2: FX=4,704 REUP PL valid 01.07.2025 | I2: Warranty Extension | J2: Status | K2: ABC Code | L2: HS Code | M2: Country of Origin | N2: Spike order | O2: Net weight (kg) | P2: Order Info | Q2: Repair process | R2: Remarks | S2: EAN code single
B3: Modular Panel
B4: Modules FPA-5000 and AVENAR Panels
B5: 7050 000 81384 | C5: BCM-0000-B | D5: F.01U.081.384 | E5: BCM 0000 B Battery Controller Module | F5: 5A | G5: 215.92 | H5: =ROUND(ROUND(G5*4.704,2),0) -> 1,016.00 | I5: on demand | J5: C | K5: 1 | L5: 8537109199 | M5: CN | N5: 148 | O5: 0.342 | Q5: SBN | S5: 800549180153
B6: 6649 981 37262 | C6: ANI 0016 A | D6: 4.998.137.262 | E6: ANI 0016 A 16 Point Annunciator internal | F6: 5A | G6: 129.56 | H6: =ROUND(ROUND(G6*4.704,2),0) -> 609.00 | I6: on demand | J6: C | K6: A | L6: 8537109199 | M6: CN | N6: 7 | O6: 0.26 | Q6: SBN | S6: 8717332205882
B7: 6649 981 37265 | C7: RML 0008 A | D7: 4.998.137.265 | E7: RML 0008 A Relay Low Voltage | F7: 5A | G7: 172.73 | H7: 813.00 | I7: on demand | J7: C | K7: 1 | L7: 8537109199 | M7: CN | N7: 98 | O7: 0.306 | Q7: SBN | S7: 8717332205912
A8: x | B8: 6649 981 37266 | C8: IOS 0020 A | D8: 4.998.137.266 | E8: IOS 0020 A 20mA Communication Module | F8: 5A | G8: 470.00 | H8: 2,211.00 | I8: on demand | J8: C | K8: 1 | L8: 8537109199 | M8: CN | N8: 15 | O8: 0.594 | Q8: SBN | S8: 8717332205929
B9: 6649 981 37267 | C9: IOS 0232 A | D9: 4.998.137.267 | E9: IOS 0232 A RS232 Communication Module | F9: 5A | G9: 259.11 | H9: 1,219.00 | I9: on demand | J9: C | K9: A | L9: 8537109199 | M9: CN | N9: 4 | O9: 0.233 | Q9: SBN | S9: 8717332205936
B10: 6649 981 37269 | C10: IOP 0008 A | D10: 4.998.137.269 | E10: IOP 0008 A 8 input/output OC module | F10: 5A | G10: 237.16 | H10: 1,116.00 | I10: on demand | J10: C | K10: 1 | L10: 8537109199 | M10: CN | N10: 17 | O10: 0.299 | Q10: SBN | S10: 8717332205943
B11: 6649 981 37270 | C11: CZM 0004 A | D11: 4.998.137.270 | E11: CZM 0004 A 4 Zone Conventional Zone Module | F11: 5A | G11: 468.24 | H11: 2,203.00 | I11: on demand | J11: C | K11: 1 | L11: 8537109199 | M11: CN | N11: 52 | O11: 0.333 | Q11: SBN | S11: 8717332205950
B12: 7050 000 63204 | C12: ENO 0000 B | D12: F.01U.063.204 | E12: ENO 0000 B (External Notification) | F12: 5A | G12: 345.47 | H12: 1,625.00 | I12: on demand | J12: C | K12: 1 | L12: 8537109199 | M12: CN | N12: 79 | O12: 0.27 | Q12: SBN | S12: 800549134231
B13: 6649 981 37274 | C13: RMH 0002 A | D13: 4.998.137.274 | E13: RMH 0002 A 2 Zone Relay high voltage | F13: 5A | G13: 395.27 | H13: 1,859.00 | I13: on demand | J13: C | K13: A | L13: 8537109199 | M13: CN | N13: 15 | O13: 0.31 | Q13: SBN | S13: 8717332205998
B14: 6649 981 37275 | C14: NZM 0002 A | D14: 4.998.137.275 | E14: NZM 0002 A 2 Zone NAC Zone Module | F14: 5A | G14: 345.47 | H14: 1,625.00 | I14: on demand | J14: C | K14: 1 | L14: 8537109199 | M14: CN | N14: 37 | O14: 0.306 | Q14: SBN | S14: 8717332206001
B15: 6650 000 28289 | C15: FPE-5000-UGM | D15: F.01U.028.289 | E15: UGM interface module | F15: 5A | G15: 456.01 | H15: 2,145.00 | I15: no W-Extension | J15: C | K15: A | L15: 8537109199 | M15: CN | N15: 32 | O15: 0.27 | Q15: SBN | S15: 8717332260041
B16: 6649 981 37277 | C16: LSN 0300 A | D16: 4.998.137.277 | E16: LSN 0300 A LSN Module | F16: 5A | G16: 504.72 | H16: 2,374.00 | I16: on demand | J16: C | K16: 1 | L16: 8538909999 | M16: CN | N16: 462 | O16: 0.306 | Q16: SBN | S16: 8717332206018
B17: 6649 981 37278 | C17: LSN 1500 A | D17: 4.998.137.278 | E17: LSN 1500 A, LSN improved Module | F17: 5A | G17: 1,003.36 | H17: 4,720.00 | I17: on demand | J17: C | K17: A | L17: 8538909999 | M17: CN | N17: 27 | O17: 0.68 | Q17: SBN | S17: 8717332309719
B18: 6649 981 37279 | C18: PRS-0002-C | D18: F.01U.284.903 | E18: PRS-0002-C Panel Rail Short | F18: 5A | G18: 58.58 | H18: 276.00 | I18: no W-Extension | J18: C | K18: A | L18: 8536901000 | M18: CN | N18: 165 | O18: 0.45 | Q18: SBN | S18: 8717332206025
B19: 6649 981 37280 | C19: PRD 0004 A | D19: 4.998.137.280 | E19: PRD 0004 A Panel Rail long | F19: 5A | G19: 146.83 | H19: 691.00 | I19: no W-Extension | J19: C | K19: 1 | L19: 8536901000 | M19: CN | N19: 129 | O19: 0.72 | Q19: SBN | S19: 8717332206032
B20: AVENAR Panel 8000
B21: 7050 003 27090 | C21: FPE-8000-SPC | D21: F.01U.327.090 | E21: Panel controller, standard license | F21: 5A | G21: 839.18 | H21: =ROUND(ROUND(G21*4.704,2),0) -> 3,948.00 | I21: on demand | J21: C | K21: A | L21: 8537109199 | M21: PT | N21: 24 | O21: 3.191 | Q21: SBN | S21: 8717332940417
B22: 7050 003 52441 | C22: FPE-8000-PPC | D22: F.01U.352.441 | E22: Panel controller, premium license | F22: 5A | G22: 1,441.20 | H22: =ROUND(ROUND(G22*4.704,2),0) -> 6,779.00 | I22: on demand | J22: C | K22: A | L22: 8537109199 | M22: PT | N22: 27 | O22: 3.191 | Q22: SBN | S22: 4060039031174
B23: Housings for Frame Installation AVENAR Panel 8000
B24: 6649 981 37290 | C24: CPH 0006 A | D24: 4.998.137.290 | E24: CPH 0006 A Backbox CABT 1 rail | F24: 5A | G24: 514.09 | H24: =ROUND(ROUND(G24*4.704,2),0) -> 2,418.00 | I24: no W-Extension | J24: C | K24: 1 | L24: 8538909999 | M24: CN | N24: 68 | O24: 12.34 | Q24: SBN | S24: 8717332206131
B25: 6649 981 37291 | C25: MPH 0010 A | D25: 4.998.137.291 | E25: MPH 0010 A Backbox CABT 2 Rails | F25: 5A | G25: 647.75 | H25: =ROUND(ROUND(G25*4.704,2),0) -> 3,047.00 | I25: no W-Extension | J25: C | K25: 1 | L25: 8538909999 | M25: CN | N25: 74 | O25: 13.85 | Q25: SBN | S25: 8717332206148
B26: 6649 981 37292 | C26: EPH 0012 A | D26: 4.998.137.292 | E26: EPH 0012 A Backbox 3 rails | F26: 5A | G26: 1,100.66 | H26: 5,178.00 | I26: no W-Extension | J26: C | K26: 1 | L26: 8538909999 | M26: CN | N26: 21 | O26: 14.55 | Q26: SBN | S26: 8717332206155
B27: 6649 981 37293 | C27: PSF 0002 A | D27: 4.998.137.293 | E27: PSF 0002 A Power-small-frame | F27: 5A | G27: 347.33 | H27: 1,634.00 | I27: no W-Extension | J27: C | K27: 1 | L27: 8538909999 | M27: CN | N27: 54 | O27: 7.723 | Q27: SBN | S27: 8717332206162
B28: 6650 005 11306 | C28: PMF 0002 A | D28: F.01U.511.306 | E28: PMF 0002 A Power-medium-frame | F28: 5A | G28: 350.40 | H28: 1,648.00 | I28: no W-Extension | J28: C | K28: A | L28: 3926909790 | M28: CN | N28: 124 | O28: 12.726 | Q28: SBN | S28: 8717332206667
B29: 6649 981 37294 | C29: PMF 0004 A | D29: 4.998.137.294 | E29: PMF 0004 A Power-medium-frame | F29: 5A | G29: 401.54 | H29: 1,889.00 | I29: no W-Extension | J29: C | K29: 1 | L29: 8538909999 | M29: CN | N29: 64 | O29: 12.132 | Q29: SBN | S29: 8717332206179
B30: 6649 981 47119 | C30: USF 0000 A | D30: 4.998.147.119 | E30: USF 0000 A Universal housing-small-frame | F30: 5A | G30: 334.16 | H30: 1,572.00 | I30: no W-Extension | J30: C | K30: A | L30: 8538909999 | M30: CN | N30: 13 | O30: 7.489 | Q30: SBN | S30: 8717332206315
B31: 6649 981 37296 | C31: FBH 0000 A | D31: 4.998.137.296 | E31: FBH 0000 A Mounting frame large | F31: 5A | G31: 174.80 | H31: 822.00 | I31: no W-Extension | J31: C | K31: 1 | L31: 3926909790 | M31: CN | N31: 500 | O31: 4.822 | Q31: SBN | S31: 8717332206193
B32: 6649 981 37297 | C32: FMH 0000 A | D32: 4.998.137.297 | E32: FMH 0000 A Mounting frame medium | F32: 5A | G32: 128.52 | H32: 605.00 | I32: no W-Extension | J32: C | K32: 1 | L32: 3926909790 | M32: CN | N32: 150 | O32: 4.137 | Q32: SBN | S32: 8717332206209
B33: 6649 981 37298 | C33: FSH 0000 A | D33: 4.998.137.298 | E33: FSH 0000 A Mounting frame small | F33: 5A | G33: 102.83 | H33: 484.00 | I33: no W-Extension | J33: C | K33: A | L33: 3926909790 | M33: CN | N33: 20 | O33: 2.362 | Q33: SBN | S33: 8717332206216
B34: 7050 002 66845 | C34: FPM-5000-KMC | D34: F.01U.266.845 | E34: mounting kit for media converter | F34: 5A | G34: 434.44 | H34: 2,044.00 | I34: no W-Extension | J34: C | K34: A | L34: 85189000 | M34: DE | N34: 7 | O34: 0.86 | Q34: SBN | S34: 8717332875269
B35: 6650 005 11305 | C35: HMP 0003 A | D35: F.01U.511.305 | E35: HMP 0003 A, installation plate for mounting frame | F35: 5A | G35: 129.56 | H35: 609.00 | I35: no W-Extension | J35: C | K35: A | L35: 3926909790 | M35: CN | N35: 8 | O35: 0.383 | Q35: SBN | S35: 8717332206650
B36: 6649 981 39498 | C36: FRB 0019 A | D36: 4.998.139.498 | E36: FRB 0019 A 19" Frame Rack X Rails | F36: 5A | G36: 138.19 | H36: 650.00 | I36: no W-Extension | J36: C | K36: A | L36: 7326909890 | M36: CN | N36: 10 | O36: 4.813 | Q36: SBN | S36: 8717332206278
B37: 6649 981 39499 | C37: FRM 0019 A | D37: 4.998.139.499 | E37: FRM 0019 A 19" Frame Rack X Rails | F37: 5A | G37: 107.96 | H37: 508.00 | I37: no W-Extension | J37: C | K37: A | L37: 7326909890 | M37: CN | N37: 4 | O37: 4.778 | Q37: SBN | S37: 8717332206285
B38: 6649 981 39500 | C38: FRS 0019 A | D38: 4.998.139.500 | E38: FRS 0019 A 19" Frame Rack X Rails | F38: 5A | G38: 95.00 | H38: 447.00 | I38: no W-Extension | J38: C | K38: A | L38: 3926909790 | M38: CN | N38: 3 | O38: 3.14 | Q38: SBN | S38: 8717332206292
B39: 6650 005 00374 | C39: FDP 0001 A | D39: F.01U.500.374 | E39: FDP 0001 A Front Dummy cover plate | F39: 5A | G39: 17.27 | H39: 81.00 | I39: no W-Extension | J39: C | K39: 1 | L39: 3926909790 | M39: CN | N39: 737 | O39: 0.1 | Q39: SBN | S39: 8717332206605
B40: 6650 005 13251 | C40: FPO-5000-EB | D40: F.01U.513.251 | E40: FPO-5000-EB earth bar | F40: 5A | G40: 86.37 | H40: 406.00 | I40: no W-Extension | J40: C | K40: A | L40: 7326909890 | M40: CN | N40: 31 | O40: 0.111 | Q40: SBN | S40: 8717332206766
B41: Housings for Wall Mounting AVENAR Panel 8000
B42: 6649 981 37285 | C42: HCP 0006 A | D42: 4.998.137.285 | E42: HCP 0006 A CABT 1 Rail & Common Control | F42: 5A | G42: 431.84 | H42: =ROUND(ROUND(G42*4.704,2),0) -> 2,031.00 | I42: no W-Extension | J42: C | K42: 1 | L42: 8529904900 | M42: CN | N42: 64 | O42: 13.581 | Q42: SBN | S42: 8717332206087
B43: 6649 981 37286 | C43: HBC 0010 A | D43: 4.998.137.286 | E43: HBC 0010 A CABT 2 Rails & Common Control | F43: 5A | G43: 647.75 | H43: =ROUND(ROUND(G43*4.704,2),0) -> 3,047.00 | I43: no W-Extension | J43: C | K43: 1 | L43: 8529904900 | M43: CN | N43: 13 | O43: 17.11 | Q43: SBN | S43: 8717332206094
B44: 6649 981 37287 | C44: HBE 0012 A | D44: 4.998.137.287 | E44: HBE 0012 A CABT 3 Rails | F44: 5A | G44: 1,100.66 | H44: 5,178.00 | I44: no W-Extension | J44: C | K44: A | L44: 8529904900 | M44: CN | N44: 7 | O44: 18.144 | Q44: SBN | S44: 8717332206100
B45: 6649 981 37288 | C45: PSS 0002 A | D45: 4.998.137.288 | E45: PSS 0002 A CABT 1 power Slot 2 batterys | F45: 5A | G45: 477.38 | H45: 2,246.00 | I45: no W-Extension | J45: C | K45: A | L45: 3926909790 | M45: CN | N45: 8 | O45: 7.452 | Q45: SBN | S45: 8717332206117
B46: 6649 981 37289 | C46: PSB 0004 A | D46: 4.998.137.289 | E46: PSB 0004 A CABT 1 power Slot 4 batterys | F46: 5A | G46: 647.75 | H46: 3,047.00 | I46: no W-Extension | J46: C | K46: A | L46: 3926909790 | M46: CN | N46: 10 | O46: 12.511 | Q46: SBN | S46: 8717332206124
B47: 6650 005 11304 | C47: FRK 0019 A | D47: F.01U.511.304 | E47: FRK 0019 A 19 inches fixing kit | F47: 5A | G47: 287.49 | H47: 1,352.00 | I47: no W-Extension | J47: C | K47: A | L47: 7326909890 | M47: DE | N47: 1 | O47: 2.34 | Q47: SBN | S47: 8717332263493
B48: 7050 002 66844 | C48: FPM-5000-KES | D48: F.01U.266.844 | E48: FPM-5000-KES mounting kit for Ethernet switch | F48: 5A | G48: 766.64 | H48: 3,606.00 | I48: no W-Extension | J48: C | K48: A | L48: 8302500000 | M48: DE | N48: 5 | O48: 2.77 | Q48: SBN | S48: 8717332875252
B49: 7050 002 65641 | C49: EL1141-10B-BH | D49: F.01U.265.641 | E49: EL1141-10B-BH Ethernet Fibre Optics Converter MM | F49: 5A | G49: 925.96 | H49: 4,356.00 | I49: no W-Extension | J49: C | K49: A | L49: 8504409090 | M49: TW | N49: 31 | O49: 0.58 | Q49: SBN | S49: 8717332871018
B50: 7050 002 65643 | C50: EL1141-B0B-BH | D50: F.01U.265.643 | E50: EL1141-10B-BH Ethernet Fibre Optics Converter SM | F50: 5A | G50: 1,286.56 | H50: 6,052.00 | I50: no W-Extension | J50: C | K50: A | L50: 8504409090 | M50: TW | N50: 23 | O50: 0.58 | Q50: SBN | S50: 8717332871032
B51: Power Supplies AVENAR Panel 8000
B52: 6650 005 00367 | C52: UPS 2416 A | D52: F.01U.500.367 | E52: UPS 2416 Power Supply 24V/6A NAC sync | F52: 5A | G52: 423.20 | H52: =ROUND(ROUND(G52*4.704,2),0) -> 1,991.00 | I52: on demand | J52: C | K52: 1 | L52: 8504403090 | M52: CN | N52: 1250 | O52: 0.97 | Q52: SBN | S52: 8717332206582
B53: 6649 981 53243 | C53: CPB 0000 A | D53: 4.998.153.243 | E53: CPB 0000 A Cable set P-Supply to BC | F53: 5A | G53: 21.59 | H53: =ROUND(ROUND(G53*4.704,2),0) -> 102.00 | I53: no W-Extension | J53: C | K53: A | L53: 8544429090 | M53: CN | N53: 700 | O53: 0.198 | Q53: SBN | S53: 8717332206520
B54: 7050 000 78858 | C54: FPO-5000-PSB1 | D54: F.01U.078.858 | E54: PSB 1001 A P-Supply Bracket US single | F54: 5A | G54: 95.00 | H54: 447.00 | I54: no W-Extension | J54: C | K54: A | L54: 3926909790 | M54: CN | N54: 12 | O54: 1.03 | Q54: SBN | S54: 8717332342655
B55: 7050 000 78860 | C55: FPO-5000-PSB-CH | D55: F.01U.078.860 | E55: CPB 1002 A P-Supply Bracket CH US | F55: 5A | G55: 120.92 | H55: 569.00 | I55: no W-Extension | J55: C | K55: 1 | L55: 3926909790 | M55: CN | N55: 375 | O55: 0.798 | Q55: SBN | S55: 8717332342679
B56: 705000398453 | C56: FPP-3000 | D56: F.01U.398.453 | E56: Power Supply | F56: 5A | G56: 583.56 | H56: 2,745.00 | I56: no W-Extension | J56: C | K56: A | L56: 85044055 | M56: PL | N56: 23 | O56: 11.000 | Q56: SBN | S56: 4060039146991
B57: 6650 005 11307 | C57: FPP 5000 | D57: F.01U.511.307 | E57: FPP 5000, AUX power supply kit | F57: 5A | G57: 1,174.59 | H57: 5,525.00 | I57: no W-Extension | J57: C | K57: B | L57: 8504900500 | M57: NL | N57: 20 | O57: 20.7 | Q57: RC | S57: 8717332206674
B58: 7050 001 61679 | C58: FPP-5000-TI13 | D58: F.01U.161.679 | E58: LSN interface for FPP-5000 | F58: 5A | G58: 174.42 | H58: 820.00 | I58: on demand | J58: C | K58: A | L58: 8531900000 | M58: CN | N58: 111 | O58: 0.306 | S58: 8717332754281
B59: Cable Sets FPA-5000 / AVENAR Panel 8000
B60: 6649 981 53244 | C60: CBB 0000 A | D60: 4.998.153.244 | E60: CBB 0000 A Cable set BC to Battery | F60: 5A | G60: 28.07 | H60: =ROUND(ROUND(G60*4.704,2),0) -> 132.00 | I60: no W-Extension | J60: C | K60: 1 | L60: 8544429090 | M60: CN | N60: 788 | O60: 0.198 | Q60: SBN | S60: 8717332206537
B61: 7050 003 49391 | C61: FPE-8000-CRP | D61: F.01U.349.391 | E61: Cable set redundant panel controller | F61: 5A | G61: 72.97 | H61: =ROUND(ROUND(G61*4.704,2),0) -> 343.00 | I61: no W-Extension | J61: C | K61: A | L61: 8544429090 | M61: PT | N61: 13 | O61: 0.642 | Q61: SBN | S61: 4060039022608
B62: 7050 003 49392 | C62: FPE-8000-CRK | D62: F.01U.349.392 | E62: Cable redundant keypad | F62: 5A | G62: 43.78 | H62: 206.00 | I62: no W-Extension | J62: C | K62: A | L62: 8544429090 | M62: PT | N62: 25 | O62: 0.258 | Q62: SBN | S62: 4060039022615
B63: Display Panels
B64: 6649 980 00922 | C64: BAT 100 LSN | D64: 4.998.000.922 | E64: BAT100 LSN, Remote display panel | F64: 5A | G64: 577.83 | H64: =ROUND(ROUND(G64*4.704,2),0) -> 2,718.00 | I64: on demand | J64: C | K64: A | L64: 8537109199 | M64: DE | N64: 3 | O64: 2.61 | Q64: SBN | R64: One ATG-420-LSNi is included | S64: 8717332004584
B65: 8717332915347 | C65: ATB 420 LSNi | D65: F.01U.284.611 | E65: ATB 420 LSNi for the connection to location map tableaus | F65: 5A | G65: 353.27 | H65: =ROUND(ROUND(G65*4.704,2),0) -> 1,662.00 | I65: on demand | J65: C | K65: A | L65: 8538909189 | M65: DE | N65: 11 | O65: 0.07 | Q65: SBN | S65: 8717332915347
B66: 6649 980 01941 | C66: BAT100-LABELS | D66: 4.998.001.941 | E66: BS labeling strips for BAT 100 | F66: 5A | G66: 87.21 | H66: 410.00 | I66: no W-Extension | J66: C | K66: C | L66: 3919908099 | M66: DE | N66: 2 | O66: 0.266 | Q66: SBN | S66: 8717332019816
B67: 8531901000 | C67: ATG 420 LSNI | D67: F.01U.284.610 | E67: ATG 420 LSNi display module | F67: 5A | G67: 353.27 | H67: 1,662.00 | I67: on demand | J67: C | K67: C | L67: 8531209590 | M67: CN | N67: 9 | O67: 0.055 | Q67: SBN | S67: 8717332915330
B68: not in MFG | C68: ATG100-LABEL | D68: 3.902.102.662 | E68: BS labeling membranes ATG 100 | F68: 5A | G68: 46.96 | H68: 221.00 | I68: no W-Extension | J68: C | K68: C | L68: 3919908099 | M68: DE | N68: 10 | O68: 0.349 | Q68: -
B69: Accessories FPA-5000 / AVENAR Panel 8000
B70: 6650 005 00374 | C70: FDP 0001 A | D70: F.01U.500.374 | E70: FDP 0001 A Front Dummy cover plate | F70: 5A | G70: 17.27 | H70: =ROUND(ROUND(G70*4.704,2),0) -> 81.00 | I70: no W-Extension | J70: C | K70: 1 | L70: 3926909790 | M70: CN | N70: 737 | O70: 0.1 | Q70: SBN | S70: 8717332206605
B71: 6650 005 00442 | C71: SIV 28 | D71: F.01U.500.442 | E71: SIV 28V Fuse protected distributor | F71: 5A | G71: 117.87 | H71: =ROUND(ROUND(G71*4.704,2),0) -> 554.00 | I71: no W-Extension | J71: C | K71: A | L71: 8531900000 | M71: DE | N71: 5 | O71: 0.22 | Q71: SBN | S71: 8717332212309
C72: ESP-EF01U390166 | D72: F.01U.390.166 | E72: SPA Cable NTC-Resistor Magic-Panel | F72: 5A | G72: 58.63 | H72: 276.00 | I72: no W-Extension | J72: C | K72: A | L72: 85334010 | M72: China | O72: 0.001 | Q72: No repair | S72: 4060039122308
B73: Remote Keypad for AVENAR Panel Series
B74: 7050 003 27092 | C74: FPE-8000-FMR | D74: F.01U.327.092 | E74: Remote Keypad | F74: 5A | G74: 1,477.68 | H74: 6,951.00 | I74: on demand | J74: C | K74: A | L74: 8537109199 | M74: PT | N74: 22 | O74: 3.121 | Q74: SBN | S74: 8717332940431
B75: AVENAR Panel 2000 Series
B76: 7050 003 27091 | C76: FPE-2000-SPC | D76: F.01U.327.091 | E76: Panel controller AVENAR panel 2000, standard license | F76: 5A | G76: 839.18 | H76: 3,948.00 | I76: on demand | J76: C | K76: A | L76: 8537109199 | M76: PT | N76: 28 | O76: 3.191 | Q76: SBN | S76: 8717332940424
B77: 7050 003 52443 | C77: FPE-2000-PPC | D77: F.01U.352.443 | E77: Panel controller AVENAR panel 2000, premium license | F77: 5A | G77: 1,441.20 | H77: 6,779.00 | I77: on demand | J77: C | K77: A | L77: 8537109199 | M77: PT | N77: 18 | O77: 3.191 | Q77: SBN | S77: 4060039031181
B78: 7050 003 83886 | C78: FPA-2000-SWM | D78: F.01U.383.886 | E78: Panel kit standard license, wall-mount | F78: 5A | G78: 1,756.20 | H78: =ROUND(ROUND(G78*4.704*1.05,2),0) -> 8,674.00 | I78: no W-Extension | J78: C | K78: A | L78: 8537109199 | M78: PT | N78: 0 | O78: 19.7 | Q78: SBN | S78: 4060039107411
B79: 7050 003 83887 | C79: FPA-2000-SFM | D79: F.01U.383.887 | E79: Panel kit standard license, frame-mount | F79: 5A | G79: 1,888.24 | H79: =ROUND(ROUND(G79*4.704*1.05,2),0) -> 9,326.00 | I79: no W-Extension | J79: C | K79: A | L79: 8537109199 | M79: PT | N79: 5 | O79: 22.8 | Q79: SBN | S79: 4060039107428
B80: 7050 003 83888 | C80: FPA-2000-PWM | D80: F.01U.383.888 | E80: Panel kit premium license, wall-mount | F80: 5A | G80: 2,304.13 | H80: =ROUND(ROUND(G80*4.704*1.05,2),0) -> 11,381.00 | I80: no W-Extension | J80: C | K80: A | L80: 8537109199 | M80: PT | N80: 0 | O80: 19.7 | Q80: SBN | S80: 4090039107435
B81: 7050 003 83893 | C81: FPA-2000-PFM | D81: F.01U.383.893 | E81: Panel kit premium license, frame-mount | F81: 5A | G81: 2,430.37 | H81: =ROUND(ROUND(G81*4.704*1.05,2),0) -> 12,004.00 | I81: no W-Extension | J81: C | K81: A | L81: 8537109199 | M81: PT | N81: 2 | O81: 22.8 | Q81: SBN | S81: 4060039107442
B82: BACNet Server License
A83: 2025-05-07 | B83: 7050 004 28678 | C83: FSM-8000-BNSL | D83: F.01U.428.678 | E83: BACnet server license 5 years | F83: 5A | G83: 2,000.00 | H83: 9,408.00 | I83: no W-Extension | K83: C | L83: n.a. | M83: DE | O83: n.a. | Q83: n.a. | S83: 4060039205827
A84: 2025-05-07 | B84: 7051 004 28679 | C84: FSM-8000-BNSTL | D84: F.01U.428.679 | E84: BACnet server trial license 30 days | F84: 5A | G84: 45.00 | H84: 212.00 | I84: no W-Extension | K84: C | L84: n.a. | M84: DE | O84: n.a. | Q84: n.a. | S84: 4060039205834
B85: Remote Serive
A86: 2025-05-07 | B86: n.a. | C86: FPO-GATE | D86: F.01U.433.333 | E86: Secure Network Gateway | F86: 5A | G86: 937.50 | H86: 4,410.00 | I86: no W-Extension | J86: C | K86: A | L86: 8517620000 | M86: DE | N86: 3 | O86: 1.127 | S86: 4060039034250
A87: 2025-06-25 | B87: n.a. | C87: FSL-BASIC-S | D87: F.01U.435.428 | E87: NEXOSPACE FSE basic license S | F87: 5A | G87: 312.00 | H87: 1,468.00 | I87: no W-Extension | J87: C | K87: n.a. | L87: 4911990000 | M87: Germany | N87: 0 | O87: 0 | P87: Annual connectivity license <254 points | Q87: No physical product | S87: 4060039104076
A88: 2025-06-25 | B88: n.a. | C88: FSL-BASIC-M | D88: F.01U.435.594 | E88: NEXOSPACE FSE basic license M | F88: 5A | G88: 940.00 | H88: 4,422.00 | I88: no W-Extension | J88: C | K88: n.a. | L88: 4911990000 | M88: Germany | N88: 0 | O88: 0 | P88: Annual connectivity license 254 - 2000 points | Q88: No physical product | S88: 4060039112699
A89: 2025-06-25 | B89: n.a. | C89: FSL-BASIC-L | D89: F.01U.435.590 | E89: NEXOSPACE FSE basic license L | F89: 5A | G89: 1,562.00 | H89: 7,348.00 | I89: no W-Extension | J89: C | K89: n.a. | L89: 4911990000 | M89: Germany | N89: 0 | O89: 0 | P89: Annual connectivity license > 2000 points | Q89: No physical product | S89: 4060039111692
B90: Fire Monitoring System
B91: 7050 003 14991 | C91: FSM-5000 | D91: F.01U.314.991 | E91: Fire Monitoring System 5000 | F91: 5A | G91: 5,224.94 | H91: 24,578.00 | I91: no W-Extension | J91: C | K91: C | L91: 4911990000 | M91: IT | N91: 0.000 | O91: 0.001 | P91: Sold only in SEO. Outphased for rest EMEA | Q91: No repair | R91: Sold only in SEO. Outphased for rest EMEA | S91: 8717332995257
B92: 7050 003 14990 | C92: FSM-2500 | D92: F.01U.314.990 | E92: Fire Monitoring System 2500 | F92: 5A | G92: 3,542.34 | H92: 16,663.00 | I92: no W-Extension | J92: C | K92: C | L92: 4911990000 | M92: IT | N92: 0 | O92: 0.001 | P92: Sold only in SEO. Outphased for rest EMEA | Q92: No repair | R92: Sold only in SEO. Outphased for rest EMEA | S92: 8717332995240
C93: FSM-10K | D93: F.01U.374.278 | E93: Fire Monitoring System 10000 | F93: 5A | G93: 9,446.22 | H93: 44,435.00 | I93: no W-Extension | J93: C | K93: C | L93: 4911990000 | M93: IT | O93: 0.001 | P93: Cannot be sold in SEO | Q93: No repair | R93: Cannot be sold in SEO | S93: 4060039091192
C94: FSM-5000 | D94: F.01U.374.695 | E94: Fire Monitoring System 5000 | F94: 5A | G94: 5,224.94 | H94: 24,578.00 | I94: no W-Extension | J94: C | K94: C | L94: 4911990000 | M94: IT | N94: 0.000 | O94: 0.001 | P94: Cannot be sold in SEO | Q94: No repair | R94: Cannot be sold in SEO | S94: 4060039091437
C95: FSM-2500 | D95: F.01U.374.694 | E95: Fire Monitoring System 2500 | F95: 5A | G95: 3,542.34 | H95: 16,663.00 | I95: no W-Extension | J95: C | K95: C | L95: 4911990000 | M95: IT | N95: 0.000 | O95: 0.001 | P95: Cannot be sold in SEO | Q95: No repair | R95: Cannot be sold in SEO | S95: 4060039091420
B96: 7050 003 14992 | C96: FSM-5000-EP | D96: F.01U.314.992 | E96: Evolution pack FSM-5000 | F96: 5A | G96: 509.86 | H96: 2,398.00 | I96: no W-Extension | J96: C | K96: C | L96: 4911990000 | M96: IT | N96: 0 | O96: 0.001 | Q96: No repair | S96: 8717332995264
B97: 7050 003 15067 | C97: FSM-2500-EP | D97: F.01U.315.067 | E97: Evolution pack FSM-2500 | F97: 5A | G97: 356.03 | H97: 1,675.00 | I97: no W-Extension | J97: C | K97: C | L97: 4911990000 | M97: IT | N97: 0 | O97: 0.001 | Q97: No repair | S97: 8717332995288
B98: Conventional panels
B99: 705000164791 | C99: FPC-500-2 | D99: F.01U.164.791 | E99: 2 zone conventional fire panel | F99: 5A | G99: 389.41 | H99: 1,832.00 | I99: on demand | J99: C | K99: A | L99: 8531103000 | M99: CN | N99: 15 | O99: 2.2 | S99: 8717332759385
B100: 705000164792 | C100: FPC-500-4 | D100: F.01U.164.792 | E100: 4 zone conventional fire panel | F100: 5A | G100: 479.96 | H100: 2,258.00 | I100: on demand | J100: C | K100: A | L100: 8531103000 | M100: CN | N100: 20 | O100: 3.456 | S100: 8717332759392
B101: 705000164793 | C101: FPC-500-8 | D101: F.01U.164.793 | E101: 8 zone conventional fire panel | F101: 5A | G101: 600.71 | H101: 2,826.00 | I101: on demand | J101: C | K101: A | L101: 8531103000 | M101: CN | N101: 14 | O101: 3.42 | S101: 8717332759408
B102: 705000164794 | C102: FPC-500-OCEXT | D102: F.01U.164.794 | E102: Optional open collector board | F102: 5A | G102: 45.29 | H102: 213.00 | I102: no W-Extension | J102: C | K102: A | L102: 8531900000 | M102: CN | N102: 1 | O102: 0.1 | S102: 8717332759415
B103: 705000164795 | C103: FPC-500-RLYEXT | D103: F.01U.164.795 | E103: Optional relay board | F103: 5A | G103: 84.52 | H103: 398.00 | I103: no W-Extension | J103: C | K103: A | L103: 8531900000 | M103: CN | N103: 10 | O103: 0.1 | S103: 8717332759422
B104: 705000164844 | C104: FPC-500-KEY | D104: F.01U.164.844 | E104: Optional access key level 2 | F104: 5A | G104: 30.19 | H104: 142.00 | I104: no W-Extension | J104: C | K104: A | L104: 3926909790 | M104: CN | N104: 8 | O104: 0.01 | S104: 8717332759859
B105: Batteries
B106: Batteries
C107: IPS-BAT12V-12AH | D107: F.01U.579.778 | E107: Battery 12 V / 10 - 12 Ah | H107: 0 | O107: 3.730
C108: IPS-BAT12V-27AH | D108: F.01U.579.781 | E108: Battery 12 V / 24 - 27 Ah | H108: 0 | O108: 7.96
C109: IPS-BAT12V-45AH | D109: F.01U.579.782 | E109: Battery 12 V / 38 - 45 Ah | H109: 0 | O109: 13.520
B110: LSN Detectors
B111: 500 Series
B112: 6650 005 10149 | C112: FAP-O 520 | D112: F.01U.510.149 | E112: FAP-O 520 opt smoke detector LSNi white | F112: 5A | G112: 201.11 | H112: 946.00 | I112: on demand | J112: C | K112: A | L112: 8531103000 | M112: CN | N112: 112 | O112: 0.170 | Q112: SBN | S112: 8717332265121
B113: 6650 005 10151 | C113: FAP-OC 520 | D113: F.01U.510.151 | E113: FAP-OC 520 Multisensor detector LSNi wh | F113: 5A | G113: 321.86 | H113: 1,514.00 | I113: on demand | J113: C | K113: A | L113: 8531103000 | M113: CN | N113: 23 | O113: 0.180 | Q113: SBN | S113: 8717332265138
B114: 6650 005 10161 | C114: FAP-O 520-P | D114: F.01U.510.161 | E114: FAP-O 520-P opt smoke detector LSNi tr | F114: 5A | G114: 227.94 | H114: 1,072.00 | I114: on demand | J114: C | K114: A | L114: 8531103000 | M114: CN | N114: 20 | O114: 0.170 | Q114: SBN | S114: 8717332265190
B115: 6650 005 10162 | C115: FAP-OC 520-P | D115: F.01U.510.162 | E115: FAP-OC 520-P Multisens detector LSNi tr | F115: 5A | G115: 328.71 | H115: 1,546.00 | I115: on demand | J115: C | K115: A | L115: 8531103000 | M115: CN | N115: 15 | O115: 0.180 | Q115: SBN | S115: 8717332265213
B116: AVENAR Detector 4000
B117: 7050 003 07726 | C117: FAP-425-O-R | D117: F.01U.307.726 | E117: Optical with Rotary-Switches | F117: 5A | G117: 88.97 | H117: =ROUND(ROUND(G117*4.704*0.72,2),0) -> 301.00 | I117: on demand | J117: C | K117: A | L117: 8531103000 | M117: PT | N117: 12911 | O117: 0.077 | Q117: SBN | S117: 8717332972968
B118: 7050 003 07728 | C118: FAP-425-OT-R | D118: F.01U.307.728 | E118: Optical/Thermal with Rotary-Switches | F118: 5A | G118: 103.23 | H118: =ROUND(ROUND(G118*4.704*0.72,2),0) -> 350.00 | I118: on demand | J118: C | K118: A | L118: 8531103000 | M118: PT | N118: 10961 | O118: 0.077 | Q118: SBN | S118: 8717332972982
B119: 7050 003 07732 | C119: FAH-425-T-R | D119: F.01U.307.732 | E119: Heat with Rotary-Switches | F119: 5A | G119: 81.06 | H119: =ROUND(ROUND(G119*4.704*0.82,2),0) -> 313.00 | I119: on demand | J119: C | K119: A | L119: 8531103000 | M119: PT | N119: 1050 | O119: 0.077 | Q119: SBN | S119: 8717332973026
B120: 7050 003 07729 | C120: FAP-425-DO-R | D120: F.01U.307.729 | E120: Dual-Optical with Rotary-Switches | F120: 5A | G120: 96.16 | H120: =ROUND(ROUND(G120*4.704*0.72,2),0) -> 326.00 | I120: on demand | J120: C | K120: A | L120: 8531103000 | M120: PT | N120: 2238 | O120: 0.077 | Q120: SBN | S120: 8717332972999
B121: 7050 003 07730 | C121: FAP-425-DOT-R | D121: F.01U.307.730 | E121: Dual-Optical/Thermal with Rotary-Switches | F121: 5A | G121: 111.35 | H121: =ROUND(ROUND(G121*4.704*0.72,2),0) -> 377.00 | I121: on demand | J121: C | K121: A | L121: 8531103000 | M121: PT | N121: 2407 | O121: 0.077 | Q121: SBN | S121: 8717332973002
B122: 7050 003 07731 | C122: FAP-425-DOTC-R | D122: F.01U.307.731 | E122: Dual-Optical/Thermal/Chemical with Rotary-Switches | F122: 5A | G122: 186.08 | H122: =ROUND(ROUND(G122*4.704*0.75,2),0) -> 656.00 | I122: on demand | J122: C | K122: A | L122: 8531103000 | M122: PT | N122: 275 | O122: 0.082 | Q122: SBN | S122: 8717332973019
B123: 7050 003 95473 | C123: FAP-425-DOTCO-R | D123: F.01U.395.473 | E123: Detector dual-optical/thermal/CO | F123: 5A | G123: 186.08 | H123: =ROUND(ROUND(G123*4.704*0.75,2),0) -> 656.00 | I123: on demand | J123: C | K123: A | L123: 8531103000 | M123: PT | O123: 0,082 | Q123: SBN | S123: 4060039133199
B124: 7050 003 07725 | C124: FAP-425-O | D124: F.01U.307.725 | E124: Optical without Rotary-Switches | F124: 5A | G124: 86.04 | H124: =ROUND(ROUND(G124*4.704*0.72,2),0) -> 291.00 | I124: on demand | J124: C | K124: A | L124: 8531103000 | M124: PT | N124: 4365 | O124: 0.075 | Q124: SBN | S124: 8717332972951
B125: 7050 003 07727 | C125: FAP-425-OT | D125: F.01U.307.727 | E125: Optical/Thermal without Rotary-Switches | F125: 5A | G125: 101.09 | H125: =ROUND(ROUND(G125*4.704*0.72,2),0) -> 342.00 | I125: on demand | J125: C | K125: A | L125: 8531103000 | M125: PT | N125: 1688 | O125: 0.075 | Q125: SBN | S125: 8717332972975
B126: Accessories 500/400/300 series detectors
B127: Accessories for FAP-500 Series
B128: 6650 005 08713 | C128: FAA-500-CB | D128: F.01U.508.713 | E128: FAA-500-CB, built-in housing for concrete ceiling | F128: 5A | G128: 72.22 | H128: 340.00 | I128: no W-Extension | J128: C | K128: B | L128: 3926909790 | M128: DE | N128: 9 | O128: 0.2 | Q128: - | S128: 4060039033000
B129: 6649 981 51297 | C129: FAA-500 | D129: 4.998.151.297 | E129: FAA500, base LSN | F129: 5A | G129: 53.55 | H129: 252.00 | I129: no W-Extension | J129: C | K129: A | L129: 8536909599 | M129: CN | N129: 174 | O129: 0.25 | Q129: SBN | S129: 8717332097494
B130: 6649 981 51302 | C130: FAA-500-BB | D130: 4.998.151.302 | E130: FAA-500-BB, mount back box | F130: 5A | G130: 15.21 | H130: 72.00 | I130: no W-Extension | J130: C | K130: A | L130: 3926909790 | M130: CN | N130: 192 | O130: 0.166 | Q130: SBN | S130: 8717332097487
B131: 6649 981 51296 | C131: FAA-500-TR-P | D131: 4.998.151.296 | E131: FAA-500-TR-P, transperant iris with color insert | F131: 5A | G131: 24.02 | H131: 113.00 | I131: no W-Extension | J131: C | K131: A | L131: 3926909790 | M131: CN | N131: 20 | O131: 0.049 | Q131: SBN | S131: 8717332097562
B132: 6649 981 51295 | C132: FAA-500-TR-W | D132: 4.998.151.295 | E132: Trim ring for 500 Series, iris white | F132: 5A | G132: 6.04 | H132: 28.00 | I132: no W-Extension | J132: C | K132: A | L132: 3926909790 | M132: CN | N132: 151 | O132: 0.03 | Q132: SBN | S132: 8717332097555
B133: 6650 005 10166 | C133: FAA-500-SB-H | D133: F.01U.510.166 | E133: FAA-500-SB-H Surface mount back box with damp room seal | F133: 5A | G133: 13.28 | H133: 62.00 | I133: no W-Extension | J133: C | K133: A | L133: 3926909790 | M133: CN | N133: 38 | O133: 0.266 | Q133: SBN | S133: 8717332204748
B134: 6650 005 10028 | C134: FAA-500-SPRING | D134: F.01U.510.028 | E134: FAA-500-SPRING for concrete / wooden ceilings | F134: 5A | G134: 9.25 | H134: 44.00 | I134: no W-Extension | J134: C | K134: A | L134: 7320208990 | M134: CN | N134: 10 | O134: 0.116 | P134: Price per piece. Order only 10 pcs or multiple of 10. E.g. needed 30 pcs, order 30 pcs | Q134: - | S134: 8717332204793
B135: 6649 981 51299 | C135: FAA-500-R | D135: 4.998.151.299 | E135: FAA-500-R base LSN with relay | F135: 5A | G135: 53.53 | H135: =ROUND(ROUND(G135*4.704,2),0) -> 252.00 | I135: no W-Extension | J135: C | K135: A | L135: 8536909599 | M135: CN | N135: 2 | O135: 0.24 | Q135: SBN | S135: 8717332283224
B136: Accessories for 300 and 400 series
B137: 6650 005 08658 | C137: FAA-MSR420 | D137: F.01U.508.658 | E137: FAA-420-R Base with Relay for 420 Series | F137: 5A | G137: 42.52 | H137: 200.00 | I137: no W-Extension | J137: C | K137: A | L137: 8536909599 | M137: CN | N137: 28 | O137: 0.09 | Q137: SBN | S137: 8717332206896
B138: 6649 980 21535 | C138: MS 400 | D138: 4.998.021.535 | E138: MS 400, socket, surface/ flush mounted cable supply | F138: 5A | G138: 5.45 | H138: =ROUND(ROUND(G138*4.704*1.28,2),0) -> 33.00 | I138: no W-Extension | J138: C | K138: 1 | L138: 8536909599 | M138: CN | N138: 3162 | O138: 0.009 | Q138: SBN | S138: 8717332019878
B139: 7050 002 15139 | C139: MS 400 B | D139: F.01U.215.139 | E139: MS 400 Detector Base with Bosch Logo | F139: 5A | G139: 5.11 | H139: =ROUND(ROUND(G139*4.704*1.37,2),0) -> 33.00 | I139: no W-Extension | J139: C | K139: A | L139: 8536909599 | M139: CN | N139: 11606 | O139: 0.09 | Q139: SBN | S139: 8717332019878
B140: 7050 002 15142 | C140: FAA-420-SEAL | D140: F.01U.215.142 | E140: FAA-420-SEAL Damp Room Seal MS400 (10ps) | F140: 5A | G140: 122.48 | H140: 576.00 | I140: no W-Extension | J140: C | K140: A | L140: 8536909599 | M140: CN | N140: 38 | O140: 0.23 | P140: One package unit contains 10 pcs. E.g. 50 pcs needed --> order 5 | Q140: SBN | S140: 8717332808830
B141: 6649 981 13025 | C141: MSC 420 | D141: 4.998.113.025 | E141: MSC 420 Add base surface-mount | F141: 5A | G141: 6.92 | H141: 33.00 | I141: no W-Extension | J141: C | K141: A | L141: 3926909790 | M141: CN | N141: 944 | O141: 0.1 | Q141: - | S141: 8717332020461
B142: 6649 981 14565 | C142: MSR 320 | D142: 4.998.114.565 | E142: MSR 320 GLT, Base with Relay | F142: 5A | G142: 30.24 | H142: 142.00 | I142: no W-Extension | J142: C | K142: 1 | L142: 8536909599 | M142: CN | N142: 254 | O142: 0.04 | Q142: SBN | S142: 8717332022519
B143: 6649 980 25369 | C143: SK 400 | D143: 4.998.025.369 | E143: SK 400, Metal cage for protection MagicSens detectors | F143: 5A | G143: 48.37 | H143: 228.00 | I143: no W-Extension | J143: C | K143: A | L143: 7326909890 | M143: DE | N143: 39 | O143: 0.3 | Q143: SBN | S143: 8717332003266
B144: 6649 980 35312 | C144: SSK400 | D144: 4.998.035.312 | E144: SSK 400, dust cover (10ps) | F144: 5A | G144: 26.05 | H144: 123.00 | I144: no W-Extension | J144: C | K144: A | L144: 3926909790 | M144: DE | N144: 123 | O144: 0.21 | P144: One package unit contains 10 pcs. E.g. 50 pcs needed --> order 5 | Q144: SBN | S144: 8717332003310
B145: 6649 980 84709 | C145: TP4 400 | D145: 4.998.084.709 | E145: TP4 400, lettering strip till 4 m hight, (Attention!!! Order multiple, read comment) | F145: 5A | G145: 0.53 | H145: 2.00 | I145: no W-Extension | J145: C | K145: A | L145: 3926909790 | M145: DE | N145: 4597 | O145: 0.006 | P145: Order only 50 pcs or multiple of 50. E.g. needed 150 pcs, order 150 pcs | Q145: - | S145: 8717332003396
B146: 6649 980 84710 | C146: TP8 400 | D146: 4.998.084.710 | E146: TP8 400, lettering strip till 8 m hight, (Attention!!! Order multiple, read comment) | F146: 5A | G146: 0.56 | H146: 3.00 | I146: no W-Extension | J146: C | K146: A | L146: 3926909790 | M146: DE | N146: 879 | O146: 0.009 | P146: Order only 50 pcs or multiple of 50. E.g. needed 150 pcs, order 150 pcs | Q146: - | S146: 8717332003402
B147: 6649 980 25373 | C147: MH 400 | D147: 4998025373 | E147: MH 400, detector heating | F147: 5A | G147: 48.63 | H147: 229.00 | I147: no W-Extension | J147: C | K147: A | L147: 8531900000 | M147: DE | N147: 15 | O147: 0.017 | Q147: - | S147: 8717332003280
B148: 6649 980 97924 | C148: WA400 | D148: 4.998.097.924 | E148: MK 400, detector console including socket | F148: 5A | G148: 43.20 | H148: 203.00 | I148: no W-Extension | J148: C | K148: A | L148: 3926909790 | M148: DE | N148: 33 | O148: 0.199 | Q148: - | S148: 8717332003426
B149: 7050 002 89620 | C149: FAA-420-RI-DIN | D149: F.01U.289.620 | E149: Remote Indicator | F149: 5A | G149: 46.93 | H149: 221.00 | I149: no W-Extension | J149: C | K149: 1 | L149: 8531900000 | M149: PT | N149: 175 | O149: 0.061 | Q149: SBN | S149: 8717332927982
B150: 7050 002 89120 | C150: FAA-420-RI-ROW | D150: F.01U.289.120 | E150: Remote Indicator | F150: 5A | G150: 15.63 | H150: 74.00 | I150: no W-Extension | J150: C | K150: A | L150: 8531900000 | M150: PT | N150: 1155 | O150: 0.058 | Q150: SBN | S150: 8717332926756
B151: 6627 992 71257 | C151: FMX-DET-MB | D151: 2.799.271.257 | E151: MOUNT BRACKfalse floor mounting bracket | F151: 5A | G151: 24.80 | H151: 117.00 | I151: no W-Extension | J151: C | K151: A | L151: 3926909790 | M151: DE | N151: 84 | O151: 0.09 | Q151: - | S151: 8717332018994
B152: 7050 002 39554 | C152: FAA-420-CAP-V0 | D152: F.01U.239.554 | E152: Detector cap, V0 rating (200 pcs) | F152: 5A | G152: 425.68 | H152: 2,002.00 | I152: no W-Extension | J152: C | K152: C | L152: 85369095 | M152: CN | N152: 0 | O152: 0.023 | P152: One unit contains 200 pcs. Minimum order quantity is 5 units (= 1.000 caps). Delivery time 3-4 months. | Q152: - | R152: Mainly used for Israel | S152: 8717332822423
B153: 7050 002 14891 | C153: MS 400 V0 | D153: F.01U.214.891 | E153: Detector base, V0 rating | F153: 5A | G153: 10.16 | H153: 48.00 | I153: no W-Extension | J153: C | K153: C | L153: 85369095 | M153: CN | N153: 0 | O153: 0.081 | Q153: - | R153: Mainly used for Israel | S153: 8717332808199
B154: Conventional detectors
B155: 320 Series
B156: 7050 000 26293 | C156: FCP-O320 | D156: F.01U.026.293 | E156: FCP-O320 optical conventional (820Ω) | F156: 5A | G156: 40.12 | H156: 189.00 | I156: on demand | J156: C | K156: A | L156: 8531103000 | M156: CN | N156: 690 | O156: 0.072 | Q156: SBN | S156: 8717332253180
B157: 7050 000 26292 | C157: FCP-OC320 | D157: F.01U.026.292 | E157: FCP-OC 320 optical/ chemical conv. det. (820Ω) | F157: 5A | G157: 176.63 | H157: 831.00 | I157: on demand | J157: C | K157: A | L157: 8531103000 | M157: CN | N157: 23 | O157: 0.1 | Q157: SBN | S157: 8717332253173
B158: 7050 000 26295 | C158: FCP-OT320 | D158: F.01U.026.295 | E158: FCP-OT 320 optical/ heat conv. Detector (820Ω) | F158: 5A | G158: 69.11 | H158: 325.00 | I158: on demand | J158: C | K158: A | L158: 8531103000 | M158: CN | N158: 113 | O158: 0.09 | Q158: SBN | S158: 8717332253210
B159: 7050 000 26291 | C159: FCH-T320 | D159: F.01U.026.291 | E159: FCH-T 320 conv. RoR heat detector (820Ω) | F159: 5A | G159: 30.67 | H159: 144.00 | I159: on demand | J159: C | K159: A | L159: 8531103000 | M159: CN | N159: 134 | O159: 0.069 | Q159: SBN | S159: 8717332253166
B160: 7050 000 26294 | C160: FCH-T320-FSA | D160: F.01U.026.294 | E160: FCH-T 320-FSA Heat, RoR conv. Detector (820Ω) | F160: 5A | G160: 60.04 | H160: 282.00 | I160: on demand | J160: C | K160: A | L160: 8531103000 | M160: CN | N160: 2 | O160: 0.09 | Q160: SBN | S160: 8717332253203
B161: 7850 000 29857 | C161: FCP-O320-R470 | D161: F.01U.029.857 | E161: FCP-O 320-R470 optical smoke detector (470Ω) | F161: 5A | G161: 40.12 | H161: 189.00 | I161: on demand | J161: C | K161: A | L161: 8531900000 | M161: CN | N161: 31 | O161: 0.09 | Q161: SBN | S161: 800549091664
B162: 7850 000 29867 | C162: FCP-OC320-R470 | D162: F.01U.029.867 | E162: FCP-OC 320-R470 Combined opt/gas det. (470Ω) | F162: 5A | G162: 176.63 | H162: 831.00 | I162: on demand | J162: C | K162: A | L162: 8531103000 | M162: CN | N162: 2 | O162: 0.09 | Q162: SBN | S162: 800549091718
B163: 7850 000 29862 | C163: FCP-OT320-R470 | D163: F.01U.029.862 | E163: FCP-OT 320-R470 optical/heat detector (470Ω) | F163: 5A | G163: 69.11 | H163: 325.00 | I163: on demand | J163: C | K163: A | L163: 8531103000 | M163: CN | N163: 4 | O163: 0.091 | Q163: SBN | S163: 800549091701
B164: 7850 000 29861 | C164: FCH-T320-R470 | D164: F.01U.029.861 | E164: FCH-T 320-R470 heat detector (470Ω) | F164: 5A | G164: 30.67 | H164: 144.00 | I164: on demand | J164: C | K164: A | L164: 8531103000 | M164: CN | N164: 4 | O164: 0.099 | Q164: SBN | S164: 800549091695
B165: 7050 000 83619 | C165: FLM-320-EOL2W | D165: F.01U.083.619 | E165: FLM-320-EOL2W Conv EOL Module 2-Wire | F165: 5A | G165: 33.55 | H165: 158.00 | I165: no W-Extension | J165: C | K165: A | L165: 8537109199 | M165: CN | N165: 24 | O165: 0.03 | Q165: SBN | S165: 800549189309
B166: 705000083620 | C166: FLM-320-EOL4W-S | D166: F.01U.083.620 | E166: FLM-320-EOL4W-S Conv EOL Module 4-Wire | F166: 5A | G166: 147.57 | H166: 694.00 | I166: on demand | J166: C | K166: A | L166: 8536501999 | M166: CN | N166: 3 | O166: 0.48 | Q166: SBN | S166: 8717332361120
B167: 500 Series
B168: 7850 005 10647 | C168: FCA-500-EU | D168: F.01U.510.647 | E168: FCA-500-EU base conventional for EU | F168: 5A | G168: 62.18 | H168: 292.00 | I168: no W-Extension | J168: C | K168: A | L168: 8536909599 | M168: CN | N168: 40 | O168: 0.218 | Q168: SBN | S168: 8717332251490
B169: 7850 005 10648 | C169: FCA-500-E-EU | D169: F.01U.510.648 | E169: FCA-500-E-EU base conv-EOL for EU | F169: 5A | G169: 76.00 | H169: 358.00 | I169: no W-Extension | J169: C | K169: A | L169: 8536909599 | M169: CN | N169: 7 | O169: 0.25 | Q169: SBN | S169: 8717332256228
B170: 7850 005 12649 | C170: FCP-O 500 | D170: F.01U.510.649 | E170: FCP-O 500 conv opt smoke detector EU wh | F170: 5A | G170: 310.93 | H170: 1,463.00 | I170: on demand | J170: C | K170: 1 | L170: 8531103000 | M170: CN | N170: 75 | O170: 0.308 | Q170: SBN | S170: 8717332251445
B171: 7850 005 10653 | C171: FCP-OC 500 | D171: F.01U.510.653 | E171: FCP-OC 500 Multisens detect conv EU wh | F171: 5A | G171: 449.12 | H171: 2,113.00 | I171: on demand | J171: C | K171: A | L171: 8531103000 | M171: CN | N171: 10 | O171: 0.217 | Q171: SBN | S171: 8717332251469
B172: 7850 005 10654 | C172: FCP-O 500-P | D172: F.01U.510.654 | E172: FCP-O 500-P conv opt smoke det EU tr | F172: 5A | G172: 324.75 | H172: 1,528.00 | I172: on demand | J172: C | K172: A | L172: 8531103000 | M172: CN | N172: 10 | O172: 0.36 | Q172: SBN | S172: 8717332251476
B173: 7850 005 10656 | C173: FCP-OC 500-P | D173: F.01U.510.656 | E173: FCP-OC 500-P conv multisen detect EU tr | F173: 5A | G173: 462.94 | H173: 2,178.00 | I173: on demand | J173: C | K173: A | L173: 8531103000 | M173: CN | N173: 1 | O173: 0.35 | Q173: SBN | S173: 8717332251483
B174: Detectors for explosive areas
B175: 7050 002 79764 | C175: 016519 | D175: F.01U.279.764 | E175: Flameproof (Exd) IR3 Flame Detector | F175: 5A | G175: 8,616.02 | H175: 40,530.00 | I175: no W-Extension | J175: C | K175: A | L175: 8531103000 | M175: GB | N175: 3 | O175: 2.5 | Q175: SBN | S175: 8717332906369
B176: 705000332582 | C176: OOH740-A9-EX | D176: F.01U.332.582 | E176: Dual-optical detector, explosive area | F176: 5A | G176: 558.24 | H176: 2,626.00 | I176: no W-Extension | J176: C | K176: A | L176: 85311030000 | M176: CH | N176: 23 | O176: 0.124 | Q176: SBN | S176: 4260451081447
B177: 705000332583 | C177: FDB201 | D177: F.01U.332.583 | E177: Base for Dual-Optical Detector for Ex Area | F177: 5A | G177: 33.49 | H177: 158.00 | I177: no W-Extension | J177: C | K177: A | L177: 85319085900 | M177: CH | N177: 24 | O177: 0.025 | Q177: SBN | S177: 4260451081454
B178: 705000335165 | C178: FDB291 | D178: F.01U.335.165 | E178: Base attachment | F178: 5A | G178: 24.81 | H178: 117.00 | I178: no W-Extension | J178: C | K178: A | L178: 85319000000 | M178: CH | N178: 11 | O178: 0.036 | Q178: SBN | S178: 4260451089573
B179: 705000335589 | C179: FDB295 | D179: F.01U.335.589 | E179: Base attachment wet | F179: 5A | G179: 95.52 | H179: 449.00 | I179: no W-Extension | J179: C | K179: A | L179: 85319000000 | M179: CN | N179: 10 | O179: 0.286 | Q179: SBN | S179: 4060039000002
B180: 705000335595 | C180: FDB295M | D180: F.01U.335.595 | E180: Metal cable gland | F180: 5A | G180: 54.59 | H180: 257.00 | I180: no W-Extension | J180: C | K180: A | L180: 90269000900 | M180: CH | N180: 27 | O180: 0.354 | P180: 1 bag contains 10 pcs.20 pcs needed, order 2 pcs. (bags) REUP per unit (= 10 pcs) | Q180: SBN | S180: 4060039000064
B181: 705000335593 | C181: FDUD291 | D181: F.01U.335.593 | E181: Detector exchanger | F181: 5A | G181: 2,133.70 | H181: 10,037.00 | I181: no W-Extension | J181: C | K181: A | L181: 90318080000 | M181: CH | N181: 0 | O181: 0.480 | Q181: SBN | S181: 4060039000040
B182: 705000335590 | C182: FDBZ291 | D182: F.01U.335.590 | E182: Designation plate | F182: 5A | G182: 2.49 | H182: 12.00 | I182: no W-Extension | J182: C | K182: A | L182: 85319000000 | M182: CH | N182: 13 | O182: 0.024 | P182: Order only 10 pcs or multiple of 10. E.g. needed 30 pcs, order 30 pcs | Q182: SBN | S182: 4060039000019
B183: 705000335591 | C183: FDBZ293 | D183: F.01U.335.591 | E183: Detector locking device | F183: 5A | G183: 0.98 | H183: 5.00 | I183: no W-Extension | J183: C | K183: A | L183: 85319000000 | M183: CH | N183: 0 | O183: 0.026 | P183: Order only 100 pcs or multiple of 100. E.g. needed 60 pcs, order 100 pcs | Q183: SBN | S183: 4060039000026
B184: 705000335592 | C184: FDBZ295 | D184: F.01U.335.592 | E184: Sealing element | F184: 5A | G184: 19.85 | H184: 93.00 | I184: no W-Extension | J184: C | K184: A | L184: 40169300900 | M184: CH | N184: 3 | O184: 0.037 | Q184: SBN | S184: 4060039000033
B185: 705000335594 | C185: FDZ291 | D185: F.01U.335.594 | E185: Detector dust cap | F185: 5A | G185: 3.72 | H185: 18.00 | I185: no W-Extension | J185: C | K185: A | L185: 85319000000 | M185: CH | N185: 4 | O185: 0.045 | P185: Order only 10 pcs or multiple of 10. E.g. needed 30 pcs, order 30 pcs | Q185: SBN | S185: 4060039000057
B186: 6649 981 12085 | C186: SB3 | D186: 4.998.112.085 | E186: SB3, Safety barrier (including input/output module DCA1192) | F186: 5A | G186: 917.99 | H186: 4,318.00 | I186: no W-Extension | J186: C | K186: A | L186: 8536909599 | M186: DE | N186: 15 | O186: 1.19 | Q186: SBN | S186: 8717332003655
B187: 6649 981 15785 | C187: DOW1171-ident | D187: 4.998.115.785 | E187: DBZ1193A, DOW1171 Det identifier | F187: 5A | G187: 1.89 | H187: 9.00 | I187: no W-Extension | J187: C | K187: A | L187: 8310000000.00 | M187: CH | N187: 3 | O187: 0 | P187: Price per piece. Order only 10 pcs or multiple of 10. E.g. needed 30 pcs, order 30 pcs. | Q187: SBN | S187: 8717332020478
B188: Video-based Fire Detection
B189: 7050 004 06348 | C189: FCS-8000-VFD-I | D189: F.01U.406.348 | E189: AI-VFD Bullet 4MP 4.4-10mm IP67 | F189: 5A | G189: 7,089.08 | H189: 33,347.00 | I189: on demand | J189: C | K189: A | L189: 85258900 | M189: PT | O189: 3.285 | Q189: SBN | S189: 4060039159519
B190: 7050 003 17536 | C190: FCS-8000-VFD-B | D190: F.01U.317.536 | E190: AVIOTEC IP starlight 8000 | F190: 5A | G190: 7,089.08 | H190: 33,347.00 | I190: on demand | J190: C | K190: A | L190: 8525801931 | M190: PT | N190: 44 | O190: 1.196 | Q190: SBN | S190: 8717332541010
B191: Wireless Devices
B192: 66F01U349134 | C192: FWI-270 | D192: F.01U.349.134 | E192: Radio gateway | F192: 5A | G192: 1,088.56 | H192: 5,121.00 | I192: no W-Extension | J192: C | K192: B | L192: 8517620000 | M192: PT | N192: 11 | O192: 0.260 | S192: 4060039021670
B193: 66F01U349135 | C193: FDOOT271-O | D193: F.01U.349.135 | E193: Radio fire detector | F193: 5A | G193: 625.81 | H193: 2,944.00 | I193: no W-Extension | J193: C | K193: B | L193: 8531900000 | M193: CH | N193: 93 | O193: 0.134 | S193: 4060039021687
B194: 66F01U349136 | C194: FDB271 | D194: F.01U.349.136 | E194: Base radio fire detector | F194: 5A | G194: 11.81 | H194: 56.00 | I194: no W-Extension | J194: C | K194: B | L194: 8536909599 | M194: CH | N194: 92 | O194: 0.039 | S194: 4060039021694
B195: 66F01U349137 | C195: FDMH273-R | D195: F.01U.349.137 | E195: Radio manual call point housing | F195: 5A | G195: 135.79 | H195: 639.00 | I195: no W-Extension | J195: C | K195: B | L195: 8536501999 | M195: CH | N195: 5 | O195: 0.285 | S195: 4060039021700
B196: 66F01U349249 | C196: FDME273-O | D196: F.01U.349.249 | E196: Radio manual call point switching unit | F196: 5A | G196: 785.22 | H196: 3,694.00 | I196: no W-Extension | J196: C | K196: B | L196: 8536501999 | M196: CH | N196: 6 | O196: 0.108 | S196: 4060039022233
B197: 66F01U349248 | C197: BAT3.6-10 | D197: F.01U.349.248 | E197: Li-SOCl2 battery pack 3.6V, 10 Ah | F197: 5A | G197: 80.29 | H197: 378.00 | I197: no W-Extension | J197: C | K197: B | L197: 8506501000 | M197: CH | N197: 120 | O197: 0.09 | S197: 4060039022226
B198: 66F01U349251 | C198: FDM275-O | D198: F.01U.349.251 | E198: Radio manual call point | F198: 5A | G198: 811.20 | H198: 3,816.00 | I198: no W-Extension | J198: C | K198: B | L198: 8536501999 | M198: CH | N198: 1 | O198: 0.224 | S198: 4060039022257
B199: 66F01U349250 | C199: DMZ1196-AC | D199: F.01U.349.250 | E199: Spare glass FDM273-O | F199: 5A | G199: 10.99 | H199: =ROUND(ROUND(G199*4.704,2),0) -> 52.00 | I199: no W-Extension | J199: C | K199: B | L199: 3926909790 | M199: CH | N199: 4 | O199: 0.117 | P199: Price of 1 Pc. But can be only ordered in set of 10 Pieces | S199: 4060039022240
B200: 66F01U349252 | C200: FDMG295 | D200: F.01U.349.252 | E200: Spare glass FDM275-O | F200: 5A | G200: 13.23 | H200: 62.00 | I200: no W-Extension | J200: C | K200: B | L200: 926909790 | M200: CH | N200: 1 | O200: 0.066 | P200: Price of 1 Pc. But can be only ordered in set of 5 Pieces | S200: 4060039022264
... 300 more rows

Sheet Fire EN 54 (hidden)
A1: Change Indicator | C1: BU Fire reference REUP List Q1-2 / 2026 - V1.0
B2: 12 NC | C2: CTN | D2: SAPnumber | E2: Description | F2: Discount Category | G2: 2026-01-01 | H2: FX=4,704 REUP PL valid 01.01.2026 | I2: Warranty Period (years) | J2: Status | K2: ABC Code | L2: HS Code | M2: Country of Origin | N2: Spike order | O2: Net weight (kg) | P2: Order Info | Q2: Repair process | R2: Remarks | S2: EAN code single
B3: Modular Panel
B4: AVENAR panel modules
B5: 7050 000 81384 | C5: BCM-0000-B | D5: F.01U.081.384 | E5: BCM 0000 B Battery Controller Module | F5: 5A | G5: 220.24 | H5: =ROUND(ROUND(G5*4.704,2),0) -> 1,036.00 | I5: 5 | J5: C | K5: 1 | L5: 8537109199 | M5: CN | N5: 148 | O5: 0.342 | Q5: SBN | S5: 800549180153
B6: 6649 981 37262 | C6: ANI 0016 A | D6: 4.998.137.262 | E6: ANI 0016 A 16 Point Annunciator internal | F6: 5A | G6: 132.15 | H6: =ROUND(ROUND(G6*4.704,2),0) -> 622.00 | I6: 5 | J6: C | K6: A | L6: 8537109199 | M6: CN | N6: 7 | O6: 0.26 | Q6: SBN | S6: 8717332205882
B7: 6649 981 37265 | C7: RML 0008 A | D7: 4.998.137.265 | E7: RML 0008 A Relay Low Voltage | F7: 5A | G7: 176.18 | H7: 829.00 | I7: 5 | J7: C | K7: 1 | L7: 8537109199 | M7: CN | N7: 98 | O7: 0.306 | Q7: SBN | S7: 8717332205912
B8: 6649 981 37266 | C8: IOS 0020 A | D8: 4.998.137.266 | E8: IOS 0020 A 20mA Communication Module | F8: 5A | G8: 479.40 | H8: 2,255.00 | I8: 5 | J8: C | K8: 1 | L8: 8537109199 | M8: CN | N8: 15 | O8: 0.594 | Q8: SBN | S8: 8717332205929
B9: 6649 981 37267 | C9: IOS 0232 A | D9: 4.998.137.267 | E9: IOS 0232 A RS232 Communication Module | F9: 5A | G9: 264.29 | H9: 1,243.00 | I9: 5 | J9: C | K9: A | L9: 8537109199 | M9: CN | N9: 4 | O9: 0.233 | Q9: SBN | S9: 8717332205936
B10: 6649 981 37269 | C10: IOP 0008 A | D10: 4.998.137.269 | E10: IOP 0008 A 8 input/output OC module | F10: 5A | G10: 241.90 | H10: 1,138.00 | I10: 5 | J10: C | K10: 1 | L10: 8537109199 | M10: CN | N10: 17 | O10: 0.299 | Q10: SBN | S10: 8717332205943
B11: 6649 981 37270 | C11: CZM 0004 A | D11: 4.998.137.270 | E11: CZM 0004 A 4 Zone Conventional Zone Module | F11: 5A | G11: 477.60 | H11: 2,247.00 | I11: 5 | J11: C | K11: 1 | L11: 8537109199 | M11: CN | N11: 52 | O11: 0.333 | Q11: SBN | S11: 8717332205950
B12: 7050 000 63204 | C12: ENO 0000 B | D12: F.01U.063.204 | E12: ENO 0000 B (External Notification) | F12: 5A | G12: 352.38 | H12: 1,658.00 | I12: 5 | J12: C | K12: 1 | L12: 8537109199 | M12: CN | N12: 79 | O12: 0.27 | Q12: SBN | S12: 800549134231
B13: 6649 981 37274 | C13: RMH 0002 A | D13: 4.998.137.274 | E13: RMH 0002 A 2 Zone Relay high voltage | F13: 5A | G13: 403.18 | H13: 1,897.00 | I13: 5 | J13: C | K13: A | L13: 8537109199 | M13: CN | N13: 15 | O13: 0.31 | Q13: SBN | S13: 8717332205998
B14: 6649 981 37275 | C14: NZM 0002 A | D14: 4.998.137.275 | E14: NZM 0002 A 2 Zone NAC Zone Module | F14: 5A | G14: 352.38 | H14: 1,658.00 | I14: 5 | J14: C | K14: 1 | L14: 8537109199 | M14: CN | N14: 37 | O14: 0.306 | Q14: SBN | S14: 8717332206001
B15: 6650 000 28289 | C15: FPE-5000-UGM | D15: F.01U.028.289 | E15: UGM interface module | F15: 5A | G15: 465.13 | H15: 2,188.00 | I15: 5 | J15: C | K15: A | L15: 8537109199 | M15: CN | N15: 32 | O15: 0.27 | Q15: SBN | S15: 8717332260041
B16: 6649 981 37277 | C16: LSN 0300 A | D16: 4.998.137.277 | E16: LSN 0300 A LSN Module | F16: 5A | G16: 514.81 | H16: 2,422.00 | I16: 5 | J16: C | K16: 1 | L16: 8538909999 | M16: CN | N16: 462 | O16: 0.306 | Q16: SBN | S16: 8717332206018
B17: 6649 981 37278 | C17: LSN 1500 A | D17: 4.998.137.278 | E17: LSN 1500 A, LSN improved Module | F17: 5A | G17: 1,023.43 | H17: 4,814.00 | I17: 5 | J17: C | K17: A | L17: 8538909999 | M17: CN | N17: 27 | O17: 0.68 | Q17: SBN | S17: 8717332309719
B18: 6649 981 37279 | C18: PRS-0002-C | D18: F.01U.284.903 | E18: PRS-0002-C Panel Rail Short | F18: 5A | G18: 59.75 | H18: 281.00 | I18: 5 | J18: C | K18: A | L18: 8536901000 | M18: CN | N18: 165 | O18: 0.45 | Q18: SBN | S18: 8717332206025
B19: 6649 981 37280 | C19: PRD 0004 A | D19: 4.998.137.280 | E19: PRD 0004 A Panel Rail long | F19: 5A | G19: 149.77 | H19: 705.00 | I19: 5 | J19: C | K19: 1 | L19: 8536901000 | M19: CN | N19: 129 | O19: 0.72 | Q19: SBN | S19: 8717332206032
B20: AVENAR panel 8000
B21: 7050 003 27090 | C21: FPE-8000-SPC | D21: F.01U.327.090 | E21: Panel controller, standard license | F21: 5A | G21: 855.96 | H21: 4,026.00 | I21: 5 | J21: C | K21: A | L21: 8537109199 | M21: PT | N21: 24 | O21: 3.191 | Q21: SBN | S21: 8717332940417
B22: 7050 003 52441 | C22: FPE-8000-PPC | D22: F.01U.352.441 | E22: Panel controller, premium license | F22: 5A | G22: 1,470.02 | H22: 6,915.00 | I22: 5 | J22: C | K22: A | L22: 8537109199 | M22: PT | N22: 27 | O22: 3.191 | Q22: SBN | S22: 4060039031174
B23: AVENAR panel 8000 Housings for Frame Installation
B24: 6649 981 37290 | C24: CPH 0006 A | D24: 4.998.137.290 | E24: CPH 0006 A Backbox CABT 1 rail | F24: 5A | G24: 524.37 | H24: 2,467.00 | I24: 5 | J24: C | K24: 1 | L24: 8538909999 | M24: CN | N24: 68 | O24: 12.34 | Q24: SBN | S24: 8717332206131
B25: 6649 981 37291 | C25: MPH 0010 A | D25: 4.998.137.291 | E25: MPH 0010 A Backbox CABT 2 Rails | F25: 5A | G25: 660.71 | H25: 3,108.00 | I25: 5 | J25: C | K25: 1 | L25: 8538909999 | M25: CN | N25: 74 | O25: 13.85 | Q25: SBN | S25: 8717332206148
B26: 6649 981 37292 | C26: EPH 0012 A | D26: 4.998.137.292 | E26: EPH 0012 A Backbox 3 rails | F26: 5A | G26: 1,122.67 | H26: 5,281.00 | I26: 5 | J26: C | K26: 1 | L26: 8538909999 | M26: CN | N26: 21 | O26: 14.55 | Q26: SBN | S26: 8717332206155
B27: 6649 981 37293 | C27: PSF 0002 A | D27: 4.998.137.293 | E27: PSF 0002 A Power-small-frame | F27: 5A | G27: 354.28 | H27: 1,667.00 | I27: 5 | J27: C | K27: 1 | L27: 8538909999 | M27: CN | N27: 54 | O27: 7.723 | Q27: SBN | S27: 8717332206162
B28: 6650 005 11306 | C28: PMF 0002 A | D28: F.01U.511.306 | E28: PMF 0002 A Power-medium-frame | F28: 5A | G28: 357.41 | H28: 1,681.00 | I28: 5 | J28: C | K28: A | L28: 3926909790 | M28: CN | N28: 124 | O28: 12.726 | Q28: SBN | S28: 8717332206667
B29: 6649 981 37294 | C29: PMF 0004 A | D29: 4.998.137.294 | E29: PMF 0004 A Power-medium-frame | F29: 5A | G29: 409.57 | H29: 1,927.00 | I29: 5 | J29: C | K29: 1 | L29: 8538909999 | M29: CN | N29: 64 | O29: 12.132 | Q29: SBN | S29: 8717332206179
B30: 6649 981 47119 | C30: USF 0000 A | D30: 4.998.147.119 | E30: USF 0000 A Universal housing-small-frame | F30: 5A | G30: 340.84 | H30: 1,603.00 | I30: 5 | J30: C | K30: A | L30: 8538909999 | M30: CN | N30: 13 | O30: 7.489 | Q30: SBN | S30: 8717332206315
B31: 6649 981 37296 | C31: FBH 0000 A | D31: 4.998.137.296 | E31: FBH 0000 A Mounting frame large | F31: 5A | G31: 178.30 | H31: 839.00 | I31: 5 | J31: C | K31: 1 | L31: 3926909790 | M31: CN | N31: 500 | O31: 4.822 | Q31: SBN | S31: 8717332206193
B32: 6649 981 37297 | C32: FMH 0000 A | D32: 4.998.137.297 | E32: FMH 0000 A Mounting frame medium | F32: 5A | G32: 131.09 | H32: 617.00 | I32: 5 | J32: C | K32: 1 | L32: 3926909790 | M32: CN | N32: 150 | O32: 4.137 | Q32: SBN | S32: 8717332206209
B33: 6649 981 37298 | C33: FSH 0000 A | D33: 4.998.137.298 | E33: FSH 0000 A Mounting frame small | F33: 5A | G33: 104.89 | H33: 493.00 | I33: 5 | J33: C | K33: A | L33: 3926909790 | M33: CN | N33: 20 | O33: 2.362 | Q33: SBN | S33: 8717332206216
B34: 7050 002 66845 | C34: FPM-5000-KMC | D34: F.01U.266.845 | E34: mounting kit for media converter | F34: 5A | G34: 443.13 | H34: 2,084.00 | I34: 5 | J34: C | K34: A | L34: 85189000 | M34: DE | N34: 7 | O34: 0.86 | Q34: SBN | S34: 8717332875269
B35: 6650 005 11305 | C35: HMP 0003 A | D35: F.01U.511.305 | E35: HMP 0003 A, installation plate for mounting frame | F35: 5A | G35: 132.15 | H35: 622.00 | I35: 5 | J35: C | K35: A | L35: 3926909790 | M35: CN | N35: 8 | O35: 0.383 | Q35: SBN | S35: 8717332206650
B36: 6649 981 39498 | C36: FRB 0019 A | D36: 4.998.139.498 | E36: FRB 0019 A 19" Frame Rack X Rails | F36: 5A | G36: 140.95 | H36: 663.00 | I36: 5 | J36: C | K36: A | L36: 7326909890 | M36: CN | N36: 10 | O36: 4.813 | Q36: SBN | S36: 8717332206278
B37: 6649 981 39499 | C37: FRM 0019 A | D37: 4.998.139.499 | E37: FRM 0019 A 19" Frame Rack X Rails | F37: 5A | G37: 110.12 | H37: 518.00 | I37: 5 | J37: C | K37: A | L37: 7326909890 | M37: CN | N37: 4 | O37: 4.778 | Q37: SBN | S37: 8717332206285
B38: 6649 981 39500 | C38: FRS 0019 A | D38: 4.998.139.500 | E38: FRS 0019 A 19" Frame Rack X Rails | F38: 5A | G38: 96.90 | H38: 456.00 | I38: 5 | J38: C | K38: A | L38: 3926909790 | M38: CN | N38: 3 | O38: 3.14 | Q38: SBN | S38: 8717332206292
B39: 6650 005 00374 | C39: FDP 0001 A | D39: F.01U.500.374 | E39: FDP 0001 A Front Dummy cover plate | F39: 5A | G39: 17.62 | H39: 83.00 | I39: 5 | J39: C | K39: 1 | L39: 3926909790 | M39: CN | N39: 737 | O39: 0.1 | Q39: SBN | S39: 8717332206605
B40: 6650 005 13251 | C40: FPO-5000-EB | D40: F.01U.513.251 | E40: FPO-5000-EB earth bar | F40: 5A | G40: 88.10 | H40: 414.00 | I40: 5 | J40: C | K40: A | L40: 7326909890 | M40: CN | N40: 31 | O40: 0.111 | Q40: SBN | S40: 8717332206766
B41: AVENAR panel 8000 Housings for Wall Mounting
B42: 6649 981 37285 | C42: HCP 0006 A | D42: 4.998.137.285 | E42: HCP 0006 A CABT 1 Rail & Common Control | F42: 5A | G42: 440.48 | H42: 2,072.00 | I42: 5 | J42: C | K42: 1 | L42: 8529904900 | M42: CN | N42: 64 | O42: 13.581 | Q42: SBN | S42: 8717332206087
B43: 6649 981 37286 | C43: HBC 0010 A | D43: 4.998.137.286 | E43: HBC 0010 A CABT 2 Rails & Common Control | F43: 5A | G43: 660.71 | H43: 3,108.00 | I43: 5 | J43: C | K43: 1 | L43: 8529904900 | M43: CN | N43: 13 | O43: 17.11 | Q43: SBN | S43: 8717332206094
B44: 6649 981 37287 | C44: HBE 0012 A | D44: 4.998.137.287 | E44: HBE 0012 A CABT 3 Rails | F44: 5A | G44: 1,122.67 | H44: 5,281.00 | I44: 5 | J44: C | K44: A | L44: 8529904900 | M44: CN | N44: 7 | O44: 18.144 | Q44: SBN | S44: 8717332206100
B45: 6649 981 37288 | C45: PSS 0002 A | D45: 4.998.137.288 | E45: PSS 0002 A CABT 1 power Slot 2 batterys | F45: 5A | G45: 486.93 | H45: 2,291.00 | I45: 5 | J45: C | K45: A | L45: 3926909790 | M45: CN | N45: 8 | O45: 7.452 | Q45: SBN | S45: 8717332206117
B46: 6649 981 37289 | C46: PSB 0004 A | D46: 4.998.137.289 | E46: PSB 0004 A CABT 1 power Slot 4 batterys | F46: 5A | G46: 660.71 | H46: 3,108.00 | I46: 5 | J46: C | K46: A | L46: 3926909790 | M46: CN | N46: 10 | O46: 12.511 | Q46: SBN | S46: 8717332206124
B47: 6650 005 11304 | C47: FRK 0019 A | D47: F.01U.511.304 | E47: FRK 0019 A 19 inches fixing kit | F47: 5A | G47: 293.24 | H47: 1,379.00 | I47: 5 | J47: C | K47: A | L47: 7326909890 | M47: DE | N47: 1 | O47: 2.34 | Q47: SBN | S47: 8717332263493
B48: 7050 002 66844 | C48: FPM-5000-KES | D48: F.01U.266.844 | E48: FPM-5000-KES mounting kit for Ethernet switch | F48: 5A | G48: 781.97 | H48: 3,678.00 | I48: 5 | J48: C | K48: A | L48: 8302500000 | M48: DE | N48: 5 | O48: 2.77 | Q48: SBN | S48: 8717332875252
B49: 7050 002 65641 | C49: EL1141-10B-BH | D49: F.01U.265.641 | E49: EL1141-10B-BH Ethernet Fibre Optics Converter MM | F49: 5A | G49: 944.48 | H49: 4,443.00 | I49: 3 | J49: C | K49: A | L49: 8504409090 | M49: TW | N49: 31 | O49: 0.58 | Q49: SBN | S49: 8717332871018
B50: 7050 002 65643 | C50: EL1141-B0B-BH | D50: F.01U.265.643 | E50: EL1141-10B-BH Ethernet Fibre Optics Converter SM | F50: 5A | G50: 1,312.29 | H50: 6,173.00 | I50: 3 | J50: C | K50: A | L50: 8504409090 | M50: TW | N50: 23 | O50: 0.58 | Q50: SBN | S50: 8717332871032
B51: AVENAR panel 8000 Power Supplies
B52: 6650 005 00367 | C52: UPS 2416 A | D52: F.01U.500.367 | E52: UPS 2416 Power Supply 24V/6A NAC sync | F52: 5A | G52: 431.66 | H52: 2,031.00 | I52: 5 | J52: C | K52: 1 | L52: 8504403090 | M52: CN | N52: 1250 | O52: 0.97 | Q52: SBN | S52: 8717332206582
B53: 6649 981 53243 | C53: CPB 0000 A | D53: 4.998.153.243 | E53: CPB 0000 A Cable set P-Supply to BC | F53: 5A | G53: 22.02 | H53: 104.00 | I53: 5 | J53: C | K53: A | L53: 8544429090 | M53: CN | N53: 700 | O53: 0.198 | Q53: SBN | S53: 8717332206520
B54: 7050 000 78858 | C54: FPO-5000-PSB1 | D54: F.01U.078.858 | E54: PSB 1001 A P-Supply Bracket US single | F54: 5A | G54: 96.90 | H54: 456.00 | I54: 5 | J54: C | K54: A | L54: 3926909790 | M54: CN | N54: 12 | O54: 1.03 | Q54: SBN | S54: 8717332342655
B55: 7050 000 78860 | C55: FPO-5000-PSB-CH | D55: F.01U.078.860 | E55: CPB 1002 A P-Supply Bracket CH US | F55: 5A | G55: 123.34 | H55: 580.00 | I55: 5 | J55: C | K55: 1 | L55: 3926909790 | M55: CN | N55: 375 | O55: 0.798 | Q55: SBN | S55: 8717332342679
B56: 705000398453 | C56: FPP-3000 | D56: F.01U.398.453 | E56: Power Supply | F56: 5A | G56: 595.23 | H56: 2,800.00 | I56: 3 | J56: C | K56: A | L56: 85044055 | M56: PL | N56: 23 | O56: 11.000 | Q56: SBN | S56: 4060039146991
B57: 6650 005 11307 | C57: FPP 5000 | D57: F.01U.511.307 | E57: FPP 5000, AUX power supply kit | F57: 5A | G57: 1,198.08 | H57: 5,636.00 | I57: 5 | J57: C | K57: B | L57: 8504900500 | M57: NL | N57: 20 | O57: 20.7 | Q57: RC | S57: 8717332206674
B58: 7050 001 61679 | C58: FPP-5000-TI13 | D58: F.01U.161.679 | E58: LSN interface for FPP-5000 | F58: 5A | G58: 177.91 | H58: 837.00 | I58: 5 | J58: C | K58: A | L58: 8531900000 | M58: CN | N58: 111 | O58: 0.306 | S58: 8717332754281
B59: AVENAR panel 8000 Cable Sets
B60: 6649 981 53244 | C60: CBB 0000 A | D60: 4.998.153.244 | E60: CBB 0000 A Cable set BC to Battery | F60: 5A | G60: 28.63 | H60: 135.00 | I60: 5 | J60: C | K60: 1 | L60: 8544429090 | M60: CN | N60: 788 | O60: 0.198 | Q60: SBN | S60: 8717332206537
B61: 7050 003 49391 | C61: FPE-8000-CRP | D61: F.01U.349.391 | E61: Cable set redundant panel controller | F61: 5A | G61: 74.43 | H61: 350.00 | I61: 5 | J61: C | K61: A | L61: 8544429090 | M61: PT | N61: 13 | O61: 0.642 | Q61: SBN | S61: 4060039022608
B62: 7050 003 49392 | C62: FPE-8000-CRK | D62: F.01U.349.392 | E62: Cable redundant keypad | F62: 5A | G62: 44.66 | H62: 210.00 | I62: 5 | J62: C | K62: A | L62: 8544429090 | M62: PT | N62: 25 | O62: 0.258 | Q62: SBN | S62: 4060039022615
B63: AVENAR panel 8000 Accessories
B64: 6650 005 00374 | C64: FDP 0001 A | D64: F.01U.500.374 | E64: FDP 0001 A Front Dummy cover plate | F64: 5A | G64: 17.62 | H64: 83.00 | I64: 5 | J64: C | K64: 1 | L64: 3926909790 | M64: CN | N64: 737 | O64: 0.1 | Q64: SBN | S64: 8717332206605
B65: 6650 005 00442 | C65: SIV 28 | D65: F.01U.500.442 | E65: SIV 28V Fuse protected distributor | F65: 5A | G65: 120.23 | H65: 566.00 | I65: 5 | J65: C | K65: A | L65: 8531900000 | M65: DE | N65: 5 | O65: 0.22 | Q65: SBN | S65: 8717332212309
C66: ESP-EF01U390166 | D66: F.01U.390.166 | E66: SPA Cable NTC-Resistor Magic-Panel | F66: 5A | G66: 59.80 | H66: 281.00 | I66: 5 | J66: C | K66: A | L66: 85334010 | M66: China | O66: 0.001 | Q66: No repair | S66: 4060039122308
B67: AVENAR keypad 8000
B68: 7050 003 27092 | C68: FPE-8000-FMR | D68: F.01U.327.092 | E68: Remote Keypad | F68: 5A | G68: 1,507.23 | H68: 7,090.00 | I68: 5 | J68: C | K68: A | L68: 8537109199 | M68: PT | N68: 22 | O68: 3.121 | Q68: SBN | S68: 8717332940431
B69: AVENAR panel 2000
B70: 7050 003 27091 | C70: FPE-2000-SPC | D70: F.01U.327.091 | E70: Panel controller AVENAR panel 2000, standard license | F70: 5A | G70: 855.96 | H70: =ROUND(ROUND(G70*4.704,2),0) -> 4,026.00 | I70: 5 | J70: C | K70: A | L70: 8537109199 | M70: PT | N70: 28 | O70: 3.191 | Q70: SBN | S70: 8717332940424
B71: 7050 003 52443 | C71: FPE-2000-PPC | D71: F.01U.352.443 | E71: Panel controller AVENAR panel 2000, premium license | F71: 5A | G71: 1,470.02 | H71: 6,915.00 | I71: 5 | J71: C | K71: A | L71: 8537109199 | M71: PT | N71: 18 | O71: 3.191 | Q71: SBN | S71: 4060039031181
B72: 7050 003 83886 | C72: FPA-2000-SWM | D72: F.01U.383.886 | E72: Panel kit standard license, wall-mount | F72: 5A | G72: 1,791.32 | H72: =ROUND(ROUND(G72*4.704*1.05,2),0) -> 8,848.00 | I72: 5 | J72: C | K72: A | L72: 8537109199 | M72: PT | N72: 0 | O72: 19.7 | Q72: SBN | S72: 4060039107411
B73: 7050 003 83887 | C73: FPA-2000-SFM | D73: F.01U.383.887 | E73: Panel kit standard license, frame-mount | F73: 5A | G73: 1,926.00 | H73: =ROUND(ROUND(G73*4.704*1.05,2),0) -> 9,513.00 | I73: 5 | J73: C | K73: A | L73: 8537109199 | M73: PT | N73: 5 | O73: 22.8 | Q73: SBN | S73: 4060039107428
B74: 7050 003 83888 | C74: FPA-2000-PWM | D74: F.01U.383.888 | E74: Panel kit premium license, wall-mount | F74: 5A | G74: 2,350.21 | H74: =ROUND(ROUND(G74*4.704*1.05,2),0) -> 11,608.00 | I74: 5 | J74: C | K74: A | L74: 8537109199 | M74: PT | N74: 0 | O74: 19.7 | Q74: SBN | S74: 4090039107435
B75: 7050 003 83893 | C75: FPA-2000-PFM | D75: F.01U.383.893 | E75: Panel kit premium license, frame-mount | F75: 5A | G75: 2,478.98 | H75: =ROUND(ROUND(G75*4.704*1.05,2),0) -> 12,244.00 | I75: 5 | J75: C | K75: A | L75: 8537109199 | M75: PT | N75: 2 | O75: 22.8 | Q75: SBN | S75: 4060039107442
B76: Display Panels
B77: 6649 980 00922 | C77: BAT 100 LSN | D77: 4.998.000.922 | E77: BAT100 LSN, Remote display panel | F77: 5A | G77: 589.39 | H77: 2,772.00 | I77: 5 | J77: C | K77: A | L77: 8537109199 | M77: DE | N77: 3 | O77: 2.61 | Q77: SBN | R77: One ATG-420-LSNi is included | S77: 8717332004584
B78: 8717332915347 | C78: ATB 420 LSNi | D78: F.01U.284.611 | E78: ATB 420 LSNi for the connection to location map tableaus | F78: 5A | G78: 360.34 | H78: 1,695.00 | I78: 5 | J78: C | K78: A | L78: 8538909189 | M78: DE | N78: 11 | O78: 0.07 | Q78: SBN | S78: 8717332915347
B79: 6649 980 01941 | C79: BAT100-LABELS | D79: 4.998.001.941 | E79: BS labeling strips for BAT 100 | F79: 5A | G79: 88.95 | H79: 418.00 | I79: 5 | J79: C | K79: C | L79: 3919908099 | M79: DE | N79: 2 | O79: 0.266 | Q79: SBN | S79: 8717332019816
B80: 8531901000 | C80: ATG 420 LSNI | D80: F.01U.284.610 | E80: ATG 420 LSNi display module | F80: 5A | G80: 360.34 | H80: 1,695.00 | I80: 5 | J80: C | K80: C | L80: 8531209590 | M80: CN | N80: 9 | O80: 0.055 | Q80: SBN | S80: 8717332915330
B81: not in MFG | C81: ATG100-LABEL | D81: 3.902.102.662 | E81: BS labeling membranes ATG 100 | F81: 5A | G81: 47.90 | H81: 225.00 | I81: 5 | J81: C | K81: C | L81: 3919908099 | M81: DE | N81: 10 | O81: 0.349 | Q81: -
B82: BACnet Server License
B83: 7050 004 28678 | C83: FSM-8000-BNSL | D83: F.01U.428.678 | E83: BACnet server license 5 years | F83: 5A | G83: 2,040.00 | H83: 9,596.00 | I83: n.a. | K83: C | L83: n.a. | M83: DE | O83: n.a. | Q83: n.a. | S83: 4060039205827
B84: 7051 004 28679 | C84: FSM-8000-BNSTL | D84: F.01U.428.679 | E84: BACnet server trial license 30 days | F84: 5A | G84: 45.90 | H84: 216.00 | I84: n.a. | K84: C | L84: n.a. | M84: DE | O84: n.a. | Q84: n.a. | S84: 4060039205834
B85: Remote Services
B86: n.a. | C86: FPO-GATE | D86: F.01U.433.333 | E86: Secure Network Gateway | F86: 5A | G86: 956.25 | H86: 4,498.00 | I86: 1 | J86: C | K86: A | L86: 8517620000 | M86: DE | N86: 3 | O86: 1.127 | S86: 4060039034250
B87: n.a. | C87: FSL-BASIC-S | D87: F.01U.435.428 | E87: NEXOSPACE FSE basic license S | F87: 5A | G87: 318.24 | H87: 1,497.00 | I87: n.a. | J87: C | K87: n.a. | L87: 4911990000 | M87: Germany | N87: 0 | O87: 0 | P87: Annual connectivity license <254 points | Q87: No physical product | S87: 4060039104076
B88: n.a. | C88: FSL-BASIC-M | D88: F.01U.435.594 | E88: NEXOSPACE FSE basic license M | F88: 5A | G88: 958.80 | H88: 4,510.00 | I88: n.a. | J88: C | K88: n.a. | L88: 4911990000 | M88: Germany | N88: 0 | O88: 0 | P88: Annual connectivity license 254 - 2000 points | Q88: No physical product | S88: 4060039112699
B89: n.a. | C89: FSL-BASIC-L | D89: F.01U.435.590 | E89: NEXOSPACE FSE basic license L | F89: 5A | G89: 1,593.24 | H89: 7,495.00 | I89: n.a. | J89: C | K89: n.a. | L89: 4911990000 | M89: Germany | N89: 0 | O89: 0 | P89: Annual connectivity license > 2000 points | Q89: No physical product | S89: 4060039111692
B90: Fire Monitoring System
B91: 7050 003 14991 | C91: FSM-5000 | D91: F.01U.314.991 | E91: Fire Monitoring System 5000 | F91: 5A | G91: 5,329.44 | H91: 25,070.00 | I91: n.a. | J91: C | K91: C | L91: 4911990000 | M91: IT | N91: 0.000 | O91: 0.001 | P91: Sold only in SEO. Outphased for rest EMEA | Q91: No repair | R91: Sold only in SEO. Outphased for rest EMEA | S91: 8717332995257
B92: 7050 003 14990 | C92: FSM-2500 | D92: F.01U.314.990 | E92: Fire Monitoring System 2500 | F92: 5A | G92: 3,613.19 | H92: 16,996.00 | I92: n.a. | J92: C | K92: C | L92: 4911990000 | M92: IT | N92: 0 | O92: 0.001 | P92: Sold only in SEO. Outphased for rest EMEA | Q92: No repair | R92: Sold only in SEO. Outphased for rest EMEA | S92: 8717332995240
C93: FSM-10K | D93: F.01U.374.278 | E93: Fire Monitoring System 10000 | F93: 5A | G93: 9,635.14 | H93: 45,324.00 | I93: n.a. | J93: C | K93: C | L93: 4911990000 | M93: IT | O93: 0.001 | P93: Cannot be sold in SEO | Q93: No repair | R93: Cannot be sold in SEO | S93: 4060039091192
C94: FSM-5000 | D94: F.01U.374.695 | E94: Fire Monitoring System 5000 | F94: 5A | G94: 5,329.44 | H94: 25,070.00 | I94: n.a. | J94: C | K94: C | L94: 4911990000 | M94: IT | N94: 0.000 | O94: 0.001 | P94: Cannot be sold in SEO | Q94: No repair | R94: Cannot be sold in SEO | S94: 4060039091437
C95: FSM-2500 | D95: F.01U.374.694 | E95: Fire Monitoring System 2500 | F95: 5A | G95: 3,613.19 | H95: 16,996.00 | I95: n.a. | J95: C | K95: C | L95: 4911990000 | M95: IT | N95: 0.000 | O95: 0.001 | P95: Cannot be sold in SEO | Q95: No repair | R95: Cannot be sold in SEO | S95: 4060039091420
B96: 7050 003 14992 | C96: FSM-5000-EP | D96: F.01U.314.992 | E96: Evolution pack FSM-5000 | F96: 5A | G96: 520.06 | H96: 2,446.00 | I96: n.a. | J96: C | K96: C | L96: 4911990000 | M96: IT | N96: 0 | O96: 0.001 | Q96: No repair | S96: 8717332995264
B97: 7050 003 15067 | C97: FSM-2500-EP | D97: F.01U.315.067 | E97: Evolution pack FSM-2500 | F97: 5A | G97: 363.15 | H97: 1,708.00 | I97: n.a. | J97: C | K97: C | L97: 4911990000 | M97: IT | N97: 0 | O97: 0.001 | Q97: No repair | S97: 8717332995288
B98: Conventional panels
B99: 705000164791 | C99: FPC-500-2 | D99: F.01U.164.791 | E99: 2 zone conventional fire panel | F99: 5A | G99: 397.20 | H99: 1,868.00 | I99: 5 | J99: C | K99: A | L99: 8531103000 | M99: CN | N99: 15 | O99: 2.2 | S99: 8717332759385
B100: 705000164792 | C100: FPC-500-4 | D100: F.01U.164.792 | E100: 4 zone conventional fire panel | F100: 5A | G100: 489.56 | H100: 2,303.00 | I100: 5 | J100: C | K100: A | L100: 8531103000 | M100: CN | N100: 20 | O100: 3.456 | S100: 8717332759392
B101: 705000164793 | C101: FPC-500-8 | D101: F.01U.164.793 | E101: 8 zone conventional fire panel | F101: 5A | G101: 612.72 | H101: 2,882.00 | I101: 5 | J101: C | K101: A | L101: 8531103000 | M101: CN | N101: 14 | O101: 3.42 | S101: 8717332759408
B102: 705000164794 | C102: FPC-500-OCEXT | D102: F.01U.164.794 | E102: Optional open collector board | F102: 5A | G102: 46.20 | H102: 217.00 | I102: 5 | J102: C | K102: A | L102: 8531900000 | M102: CN | N102: 1 | O102: 0.1 | S102: 8717332759415
B103: 705000164795 | C103: FPC-500-RLYEXT | D103: F.01U.164.795 | E103: Optional relay board | F103: 5A | G103: 86.21 | H103: 406.00 | I103: 5 | J103: C | K103: A | L103: 8531900000 | M103: CN | N103: 10 | O103: 0.1 | S103: 8717332759422
B104: 705000164844 | C104: FPC-500-KEY | D104: F.01U.164.844 | E104: Optional access key level 2 | F104: 5A | G104: 30.79 | H104: 145.00 | I104: 5 | J104: C | K104: A | L104: 3926909790 | M104: CN | N104: 8 | O104: 0.01 | S104: 8717332759859
B105: Batteries
B106: Batteries
C107: IPS-BAT12V-12AH | D107: F.01U.579.778 | E107: Battery 12 V / 10 - 12 Ah | G107: 0 | H107: 0 | I107: 1 | O107: 3.730
C108: IPS-BAT12V-27AH | D108: F.01U.579.781 | E108: Battery 12 V / 24 - 27 Ah | G108: 0 | H108: 0 | I108: 1 | O108: 7.96
C109: IPS-BAT12V-45AH | D109: F.01U.579.782 | E109: Battery 12 V / 38 - 45 Ah | G109: 0 | H109: 0 | I109: 1 | O109: 13.520
B110: LSN Detectors
B111: 500 Series
B112: 6650 005 10149 | C112: FAP-O 520 | D112: F.01U.510.149 | E112: FAP-O 520 opt smoke detector LSNi white | F112: 5A | G112: 205.13 | H112: 965.00 | I112: 5 | J112: C | K112: A | L112: 8531103000 | M112: CN | N112: 112 | O112: 0.170 | Q112: SBN | S112: 8717332265121
B113: 6650 005 10151 | C113: FAP-OC 520 | D113: F.01U.510.151 | E113: FAP-OC 520 Multisensor detector LSNi wh | F113: 5A | G113: 328.30 | H113: 1,544.00 | I113: 5 | J113: C | K113: A | L113: 8531103000 | M113: CN | N113: 23 | O113: 0.180 | Q113: SBN | S113: 8717332265138
B114: 6650 005 10161 | C114: FAP-O 520-P | D114: F.01U.510.161 | E114: FAP-O 520-P opt smoke detector LSNi tr | F114: 5A | G114: 232.50 | H114: 1,094.00 | I114: 5 | J114: C | K114: A | L114: 8531103000 | M114: CN | N114: 20 | O114: 0.170 | Q114: SBN | S114: 8717332265190
B115: 6650 005 10162 | C115: FAP-OC 520-P | D115: F.01U.510.162 | E115: FAP-OC 520-P Multisens detector LSNi tr | F115: 5A | G115: 335.28 | H115: 1,577.00 | I115: 5 | J115: C | K115: A | L115: 8531103000 | M115: CN | N115: 15 | O115: 0.180 | Q115: SBN | S115: 8717332265213
B116: AVENAR detector 4000
B117: 7050 003 07726 | C117: FAP-425-O-R | D117: F.01U.307.726 | E117: Optical with Rotary-Switches | F117: 5A | G117: 90.75 | H117: =ROUND(ROUND(G117*4.704*0.72,2),0) -> 307.00 | I117: 5 | J117: C | K117: A | L117: 8531103000 | M117: PT | N117: 12911 | O117: 0.077 | Q117: SBN | S117: 8717332972968
B118: 7050 003 07728 | C118: FAP-425-OT-R | D118: F.01U.307.728 | E118: Optical/Thermal with Rotary-Switches | F118: 5A | G118: 105.29 | H118: =ROUND(ROUND(G118*4.704*0.72,2),0) -> 357.00 | I118: 5 | J118: C | K118: A | L118: 8531103000 | M118: PT | N118: 10961 | O118: 0.077 | Q118: SBN | S118: 8717332972982
B119: 7050 003 07732 | C119: FAH-425-T-R | D119: F.01U.307.732 | E119: Heat with Rotary-Switches | F119: 5A | G119: 82.68 | H119: =ROUND(ROUND(G119*4.704*0.82,2),0) -> 319.00 | I119: 5 | J119: C | K119: A | L119: 8531103000 | M119: PT | N119: 1050 | O119: 0.077 | Q119: SBN | S119: 8717332973026
B120: 7050 003 07729 | C120: FAP-425-DO-R | D120: F.01U.307.729 | E120: Dual-Optical with Rotary-Switches | F120: 5A | G120: 98.08 | H120: =ROUND(ROUND(G120*4.704*0.72,2),0) -> 332.00 | I120: 5 | J120: C | K120: A | L120: 8531103000 | M120: PT | N120: 2238 | O120: 0.077 | Q120: SBN | S120: 8717332972999
B121: 7050 003 07730 | C121: FAP-425-DOT-R | D121: F.01U.307.730 | E121: Dual-Optical/Thermal with Rotary-Switches | F121: 5A | G121: 113.58 | H121: =ROUND(ROUND(G121*4.704*0.72,2),0) -> 385.00 | I121: 5 | J121: C | K121: A | L121: 8531103000 | M121: PT | N121: 2407 | O121: 0.077 | Q121: SBN | S121: 8717332973002
B122: 7050 003 07731 | C122: FAP-425-DOTC-R | D122: F.01U.307.731 | E122: Dual-Optical/Thermal/Chemical with Rotary-Switches | F122: 5A | G122: 189.80 | H122: =ROUND(ROUND(G122*4.704*0.75,2),0) -> 670.00 | I122: 5 | J122: C | K122: A | L122: 8531103000 | M122: PT | N122: 275 | O122: 0.082 | Q122: SBN | S122: 8717332973019
B123: 7050 003 95473 | C123: FAP-425-DOTCO-R | D123: F.01U.395.473 | E123: Detector dual-optical/thermal/CO | F123: 5A | G123: 189.80 | H123: =ROUND(ROUND(G123*4.704*0.75,2),0) -> 670.00 | I123: 5 | J123: C | K123: A | L123: 8531103000 | M123: PT | O123: 0,082 | Q123: SBN | S123: 4060039133199
B124: 7050 003 07725 | C124: FAP-425-O | D124: F.01U.307.725 | E124: Optical without Rotary-Switches | F124: 5A | G124: 87.76 | H124: =ROUND(ROUND(G124*4.704*0.72,2),0) -> 297.00 | I124: 5 | J124: C | K124: A | L124: 8531103000 | M124: PT | N124: 4365 | O124: 0.075 | Q124: SBN | S124: 8717332972951
B125: 7050 003 07727 | C125: FAP-425-OT | D125: F.01U.307.727 | E125: Optical/Thermal without Rotary-Switches | F125: 5A | G125: 103.11 | H125: =ROUND(ROUND(G125*4.704*0.72,2),0) -> 349.00 | I125: 5 | J125: C | K125: A | L125: 8531103000 | M125: PT | N125: 1688 | O125: 0.075 | Q125: SBN | S125: 8717332972975
B126: Accessories 500/400/300 series detectors
B127: Accessories for FAP-500 Series
B128: 6650 005 08713 | C128: FAA-500-CB | D128: F.01U.508.713 | E128: FAA-500-CB, built-in housing for concrete ceiling | F128: 5A | G128: 73.66 | H128: 347.00 | I128: 5 | J128: C | K128: B | L128: 3926909790 | M128: DE | N128: 9 | O128: 0.2 | Q128: - | S128: 4060039033000
B129: 6649 981 51297 | C129: FAA-500 | D129: 4.998.151.297 | E129: FAA500, base LSN | F129: 5A | G129: 54.62 | H129: 257.00 | I129: 5 | J129: C | K129: A | L129: 8536909599 | M129: CN | N129: 174 | O129: 0.25 | Q129: SBN | S129: 8717332097494
B130: 6649 981 51302 | C130: FAA-500-BB | D130: 4.998.151.302 | E130: FAA-500-BB, mount back box | F130: 5A | G130: 15.51 | H130: 73.00 | I130: 5 | J130: C | K130: A | L130: 3926909790 | M130: CN | N130: 192 | O130: 0.166 | Q130: SBN | S130: 8717332097487
B131: 6649 981 51296 | C131: FAA-500-TR-P | D131: 4.998.151.296 | E131: FAA-500-TR-P, transperant iris with color insert | F131: 5A | G131: 24.50 | H131: 115.00 | I131: 5 | J131: C | K131: A | L131: 3926909790 | M131: CN | N131: 20 | O131: 0.049 | Q131: SBN | S131: 8717332097562
B132: 6649 981 51295 | C132: FAA-500-TR-W | D132: 4.998.151.295 | E132: Trim ring for 500 Series, iris white | F132: 5A | G132: 6.16 | H132: 29.00 | I132: 5 | J132: C | K132: A | L132: 3926909790 | M132: CN | N132: 151 | O132: 0.03 | Q132: SBN | S132: 8717332097555
B133: 6650 005 10166 | C133: FAA-500-SB-H | D133: F.01U.510.166 | E133: FAA-500-SB-H Surface mount back box with damp room seal | F133: 5A | G133: 13.55 | H133: 64.00 | I133: 5 | J133: C | K133: A | L133: 3926909790 | M133: CN | N133: 38 | O133: 0.266 | Q133: SBN | S133: 8717332204748
B134: 6650 005 10028 | C134: FAA-500-SPRING | D134: F.01U.510.028 | E134: FAA-500-SPRING for concrete / wooden ceilings | F134: 5A | G134: 9.44 | H134: =ROUND(ROUND(G134*4.704,2),0) -> 44.00 | I134: 5 | J134: C | K134: A | L134: 7320208990 | M134: CN | N134: 10 | O134: 0.116 | P134: Price per piece. Order only 10 pcs or multiple of 10. E.g. needed 30 pcs, order 30 pcs | Q134: - | S134: 8717332204793
B135: 6649 981 51299 | C135: FAA-500-R | D135: 4.998.151.299 | E135: FAA-500-R base LSN with relay | F135: 5A | G135: 54.60 | H135: 257.00 | I135: 5 | J135: C | K135: A | L135: 8536909599 | M135: CN | N135: 2 | O135: 0.24 | Q135: SBN | S135: 8717332283224
B136: Accessories for 300 and 400 series
B137: 6650 005 08658 | C137: FAA-MSR420 | D137: F.01U.508.658 | E137: FAA-420-R Base with Relay for 420 Series | F137: 5A | G137: 43.37 | H137: 204.00 | I137: 5 | J137: C | K137: A | L137: 8536909599 | M137: CN | N137: 28 | O137: 0.09 | Q137: SBN | S137: 8717332206896
B138: 6649 980 21535 | C138: MS 400 | D138: 4.998.021.535 | E138: MS 400, socket, surface/ flush mounted cable supply | F138: 5A | G138: 5.56 | H138: =ROUND(ROUND(G138*4.704*1.28,2),0) -> 33.00 | I138: 5 | J138: C | K138: 1 | L138: 8536909599 | M138: CN | N138: 3162 | O138: 0.009 | Q138: SBN | S138: 8717332019878
B139: 7050 002 15139 | C139: MS 400 B | D139: F.01U.215.139 | E139: MS 400 Detector Base with Bosch Logo | F139: 5A | G139: 5.21 | H139: =ROUND(ROUND(G139*4.704*1.37,2),0) -> 34.00 | I139: 5 | J139: C | K139: A | L139: 8536909599 | M139: CN | N139: 11606 | O139: 0.09 | Q139: SBN | S139: 8717332019878
B140: 7050 002 15142 | C140: FAA-420-SEAL | D140: F.01U.215.142 | E140: FAA-420-SEAL Damp Room Seal MS400 (10ps) | F140: 5A | G140: 124.93 | H140: 588.00 | I140: 5 | J140: C | K140: A | L140: 8536909599 | M140: CN | N140: 38 | O140: 0.23 | P140: One package unit contains 10 pcs. E.g. 50 pcs needed --> order 5 | Q140: SBN | S140: 8717332808830
B141: 6649 981 13025 | C141: MSC 420 | D141: 4.998.113.025 | E141: MSC 420 Add base surface-mount | F141: 5A | G141: 7.06 | H141: 33.00 | I141: 5 | J141: C | K141: A | L141: 3926909790 | M141: CN | N141: 944 | O141: 0.1 | Q141: - | S141: 8717332020461
B142: 6649 981 14565 | C142: MSR 320 | D142: 4.998.114.565 | E142: MSR 320 GLT, Base with Relay | F142: 5A | G142: 30.84 | H142: 145.00 | I142: 5 | J142: C | K142: 1 | L142: 8536909599 | M142: CN | N142: 254 | O142: 0.04 | Q142: SBN | S142: 8717332022519
B143: 6649 980 25369 | C143: SK 400 | D143: 4.998.025.369 | E143: SK 400, Metal cage for protection MagicSens detectors | F143: 5A | G143: 49.34 | H143: 232.00 | I143: 5 | J143: C | K143: A | L143: 7326909890 | M143: DE | N143: 39 | O143: 0.3 | Q143: SBN | S143: 8717332003266
B144: 6649 980 35312 | C144: SSK400 | D144: 4.998.035.312 | E144: SSK 400, dust cover (10ps) | F144: 5A | G144: 26.57 | H144: 125.00 | I144: 5 | J144: C | K144: A | L144: 3926909790 | M144: DE | N144: 123 | O144: 0.21 | P144: One package unit contains 10 pcs. E.g. 50 pcs needed --> order 5 | Q144: SBN | S144: 8717332003310
B145: 6649 980 84709 | C145: TP4 400 | D145: 4.998.084.709 | E145: TP4 400, lettering strip till 4 m hight, (Attention!!! Order multiple, read comment) | F145: 5A | G145: 0.54 | H145: 3.00 | I145: 5 | J145: C | K145: A | L145: 3926909790 | M145: DE | N145: 4597 | O145: 0.006 | P145: Order only 50 pcs or multiple of 50. E.g. needed 150 pcs, order 150 pcs | Q145: - | S145: 8717332003396
B146: 6649 980 84710 | C146: TP8 400 | D146: 4.998.084.710 | E146: TP8 400, lettering strip till 8 m hight, (Attention!!! Order multiple, read comment) | F146: 5A | G146: 0.57 | H146: 3.00 | I146: 5 | J146: C | K146: A | L146: 3926909790 | M146: DE | N146: 879 | O146: 0.009 | P146: Order only 50 pcs or multiple of 50. E.g. needed 150 pcs, order 150 pcs | Q146: - | S146: 8717332003402
B147: 6649 980 25373 | C147: MH 400 | D147: 4.998.025.373 | E147: MH 400, detector heating | F147: 5A | G147: 49.60 | H147: 233.00 | I147: 5 | J147: C | K147: A | L147: 8531900000 | M147: DE | N147: 15 | O147: 0.017 | Q147: - | S147: 8717332003280
B148: 6649 980 97924 | C148: WA400 | D148: 4.998.097.924 | E148: MK 400, detector console including socket | F148: 5A | G148: 44.06 | H148: 207.00 | I148: 5 | J148: C | K148: A | L148: 3926909790 | M148: DE | N148: 33 | O148: 0.199 | Q148: - | S148: 8717332003426
B149: 7050 002 89620 | C149: FAA-420-RI-DIN | D149: F.01U.289.620 | E149: Remote Indicator | F149: 5A | G149: 47.87 | H149: 225.00 | I149: 5 | J149: C | K149: 1 | L149: 8531900000 | M149: PT | N149: 175 | O149: 0.061 | Q149: SBN | S149: 8717332927982
B150: 7050 002 89120 | C150: FAA-420-RI-ROW | D150: F.01U.289.120 | E150: Remote Indicator | F150: 5A | G150: 15.94 | H150: 75.00 | I150: 5 | J150: C | K150: A | L150: 8531900000 | M150: PT | N150: 1155 | O150: 0.058 | Q150: SBN | S150: 8717332926756
B151: 6627 992 71257 | C151: FMX-DET-MB | D151: 2.799.271.257 | E151: MOUNT BRACKfalse floor mounting bracket | F151: 5A | G151: 25.30 | H151: 119.00 | I151: 5 | J151: C | K151: A | L151: 3926909790 | M151: DE | N151: 84 | O151: 0.09 | Q151: - | S151: 8717332018994
B152: 7050 002 39554 | C152: FAA-420-CAP-V0 | D152: F.01U.239.554 | E152: Detector cap, V0 rating (200 pcs) | F152: 5A | G152: 434.19 | H152: 2,042.00 | I152: 5 | J152: C | K152: C | L152: 85369095 | M152: CN | N152: 0 | O152: 0.023 | P152: One unit contains 200 pcs. Minimum order quantity is 5 units (= 1.000 caps). Delivery time 3-4 months. | Q152: - | R152: Mainly used for Israel | S152: 8717332822423
B153: 7050 002 14891 | C153: MS 400 V0 | D153: F.01U.214.891 | E153: Detector base, V0 rating | F153: 5A | G153: 10.36 | H153: 49.00 | I153: 5 | J153: C | K153: C | L153: 85369095 | M153: CN | N153: 0 | O153: 0.081 | Q153: - | R153: Mainly used for Israel | S153: 8717332808199
B154: Conventional detectors
B155: 320 Series
B156: 7050 000 26293 | C156: FCP-O320 | D156: F.01U.026.293 | E156: FCP-O320 optical conventional (820Ω) | F156: 5A | G156: 40.92 | H156: 192.00 | I156: 5 | J156: C | K156: A | L156: 8531103000 | M156: CN | N156: 690 | O156: 0.072 | Q156: SBN | S156: 8717332253180
B157: 7050 000 26292 | C157: FCP-OC320 | D157: F.01U.026.292 | E157: FCP-OC 320 optical/ chemical conv. det. (820Ω) | F157: 5A | G157: 180.16 | H157: 847.00 | I157: 5 | J157: C | K157: A | L157: 8531103000 | M157: CN | N157: 23 | O157: 0.1 | Q157: SBN | S157: 8717332253173
B158: 7050 000 26295 | C158: FCP-OT320 | D158: F.01U.026.295 | E158: FCP-OT 320 optical/ heat conv. Detector (820Ω) | F158: 5A | G158: 70.49 | H158: 332.00 | I158: 5 | J158: C | K158: A | L158: 8531103000 | M158: CN | N158: 113 | O158: 0.09 | Q158: SBN | S158: 8717332253210
B159: 7050 000 26291 | C159: FCH-T320 | D159: F.01U.026.291 | E159: FCH-T 320 conv. RoR heat detector (820Ω) | F159: 5A | G159: 31.28 | H159: 147.00 | I159: 5 | J159: C | K159: A | L159: 8531103000 | M159: CN | N159: 134 | O159: 0.069 | Q159: SBN | S159: 8717332253166
B160: 7050 000 26294 | C160: FCH-T320-FSA | D160: F.01U.026.294 | E160: FCH-T 320-FSA Heat, RoR conv. Detector (820Ω) | F160: 5A | G160: 61.24 | H160: 288.00 | I160: 5 | J160: C | K160: A | L160: 8531103000 | M160: CN | N160: 2 | O160: 0.09 | Q160: SBN | S160: 8717332253203
B161: 7850 000 29857 | C161: FCP-O320-R470 | D161: F.01U.029.857 | E161: FCP-O 320-R470 optical smoke detector (470Ω) | F161: 5A | G161: 40.92 | H161: 192.00 | I161: 5 | J161: C | K161: A | L161: 8531900000 | M161: CN | N161: 31 | O161: 0.09 | Q161: SBN | S161: 800549091664
B162: 7850 000 29867 | C162: FCP-OC320-R470 | D162: F.01U.029.867 | E162: FCP-OC 320-R470 Combined opt/gas det. (470Ω) | F162: 5A | G162: 180.16 | H162: 847.00 | I162: 5 | J162: C | K162: A | L162: 8531103000 | M162: CN | N162: 2 | O162: 0.09 | Q162: SBN | S162: 800549091718
B163: 7850 000 29862 | C163: FCP-OT320-R470 | D163: F.01U.029.862 | E163: FCP-OT 320-R470 optical/heat detector (470Ω) | F163: 5A | G163: 70.49 | H163: 332.00 | I163: 5 | J163: C | K163: A | L163: 8531103000 | M163: CN | N163: 4 | O163: 0.091 | Q163: SBN | S163: 800549091701
B164: 7850 000 29861 | C164: FCH-T320-R470 | D164: F.01U.029.861 | E164: FCH-T 320-R470 heat detector (470Ω) | F164: 5A | G164: 31.28 | H164: 147.00 | I164: 5 | J164: C | K164: A | L164: 8531103000 | M164: CN | N164: 4 | O164: 0.099 | Q164: SBN | S164: 800549091695
B165: 7050 000 83619 | C165: FLM-320-EOL2W | D165: F.01U.083.619 | E165: FLM-320-EOL2W Conv EOL Module 2-Wire | F165: 5A | G165: 34.22 | H165: 161.00 | I165: 5 | J165: C | K165: A | L165: 8537109199 | M165: CN | N165: 24 | O165: 0.03 | Q165: SBN | S165: 800549189309
B166: 705000083620 | C166: FLM-320-EOL4W-S | D166: F.01U.083.620 | E166: FLM-320-EOL4W-S Conv EOL Module 4-Wire | F166: 5A | G166: 150.52 | H166: 708.00 | I166: 5 | J166: C | K166: A | L166: 8536501999 | M166: CN | N166: 3 | O166: 0.48 | Q166: SBN | S166: 8717332361120
B167: 500 Series
B168: 7850 005 10647 | C168: FCA-500-EU | D168: F.01U.510.647 | E168: FCA-500-EU base conventional for EU | F168: 5A | G168: 63.42 | H168: 298.00 | I168: 5 | J168: C | K168: A | L168: 8536909599 | M168: CN | N168: 40 | O168: 0.218 | Q168: SBN | S168: 8717332251490
B169: 7850 005 10648 | C169: FCA-500-E-EU | D169: F.01U.510.648 | E169: FCA-500-E-EU base conv-EOL for EU | F169: 5A | G169: 77.52 | H169: 365.00 | I169: 5 | J169: C | K169: A | L169: 8536909599 | M169: CN | N169: 7 | O169: 0.25 | Q169: SBN | S169: 8717332256228
B170: 7850 005 12649 | C170: FCP-O 500 | D170: F.01U.510.649 | E170: FCP-O 500 conv opt smoke detector EU wh | F170: 5A | G170: 317.15 | H170: 1,492.00 | I170: 5 | J170: C | K170: 1 | L170: 8531103000 | M170: CN | N170: 75 | O170: 0.308 | Q170: SBN | S170: 8717332251445
B171: 7850 005 10653 | C171: FCP-OC 500 | D171: F.01U.510.653 | E171: FCP-OC 500 Multisens detect conv EU wh | F171: 5A | G171: 458.10 | H171: 2,155.00 | I171: 5 | J171: C | K171: A | L171: 8531103000 | M171: CN | N171: 10 | O171: 0.217 | Q171: SBN | S171: 8717332251469
B172: 7850 005 10654 | C172: FCP-O 500-P | D172: F.01U.510.654 | E172: FCP-O 500-P conv opt smoke det EU tr | F172: 5A | G172: 331.25 | H172: 1,558.00 | I172: 5 | J172: C | K172: A | L172: 8531103000 | M172: CN | N172: 10 | O172: 0.36 | Q172: SBN | S172: 8717332251476
B173: 7850 005 10656 | C173: FCP-OC 500-P | D173: F.01U.510.656 | E173: FCP-OC 500-P conv multisen detect EU tr | F173: 5A | G173: 472.20 | H173: 2,221.00 | I173: 5 | J173: C | K173: A | L173: 8531103000 | M173: CN | N173: 1 | O173: 0.35 | Q173: SBN | S173: 8717332251483
B174: Detectors for explosive areas
B175: 7050 002 79764 | C175: 016519 | D175: F.01U.279.764 | E175: Flameproof (Exd) IR3 Flame Detector | F175: 5A | G175: 8,788.34 | H175: 41,340.00 | I175: 3 | J175: C | K175: A | L175: 8531103000 | M175: GB | N175: 3 | O175: 2.5 | Q175: SBN | S175: 8717332906369
B176: 705000332582 | C176: OOH740-A9-EX | D176: F.01U.332.582 | E176: Dual-optical detector, explosive area | F176: 5A | G176: 569.40 | H176: 2,678.00 | I176: 3 | J176: C | K176: A | L176: 85311030000 | M176: CH | N176: 23 | O176: 0.124 | Q176: SBN | S176: 4260451081447
B177: 705000332583 | C177: FDB201 | D177: F.01U.332.583 | E177: Base for Dual-Optical Detector for Ex Area | F177: 5A | G177: 34.16 | H177: 161.00 | I177: 3 | J177: C | K177: A | L177: 85319085900 | M177: CH | N177: 24 | O177: 0.025 | Q177: SBN | S177: 4260451081454
B178: 705000335165 | C178: FDB291 | D178: F.01U.335.165 | E178: Base attachment | F178: 5A | G178: 25.31 | H178: 119.00 | I178: 3 | J178: C | K178: A | L178: 85319000000 | M178: CH | N178: 11 | O178: 0.036 | Q178: SBN | S178: 4260451089573
B179: 705000335589 | C179: FDB295 | D179: F.01U.335.589 | E179: Base attachment wet | F179: 5A | G179: 97.43 | H179: 458.00 | I179: 3 | J179: C | K179: A | L179: 85319000000 | M179: CN | N179: 10 | O179: 0.286 | Q179: SBN | S179: 4060039000002
B180: 705000335595 | C180: FDB295M | D180: F.01U.335.595 | E180: Metal cable gland | F180: 5A | G180: 55.68 | H180: 262.00 | I180: 3 | J180: C | K180: A | L180: 90269000900 | M180: CH | N180: 27 | O180: 0.354 | P180: 1 bag contains 10 pcs.20 pcs needed, order 2 pcs. (bags) REUP per unit (= 10 pcs) | Q180: SBN | S180: 4060039000064
B181: 705000335593 | C181: FDUD291 | D181: F.01U.335.593 | E181: Detector exchanger | F181: 5A | G181: 2,176.37 | H181: 10,238.00 | I181: 3 | J181: C | K181: A | L181: 90318080000 | M181: CH | N181: 0 | O181: 0.480 | Q181: SBN | S181: 4060039000040
B182: 705000335590 | C182: FDBZ291 | D182: F.01U.335.590 | E182: Designation plate | F182: 5A | G182: 2.54 | H182: 12.00 | I182: 3 | J182: C | K182: A | L182: 85319000000 | M182: CH | N182: 13 | O182: 0.024 | P182: Order only 10 pcs or multiple of 10. E.g. needed 30 pcs, order 30 pcs | Q182: SBN | S182: 4060039000019
B183: 705000335591 | C183: FDBZ293 | D183: F.01U.335.591 | E183: Detector locking device | F183: 5A | G183: 1.00 | H183: 5.00 | I183: 3 | J183: C | K183: A | L183: 85319000000 | M183: CH | N183: 0 | O183: 0.026 | P183: Order only 100 pcs or multiple of 100. E.g. needed 60 pcs, order 100 pcs | Q183: SBN | S183: 4060039000026
B184: 705000335592 | C184: FDBZ295 | D184: F.01U.335.592 | E184: Sealing element | F184: 5A | G184: 20.25 | H184: 95.00 | I184: 3 | J184: C | K184: A | L184: 40169300900 | M184: CH | N184: 3 | O184: 0.037 | Q184: SBN | S184: 4060039000033
B185: 705000335594 | C185: FDZ291 | D185: F.01U.335.594 | E185: Detector dust cap | F185: 5A | G185: 3.79 | H185: 18.00 | I185: 3 | J185: C | K185: A | L185: 85319000000 | M185: CH | N185: 4 | O185: 0.045 | P185: Order only 10 pcs or multiple of 10. E.g. needed 30 pcs, order 30 pcs | Q185: SBN | S185: 4060039000057
B186: 6649 981 15785 | C186: DOW1171-ident | D186: 4.998.115.785 | E186: DBZ1193A, DOW1171 Det identifier | F186: 5A | G186: 1.93 | H186: 9.00 | I186: 3 | J186: C | K186: A | L186: 8310000000 | M186: CH | N186: 3 | O186: 0 | P186: Price per piece. Order only 10 pcs or multiple of 10. E.g. needed 30 pcs, order 30 pcs. | Q186: SBN | S186: 8717332020478
B187: Video-based Fire Detection
A188: 2026-01-01 | C188: FVD-EDG-S | D188: F.01U.434.719 | E188: Video fire detection server | F188: 5C | G188: 4,069.80 | H188: 19,144.00 | I188: to follow | J188: to follow | K188: to follow | L188: 84715000 | M188: DE | N188: to follow | O188: to follow | S188: 4060039088093
A189: 2026-01-01 | C189: FVD-EDG-1CH | D189: F.01U.434.720 | E189: to follow | F189: 5C | G189: 3,060.00 | H189: 14,394.00 | I189: to follow | J189: to follow | K189: to follow | L189: 85235190 | M189: DE | N189: to follow | O189: to follow | S189: 4060039088413
A190: 2026-01-01 | C190: FVD-EDG-2CH | D190: F.01U.434.721 | E190: to follow | F190: 5C | G190: 6,120.00 | H190: 28,788.00 | I190: to follow | J190: to follow | K190: to follow | L190: 85235190 | M190: DE | N190: to follow | O190: to follow | S190: 4060039088420
A191: 2026-01-01 | C191: FVD-EDG-3CH | D191: F.01U.434.722 | E191: to follow | F191: 5C | G191: 9,180.00 | H191: 43,183.00 | I191: to follow | J191: to follow | K191: to follow | L191: 85235190 | M191: DE | N191: to follow | O191: to follow | S191: 4060039088437
A192: 2026-01-01 | C192: FVD-EDG-4CH | D192: F.01U.434.723 | E192: to follow | F192: 5C | G192: 12,240.00 | H192: 57,577.00 | I192: to follow | J192: to follow | K192: to follow | L192: 85235190 | M192: DE | N192: to follow | O192: to follow | S192: 4060039088444
A193: 2026-01-01 | C193: XI231302 | D193: F.01U.434.724 | E193: Relay module | F193: 5C | G193: 275.40 | H193: 1,295.00 | I193: to follow | J193: to follow | K193: to follow | L193: 85176200 | M193: CN | N193: to follow | O193: to follow | S193: 4060039088451
A194: 2026-01-01 | C194: XI110208 | D194: F.01U.434.725 | E194: Input module, 8 inputs | F194: 5C | G194: 204.00 | H194: 960.00 | I194: to follow | J194: to follow | K194: to follow | L194: 85176200 | M194: CN | N194: to follow | O194: to follow | S194: 4060039088468
A195: 2026-01-01 | C195: XACC-1-FAN-EXT | D195: F.01U.436.968 | E195: to follow | F195: 5C | G195: 153.00 | H195: 720.00 | I195: to follow | J195: to follow | K195: to follow | L195: 84145100 | M195: DE | N195: to follow | O195: to follow | S195: 4060039148261
A196: 2026-01-01 | C196: 852-1813/000-001 | D196: F.01U.436.969 | E196: to follow | F196: 5C | G196: 2,805.00 | H196: 13,195.00 | I196: to follow | J196: to follow | K196: to follow | L196: 85444290 | M196: DE | N196: to follow | O196: to follow | S196: 4060039148278
B197: 7050 004 06348 | C197: FCS-8000-VFD-I | D197: F.01U.406.348 | E197: AI-VFD Bullet 4MP 4.4-10mm IP67 | F197: 5A | G197: 7,230.86 | H197: 34,014.00 | I197: 3 | J197: C | K197: A | L197: 85258900 | M197: PT | O197: 3.285 | Q197: SBN | S197: 4060039159519
B198: 7050 003 17536 | C198: FCS-8000-VFD-B | D198: F.01U.317.536 | E198: AVIOTEC IP starlight 8000 | F198: 5A | G198: 7,230.86 | H198: =ROUND(ROUND(G198*4.704,2),0) -> 34,014.00 | I198: 3 | J198: C | K198: A | L198: 8525801931 | M198: PT | N198: 44 | O198: 1.196 | Q198: SBN | S198: 8717332541010
B199: Wireless Devices
B200: 66F01U349134 | C200: FWI-270 | D200: F.01U.349.134 | E200: Radio gateway | F200: 5A | G200: 1,110.33 | H200: 5,223.00 | I200: 3 | J200: C | K200: B | L200: 8517620000 | M200: PT | N200: 11 | O200: 0.260 | S200: 4060039021670
... 308 more rows

Sheet Warranty Extension (hidden)
A1: Note: For Warranty extension only base discount can be applied
A2: Commercial Type Number (CTN) | B2: Material Number (Mat/N) | C2: Short Description | D2: Currency | E2: Price [per packaging unit] | F2: Price PLN | G2: Price valid from [date] | H2: Discount category | I2: Delivery status | J2: Last change of delivery status [date] | K2: Last date of availability | L2: Orders placed up to [units] | M2: Order shipping occurrence within working [days] | N2: Stocking location | O2: Minimum Order Quantity [in pieces] | P2: Multipack Quantity [in pieces] | Q2: Packaging Unit [in pieces] | R2: Successor or Substitute Product | S2: Country of origin | T2: European Article Number (EAN) | U2: Universal Product Code (UPC) | V2: Commodity code | W2: Dual use
A3: EWE-FPA5MPC-IW | B3: F.01U.360.726 | C3: 12mths wrty ext FPA-5000 Main Panel Con. | D3: EUR | E3: 21.46 | F3: =ROUND(ROUND(E3*4.8,2),0) -> 103.00 | G3: 2023-01-01 | H3: 5A | I3: S3 - available | L3: n.a. | M3: Contact Customer Service | N3: Software/Service | O3: 1 | P3: 1 | Q3: 1 | W3: No
A4: EWE-FPA5FMR-IW | B4: F.01U.360.727 | C4: 12mths wrty ext FPA-5000 Remote Keypad | D4: EUR | E4: 28.64 | F4: =ROUND(ROUND(E4*4.8,2),0) -> 137.00 | G4: 2023-01-02 | H4: 5A | I4: S3 - available | L4: n.a. | M4: Contact Customer Service | N4: Software/Service | O4: 1 | P4: 1 | Q4: 1 | W4: No
A5: EWE-FPA1200-IW | B5: F.01U.360.728 | C5: 12mths wrty ext FPA-1200 | D5: EUR | E5: 53.70 | F5: 258.00 | G5: 2023-01-03 | H5: 5A | I5: S3 - available | L5: n.a. | M5: Contact Customer Service | N5: Software/Service | O5: 1 | P5: 1 | Q5: 1 | W5: No
A6: EWE-FPDVC-IW | B6: F.01U.360.729 | C6: 12mths wrty ext Fire Peripheral Device | D6: EUR | E6: 3.58 | F6: 17.00 | G6: 2023-01-04 | H6: 5A | I6: S3 - available | L6: n.a. | M6: Contact Customer Service | N6: Software/Service | O6: 1 | P6: 1 | Q6: 1 | W6: No
A7: EWE-LSN1500-IW | B7: F.01U.360.730 | C7: 12mths wrty ext FPA-5000 LSN 1500 Mod. | D7: EUR | E7: 21.46 | F7: 103.00 | G7: 2023-01-05 | H7: 5A | I7: S3 - available | L7: n.a. | M7: Contact Customer Service | N7: Software/Service | O7: 1 | P7: 1 | Q7: 1 | W7: No
A8: EWE-FPA5MD-IW | B8: F.01U.360.731 | C8: 12mths wrty ext FPA-5000 Panel Module | D8: EUR | E8: 7.15 | F8: 34.00 | G8: 2023-01-06 | H8: 5A | I8: S3 - available | L8: n.a. | M8: Contact Customer Service | N8: Software/Service | O8: 1 | P8: 1 | Q8: 1 | W8: No
A9: EWE-DS10-IW | B9: F.01U.360.732 | C9: 12mths wrty ext DS10 DIN tone sounder | D9: EUR | E9: 14.32 | F9: 69.00 | G9: 2023-01-07 | H9: 5A | I9: S3 - available | L9: n.a. | M9: Contact Customer Service | N9: Software/Service | O9: 1 | P9: 1 | Q9: 1 | W9: No
A10: EWE-FAP520-IW | B10: F.01U.360.733 | C10: 12mths wrty ext FAP520 detector | D10: EUR | E10: 7.15 | F10: 34.00 | G10: 2023-01-08 | H10: 5A | I10: S3 - available | L10: n.a. | M10: Contact Customer Service | N10: Software/Service | O10: 1 | P10: 1 | Q10: 1 | W10: No
A11: EWE-FCP500-IW | B11: F.01U.360.734 | C11: 12mths wrty ext FAP500 detector | D11: EUR | E11: 10.74 | F11: 52.00 | G11: 2023-01-09 | H11: 5A | I11: S3 - available | L11: n.a. | M11: Contact Customer Service | N11: Software/Service | O11: 1 | P11: 1 | Q11: 1 | W11: No
A12: EWE-FPC500-IW | B12: F.01U.360.735 | C12: 12mths wrty ext Conventional Fire panel | D12: EUR | E12: 14.32 | F12: 69.00 | G12: 2023-01-10 | H12: 5A | I12: S3 - available | L12: n.a. | M12: Contact Customer Service | N12: Software/Service | O12: 1 | P12: 1 | Q12: 1 | W12: No
A13: EWE-FPTDT-IW | B13: F.01U.360.736 | C13: 12mths wrty ext Fire Point Detector | D13: EUR | E13: 3.58 | F13: 17.00 | G13: 2023-01-11 | H13: 5A | I13: S3 - available | L13: n.a. | M13: Contact Customer Service | N13: Software/Service | O13: 1 | P13: 1 | Q13: 1 | W13: No
A14: EWE-UPS2416-IW | B14: F.01U.360.742 | C14: 12mths wrty ext UPS2426 Power Supply | D14: EUR | E14: 14.32 | F14: 69.00 | G14: 2023-01-12 | H14: 5A | I14: S3 - available | L14: n.a. | M14: Contact Customer Service | N14: Software/Service | O14: 1 | P14: 1 | Q14: 1 | W14: No
A15: EWE-FCS320-IW | B15: F.01U.360.756 | C15: 12mths wrty ext FCS-320 | D15: EUR | E15: 57.26 | F15: 275.00 | G15: 2023-01-13 | H15: 5A | I15: S3 - available | L15: n.a. | M15: Contact Customer Service | N15: Software/Service | O15: 1 | P15: 1 | Q15: 1 | W15: No
A16: EWE-FAS420-IW | B16: F.01U.360.760 | C16: 12mths wrty ext FAS-420 TM | D16: EUR | E16: 64.42 | F16: 309.00 | G16: 2023-01-14 | H16: 5A | I16: S3 - available | L16: n.a. | M16: Contact Customer Service | N16: Software/Service | O16: 1 | P16: 1 | Q16: 1 | W16: No
A17: EWE-AVIOTEC-IW | B17: F.01U.360.765 | C17: 12mths wrty ext Aviotec starlight 8000 | D17: EUR | E17: 232.65 | F17: 1117.00 | G17: 2023-01-15 | H17: 5A | I17: S3 - available | L17: n.a. | M17: Contact Customer Service | N17: Software/Service | O17: 1 | P17: 1 | Q17: 1 | W17: No
A18: EWE-D296-IW | B18: F.01U.360.767 | C18: 12mths wrty ext D296 | D18: EUR | E18: 23.10 | F18: 111.00 | G18: 2023-01-16 | H18: 5A | I18: S3 - available | L18: n.a. | M18: Contact Customer Service | N18: Software/Service | O18: 1 | P18: 1 | Q18: 1 | W18: No
A19: EWE-FPA100-IW | B19: F.01U.360.773 | C19: 12mths wrty ext FPA 1000 panel | D19: EUR | E19: 53.70 | F19: 258.00 | G19: 2023-01-17 | H19: 5A | I19: S3 - available | L19: n.a. | M19: Contact Customer Service | N19: Software/Service | O19: 1 | P19: 1 | Q19: 1 | W19: No
A20: EWE-FDMOD-IW | B20: F.01U.360.774 | C20: 12mths wrty ext Fire Display Module | D20: EUR | E20: 7.15 | F20: 34.00 | G20: 2023-01-17 | H20: 5A | I20: S3 - available | L20: n.a. | M20: Contact Customer Service | N20: Software/Service | O20: 1 | P20: 1 | Q20: 1 | W20: No
